Supplier Name,Transaction Date,Analysed Amount,Category
140 Walker Road Maintenance,05/09/2018,"4,600.00",Transfer Payments
17 Skene Square Maintenance Account,04/10/2018,"2,333.34",Transfer Payments
1 Call Property Maintenance Ltd,02/03/2018,772.20,Premises Costs
1 Call Property Maintenance Ltd,24/01/2019,"4,930.41",Premises Costs
1csi Limited,16/08/2018,"1,154.79",Transfer Payments
1spatial Group Ltd,25/02/2019,860.00,Short Term Debtors
1st Homecare Ltd,31/08/2018,"4,683.99",Commissioning Services
1st Homecare Ltd,10/09/2018,"52,455.82",Commissioning Services
1st Homecare Ltd,24/09/2018,"2,294.86",Commissioning Services
1st Homecare Ltd,28/09/2018,"7,432.64",Commissioning Services
1st Homecare Ltd,31/10/2018,"19,069.62",Commissioning Services
1st Homecare Ltd,26/11/2018,"16,780.06",Commissioning Services
1st Homecare Ltd,28/12/2018,"9,676.24",Commissioning Services
1st Homecare Ltd,22/01/2019,503.88,Commissioning Services
1st Homecare Ltd,30/01/2019,702.80,Commissioning Services
1st Homecare Ltd,31/01/2019,"13,509.29",Commissioning Services
21st Aberdeen (Cults) Scout,13/07/2018,"1,100.00",Commissioning Services
266 Union Grove Treasurers Account,20/11/2018,"10,870.12",Transfer Payments
2m Power Systems Ltd,14/03/2018,688.00,Supplies & Services
2m Power Systems Ltd,12/07/2018,792.00,Supplies & Services
300g Consultants Limited,30/10/2017,"48,748.72",Capital Expenditure Total
300g Consultants Limited,28/10/2018,"13,664.08",Premises Costs
3dr Limited,17/04/2018,"1,440.00",Capital Expenditure Total
3dr Limited,01/05/2018,"37,770.57",Capital Expenditure Total
3dr Limited,16/05/2018,"1,440.00",Capital Expenditure Total
3dr Limited,04/06/2018,"1,440.00",Capital Expenditure Total
3dr Limited,06/08/2018,"2,880.00",Capital Expenditure Total
3dr Limited,11/09/2018,"22,156.37",Capital Expenditure Total
3dr Limited,18/09/2018,"16,166.15",Capital Expenditure Total
3dr Limited,19/09/2018,"14,614.99",Capital Expenditure Total
3dr Limited,10/12/2018,"9,321.88",Capital Expenditure Total
3dr Limited,17/12/2018,"4,320.00",Capital Expenditure Total
3dr Limited,21/01/2019,"28,542.75",Capital Expenditure Total
3dr Limited,25/01/2019,"2,916.00",Capital Expenditure Total
3p Learning Limited,14/06/2018,"1,134.00",Supplies & Services
3p Learning Limited,20/06/2018,"2,222.64",Supplies & Services
3p Learning Limited,20/09/2018,"1,048.32",Supplies & Services
3p Learning Limited,13/11/2018,695.40,Supplies & Services
3p Learning Limited,30/11/2018,"1,260.00",Supplies & Services
45 Esslemont Avenue Improvements,15/01/2019,"17,053.65",Transfer Payments
46th Aberdeen Boys Brigade,05/12/2018,"3,730.00",Commissioning Services
4imprint Direct Ltd,06/06/2018,516.00,Supplies & Services
4quarters Record Company Ltd,13/10/2018,"1,250.00",Supplies & Services
62nd Ferryhill Scouts Group,13/12/2018,"1,488.60",Transfer Payments
75 Urquhart Road - Property Managment,01/08/2018,"4,742.88",Transfer Payments
75 Urquhart Road - Property Managment,22/11/2018,"5,928.60",Transfer Payments
9th Aberdeen Scout Troop,13/07/2018,"1,440.00",Commissioning Services
Aaa Carpetcare,25/07/2018,"1,175.00",Supplies & Services
A & A Electrical Distrib. Ltd,01/06/2018,"2,649.00",Supplies & Services
A & A Electrical Distrib. Ltd,14/11/2018,559.17,Supplies & Services
Aa Media Limited,11/05/2018,721.00,Supplies & Services
Aa Media Limited,12/11/2018,721.00,Administration Costs
A And G Young,15/10/2018,"1,572.90",Supplies & Services
Abacus Agents Limited,02/05/2018,549.58,Inventories
Abacus Agents Limited,28/11/2018,532.53,Inventories
Abacus Unique Solutions Ltd,01/02/2018,630.00,Supplies & Services
Abacus Unique Solutions Ltd,19/12/2019,"4,300.00",Supplies & Services
Abbeydon Removals,12/02/2017,550.00,Premises Costs
Abbeydon Removals,19/03/2018,550.00,Premises Costs
Abbeydon Removals,01/05/2018,550.00,Premises Costs
Abbeydon Removals,02/07/2018,550.00,Premises Costs
Abbeydon Removals,14/08/2018,550.00,Premises Costs
Abbeydon Removals,14/10/2018,"1,010.00",Capital Expenditure Total
Abbeydon Removals,14/11/2018,860.00,Premises Costs
Abbeydon Removals,25/11/2018,860.00,Premises Costs
Abbeyfield Lodge Ltd,21/03/2018,"8,800.00",Commissioning Services
Abbeyfield Lodge Ltd,19/04/2018,"8,800.00",Commissioning Services
Abbeyfield Lodge Ltd,18/05/2018,"8,800.00",Commissioning Services
Abbeyfield Lodge Ltd,13/06/2018,"8,800.00",Commissioning Services
Abbeyfield Lodge Ltd,16/07/2018,"8,800.00",Commissioning Services
Abbeyfield Lodge Ltd,08/08/2018,"8,800.00",Commissioning Services
Abbeyfield Lodge Ltd,11/09/2018,"8,800.00",Commissioning Services
Abbeyfield Lodge Ltd,23/10/2018,"17,600.00",Commissioning Services
Abbeyfield Lodge Ltd,26/11/2018,"8,800.00",Commissioning Services
Abbeyfield Lodge Ltd,08/01/2019,"8,800.00",Commissioning Services
Abbeyfield Lodge Ltd,05/02/2019,"8,800.00",Commissioning Services
Abbeyfield Lodge Ltd,18/02/2019,"8,800.00",Commissioning Services
Abbeyside Care Group,05/04/2018,996.00,Commissioning Services
Abbeyside Care Group,07/05/2018,"1,265.57",Commissioning Services
Abbeyside Care Group,05/06/2018,"1,012.00",Commissioning Services
Abbeyside Care Group,03/07/2018,"1,012.00",Commissioning Services
Abbeyside Care Group,07/08/2018,"1,265.00",Commissioning Services
Abbeyside Care Group,05/09/2018,"1,012.00",Commissioning Services
Abbeyside Care Group,01/10/2018,"1,012.00",Commissioning Services
Abbeyside Care Group,05/11/2018,"6,093.11",Commissioning Services
Abbeyside Care Group,03/12/2018,"6,485.84",Commissioning Services
Abbeyside Care Group,10/01/2019,"3,448.65",Commissioning Services
Abbeyside Care Group,17/01/2019,"4,234.45",Commissioning Services
Abbeyside Care Group,12/02/2019,"6,146.48",Commissioning Services
Abbeyside Nursing Home,05/03/2018,996.00,Commissioning Services
Abbeyside Nursing Home,02/04/2018,996.56,Commissioning Services
Abbeyside Nursing Home,07/05/2018,"1,265.00",Commissioning Services
Abbeyside Nursing Home,04/06/2018,939.70,Commissioning Services
Abc Does Ltd,09/01/2018,555.00,Supplies & Services
Abc Events,17/06/2018,895.00,Supplies & Services
A B Cromdale Ltd,16/08/2018,"1,051.20",Transfer Payments
Abellio Scotrail Limited,16/05/2018,"27,896.80",Short Term Debtors
Abellio Scotrail Limited,08/08/2018,"12,549.85",Short Term Debtors
Abellio Scotrail Limited,07/09/2018,"16,673.20",Short Term Debtors
Abellio Scotrail Limited,07/11/2018,"18,169.60",Short Term Debtors
Abellio Scotrail Limited,06/12/2018,"4,689.00",Transfer Payments
Abellio Scotrail Limited,12/12/2018,"26,691.35",Short Term Debtors
Abellio Scotrail Limited,14/01/2019,"9,784.00",Short Term Debtors
Abellio Scotrail Limited,11/02/2019,"15,737.55",Short Term Debtors
Abellio Scotrail Ltd,16/03/2018,"4,523.75",Short Term Debtors
Abellio Scotrail Ltd,09/04/2018,"18,163.55",Short Term Debtors
Abellio Scotrail Ltd,11/06/2018,"19,746.10",Short Term Debtors
Abellio Scotrail Ltd,04/07/2018,"16,445.45",Short Term Debtors
Abellio Scotrail Ltd,05/10/2018,"21,621.90",Short Term Debtors
Abellio Scotrail Ltd,14/01/2019,"9,784.00",Short Term Debtors
Abeona Consulting Limited,26/10/2018,"7,502.35",Supplies & Services
Aberclean Plant & Sweeper Hire,15/10/2018,"4,500.00",Supplies & Services
Aberclean Plant & Sweeper Hire,24/10/2018,"3,600.00",Supplies & Services
Aberclean Plant & Sweeper Hire,29/10/2018,"4,350.00",Supplies & Services
Aberclean Plant & Sweeper Hire,05/11/2018,"4,500.00",Supplies & Services
Aberclean Plant & Sweeper Hire,12/11/2018,"4,500.00",Supplies & Services
Aberclean Plant & Sweeper Hire,20/11/2018,"4,200.00",Supplies & Services
Aberclean Plant & Sweeper Hire,26/11/2018,"4,125.00",Supplies & Services
Aberclean Plant & Sweeper Hire,30/11/2018,"4,012.50",Supplies & Services
Aberclean Plant & Sweeper Hire,10/12/2018,"3,900.00",Supplies & Services
Aberclean Plant & Sweeper Hire,18/01/2019,612.50,Transport Costs
Aberdeen & Aberdeenshire Tourism Company Ltd,07/06/2018,"130,000.00",Commissioning Services
Aberdeen & Aberdeenshire Tourism Company Ltd,28/06/2018,"130,000.00",Commissioning Services
Aberdeen & Aberdeenshire Tourism Company Ltd,28/06/2018,"25,000.00",Supplies & Services
Aberdeen & Aberdeenshire Tourism Company Ltd,25/09/2018,"130,000.00",Commissioning Services
Aberdeen & Aberdeenshire Tourism Company Ltd,23/10/2018,"12,500.00",Supplies & Services
Aberdeen & Aberdeenshire Tourism Company Ltd,19/12/2018,"130,000.00",Commissioning Services
Aberdeen & Aberdeenshire Tourism Company Ltd,19/12/2018,"12,500.00",Supplies & Services
Aberdeen Alarm Company,03/01/2019,"1,645.00",Premises Costs
Aberdeen Arts Centre Assoc.,19/09/2018,"2,900.00",Supplies & Services
Aberdeen Asset Management Ltd,13/03/2019,"35,573.55",Transfer Payments
Aberdeen Blind Company Limited,28/02/2018,"4,205.00",Supplies & Services
Aberdeen Blind Company Limited,08/06/2018,943.00,Supplies & Services
Aberdeen Blind Company Limited,23/08/2018,532.00,Supplies & Services
Aberdeen Blind Company Limited,19/09/2018,545.00,Capital Expenditure Total
Aberdeen Blind Company Limited,19/10/2018,"2,978.00",Supplies & Services
Aberdeen Blind Company Limited,19/12/2018,846.66,Capital Expenditure Total
Aberdeen Blind Company Limited,19/02/2019,"3,465.00",Supplies & Services
Aberdeen Boiler Services Ltd,17/05/2018,"1,343.62",Transfer Payments
Aberdeen Broomhill Roofing,03/07/2018,"2,000.00",Premises Costs
Aberdeen Broomhill Roofing,13/02/2019,"1,025.00",Premises Costs
Aberdeen Bulawayo Trust,26/04/2018,"21,335.00",Transfer Payments
Aberdeen Bulawayo Trust,10/09/2018,"8,000.00",Transfer Payments
Aberdeen Care And Repair,12/10/2018,721.20,Supplies & Services
Aberdeen Childrens Society,19/04/2018,"5,640.00",Commissioning Services
Aberdeen Citizens Advice Bureau,04/10/2017,"14,067.00",Transfer Payments
Aberdeen Citizens Advice Bureau,25/06/2018,"20,551.50",Commissioning Services
Aberdeen Citizens Advice Bureau,01/07/2018,"17,500.00",Commissioning Services
Aberdeen Citizens Advice Bureau,19/07/2018,"20,551.50",Commissioning Services
Aberdeen Citizens Advice Bureau,25/09/2018,"20,551.50",Commissioning Services
Aberdeen Citizens Advice Bureau,18/12/2018,"20,551.50",Commissioning Services
Aberdeen Community Energy,20/03/2018,"1,489.33",Supplies & Services
Aberdeen Council Of Voluntary Organisations,14/03/2018,"12,209.25",Transfer Payments
Aberdeen Council Of Voluntary Organisations,01/04/2018,"26,241.25",Commissioning Services
Aberdeen Council Of Voluntary Organisations,11/04/2018,"27,500.00",Supplies & Services
Aberdeen Council Of Voluntary Organisations,27/06/2018,"40,339.75",Commissioning Services
Aberdeen Council Of Voluntary Organisations,27/06/2018,"12,209.25",Transfer Payments
Aberdeen Council Of Voluntary Organisations,24/09/2018,"40,339.75",Commissioning Services
Aberdeen Council Of Voluntary Organisations,24/09/2018,"12,209.25",Transfer Payments
Aberdeen Council Of Voluntary Organisations,19/12/2018,"26,241.25",Commissioning Services
Aberdeen Council Of Voluntary Organisations,05/03/2019,"35,000.00",Supplies & Services
Aberdeen Cyrenians Ltd,14/03/2018,"79,421.27",Commissioning Services
Aberdeen Cyrenians Ltd,14/03/2018,"33,900.66",Transfer Payments
Aberdeen Cyrenians Ltd,01/04/2018,"6,439.50",Commissioning Services
Aberdeen Cyrenians Ltd,02/05/2018,"96,239.60",Commissioning Services
Aberdeen Cyrenians Ltd,13/06/2018,"96,239.40",Commissioning Services
Aberdeen Cyrenians Ltd,25/06/2018,"6,439.50",Commissioning Services
Aberdeen Cyrenians Ltd,29/06/2018,"98,803.16",Commissioning Services
Aberdeen Cyrenians Ltd,26/07/2018,"95,331.92",Commissioning Services
Aberdeen Cyrenians Ltd,31/08/2018,"94,387.40",Commissioning Services
Aberdeen Cyrenians Ltd,25/09/2018,"6,439.50",Commissioning Services
Aberdeen Cyrenians Ltd,08/10/2018,"113,202.06",Commissioning Services
Aberdeen Cyrenians Ltd,09/11/2018,"94,387.40",Commissioning Services
Aberdeen Cyrenians Ltd,22/11/2018,"10,155.99",Commissioning Services
Aberdeen Cyrenians Ltd,17/12/2018,"144,333.40",Commissioning Services
Aberdeen Cyrenians Ltd,18/12/2018,"6,439.50",Commissioning Services
Aberdeen Cyrenians Ltd,24/01/2019,"95,776.40",Commissioning Services
Aberdeen Cyrenians Ltd,12/02/2019,"95,776.40",Commissioning Services
Aberdeen Cyrenians Ltd,15/02/2019,"6,611.64",Commissioning Services
Aberdeen Cyrenians Ltd,05/03/2019,"96,721.12",Commissioning Services
Aberdeen Day Project- The Bread Maker,31/12/2017,"5,325.00",Commissioning Services
Aberdeen Day Project- The Bread Maker,31/03/2018,"5,325.00",Commissioning Services
Aberdeen Dementia Resource Centre (Dca151902),03/04/2018,"7,385.49",Commissioning Services
Aberdeen Diamond Drilling,23/06/2018,"1,176.00",Supplies & Services
Aberdeen Diamond Drilling,28/06/2018,504.00,Supplies & Services
Aberdeen Diamond Drilling,28/08/2018,"1,512.00",Supplies & Services
Aberdeen Energy Park Ltd,17/05/2018,"15,567.13",Transfer Payments
Aberdeen Fabrications Ltd,13/03/2019,984.00,Transfer Payments
Aberdeen Fc Community Trust,14/12/2017,750.00,Supplies & Services
Aberdeen Fc Community Trust,20/03/2018,"1,500.00",Supplies & Services
Aberdeen Fc Community Trust,30/05/2018,"19,615.00",Supplies & Services
Aberdeen Fc Community Trust,25/09/2018,"21,000.00",Supplies & Services
Aberdeen Fc Community Trust,02/10/2018,"15,000.00",Supplies & Services
Aberdeen Fc Community Trust,27/11/2018,"27,000.00",Supplies & Services
Aberdeen Fc Community Trust,11/12/2018,"30,000.00",Supplies & Services
Aberdeen Fc Community Trust,20/12/2018,"33,550.00",Supplies & Services
Aberdeen Fc Community Trust,10/02/2019,"6,000.00",Supplies & Services
Aberdeen First Aid School Ltd,11/01/2018,600.00,Short Term Creditors
Aberdeen First Aid School Ltd,23/01/2018,648.00,Administration Costs
Aberdeen First Aid School Ltd,05/02/2018,"1,008.00",Administration Costs
Aberdeen First Aid School Ltd,12/02/2018,864.00,Administration Costs
Aberdeen First Aid School Ltd,15/02/2018,"1,080.00",Administration Costs
Aberdeen First Aid School Ltd,22/02/2018,"2,184.00",Administration Costs
Aberdeen First Aid School Ltd,27/02/2018,864.00,Administration Costs
Aberdeen First Aid School Ltd,05/03/2018,936.00,Administration Costs
Aberdeen First Aid School Ltd,12/03/2018,792.00,Administration Costs
Aberdeen First Aid School Ltd,15/03/2018,560.00,Administration Costs
Aberdeen First Aid School Ltd,19/03/2018,504.00,Administration Costs
Aberdeen First Aid School Ltd,26/03/2018,600.00,Administration Costs
Aberdeen First Aid School Ltd,23/04/2018,864.00,Administration Costs
Aberdeen First Aid School Ltd,30/04/2018,720.00,Administration Costs
Aberdeen First Aid School Ltd,07/05/2018,576.00,Administration Costs
Aberdeen First Aid School Ltd,10/05/2018,"1,728.00",Administration Costs
Aberdeen First Aid School Ltd,14/05/2018,576.00,Administration Costs
Aberdeen First Aid School Ltd,21/05/2018,720.00,Administration Costs
Aberdeen First Aid School Ltd,04/06/2018,720.00,Administration Costs
Aberdeen First Aid School Ltd,11/06/2018,936.00,Administration Costs
Aberdeen First Aid School Ltd,18/06/2018,648.00,Administration Costs
Aberdeen First Aid School Ltd,21/06/2018,864.00,Administration Costs
Aberdeen First Aid School Ltd,06/07/2018,864.00,Administration Costs
Aberdeen First Aid School Ltd,20/09/2018,648.00,Administration Costs
Aberdeen First Aid School Ltd,01/10/2018,720.00,Administration Costs
Aberdeen First Aid School Ltd,08/10/2018,720.00,Administration Costs
Aberdeen First Aid School Ltd,29/10/2018,504.00,Administration Costs
Aberdeen First Aid School Ltd,05/11/2018,792.00,Administration Costs
Aberdeen First Aid School Ltd,16/11/2018,"3,528.00",Administration Costs
Aberdeen First Aid School Ltd,23/11/2018,576.00,Administration Costs
Aberdeen First Aid School Ltd,30/11/2018,504.00,Administration Costs
Aberdeen First Aid School Ltd,06/12/2018,600.00,Administration Costs
Aberdeen First Aid School Ltd,10/12/2018,600.00,Administration Costs
Aberdeen First Aid School Ltd,21/01/2019,792.00,Administration Costs
Aberdeen First Aid School Ltd,28/01/2019,864.00,Administration Costs
Aberdeen First Aid School Ltd,04/02/2019,864.00,Administration Costs
Aberdeen First Aid School Ltd,11/02/2019,720.00,Administration Costs
Aberdeen First Aid School Ltd,25/02/2019,864.00,Administration Costs
Aberdeen First Aid School Ltd,04/03/2019,792.00,Administration Costs
Aberdeen Football Club,14/12/2018,591.00,Supplies & Services
Aberdeen Football Club,19/02/2019,"9,820.00",Supplies & Services
Aberdeen Foyer,27/03/2018,"54,000.00",Supplies & Services
Aberdeen Foyer,02/04/2018,"22,257.37",Commissioning Services
Aberdeen Foyer,09/04/2018,"3,158.41",Transfer Payments
Aberdeen Foyer,11/04/2018,"1,306.52",Commissioning Services
Aberdeen Foyer,17/04/2018,"24,000.00",Commissioning Services
Aberdeen Foyer,23/04/2018,"8,113.00",Commissioning Services
Aberdeen Foyer,23/04/2018,708.12,Transfer Payments
Aberdeen Foyer,30/04/2018,"22,257.37",Commissioning Services
Aberdeen Foyer,01/05/2018,726.64,Commissioning Services
Aberdeen Foyer,21/05/2018,708.12,Transfer Payments
Aberdeen Foyer,28/05/2018,"22,257.37",Commissioning Services
Aberdeen Foyer,20/06/2018,"175,000.00",Supplies & Services
Aberdeen Foyer,25/06/2018,"22,257.37",Commissioning Services
Aberdeen Foyer,04/07/2018,799.20,Commissioning Services
Aberdeen Foyer,23/07/2018,"30,370.37",Commissioning Services
Aberdeen Foyer,04/08/2018,799.20,Commissioning Services
Aberdeen Foyer,20/08/2018,"22,257.37",Commissioning Services
Aberdeen Foyer,04/09/2018,799.20,Commissioning Services
Aberdeen Foyer,17/09/2018,"22,257.37",Commissioning Services
Aberdeen Foyer,01/10/2018,"2,704.33",Commissioning Services
Aberdeen Foyer,10/10/2018,"5,408.67",Commissioning Services
Aberdeen Foyer,15/10/2018,"22,257.37",Commissioning Services
Aberdeen Foyer,12/11/2018,"22,257.37",Commissioning Services
Aberdeen Foyer,10/12/2018,"22,257.37",Commissioning Services
Aberdeen Foyer,07/01/2019,"22,257.37",Commissioning Services
Aberdeen Foyer,11/01/2019,"80,000.00",Supplies & Services
Aberdeen Foyer,04/02/2019,"22,257.37",Commissioning Services
Aberdeen Foyer,04/03/2019,"22,257.37",Commissioning Services
Aberdeen Grammar School,18/06/2018,"1,500.00",Supplies & Services
Aberdeen & Grampian Chamber Of Commerce,31/12/2017,"3,500.00",Other Grant-Reimburse-Contrib.
Aberdeen & Grampian Chamber Of Commerce,13/02/2018,"3,000.00",Administration Costs
Aberdeen & Grampian Chamber Of Commerce,13/02/2018,"2,475.00",Supplies & Services
Aberdeen & Grampian Chamber Of Commerce,02/03/2018,"7,000.00",Supplies & Services
Aberdeen & Grampian Chamber Of Commerce,14/03/2018,"10,000.00",Transfer Payments
Aberdeen & Grampian Chamber Of Commerce,22/03/2018,"1,000.00",Transfer Payments
Aberdeen & Grampian Chamber Of Commerce,17/05/2018,"4,000.00",Supplies & Services
Aberdeen & Grampian Chamber Of Commerce,23/07/2018,"2,475.00",Supplies & Services
Aberdeen & Grampian Chamber Of Commerce,31/07/2018,"3,000.00",Other Grant-Reimburse-Contrib.
Aberdeen & Grampian Chamber Of Commerce,09/11/2018,"20,000.00",Transfer Payments
Aberdeen Harbour Board,04/04/2018,"19,363.85",Premises Costs
Aberdeen Harbour Board,19/04/2018,"44,173.98",Transfer Payments
Aberdeen Harbour Board,02/10/2018,"19,363.85",Premises Costs
Aberdeen Hearing Services,14/02/2018,"1,267.44",Supplies & Services
Aberdeen Hearing Services,18/01/2019,"2,225.00",Supplies & Services
Aberdeen Heat & Power,28/02/2018,"19,429.88",Capital Expenditure Total
Aberdeen Heat & Power,28/02/2018,"73,012.06",Premises Costs
Aberdeen Heat & Power,28/02/2018,"45,000.00",Supplies & Services
Aberdeen Heat & Power,31/03/2018,"163,838.00",Capital Expenditure Total
Aberdeen Heat & Power,31/03/2018,"154,387.51",Premises Costs
Aberdeen Heat & Power,13/04/2018,"1,006.50",Capital Expenditure Total
Aberdeen Heat & Power,13/04/2018,"7,063.47",Premises Costs
Aberdeen Heat & Power,24/04/2018,"601,887.04",Supplies & Services
Aberdeen Heat & Power,30/04/2018,"129,263.72",Premises Costs
Aberdeen Heat & Power,10/05/2018,584.08,Premises Costs
Aberdeen Heat & Power,18/05/2018,"37,957.96",Supplies & Services
Aberdeen Heat & Power,30/05/2018,"71,438.52",Supplies & Services
Aberdeen Heat & Power,31/05/2018,"138,124.63",Premises Costs
Aberdeen Heat & Power,14/06/2018,"21,597.20",Capital Expenditure Total
Aberdeen Heat & Power,20/06/2018,"7,253.18",Capital Expenditure Total
Aberdeen Heat & Power,30/06/2018,"110,942.16",Premises Costs
Aberdeen Heat & Power,23/07/2018,"321,046.91",Capital Expenditure Total
Aberdeen Heat & Power,24/07/2018,"15,723.66",Capital Expenditure Total
Aberdeen Heat & Power,31/07/2018,"104,786.66",Premises Costs
Aberdeen Heat & Power,07/08/2018,"300,000.00",Capital Expenditure Total
Aberdeen Heat & Power,05/09/2018,"17,351.77",Capital Expenditure Total
Aberdeen Heat & Power,06/09/2018,"135,629.84",Premises Costs
Aberdeen Heat & Power,13/09/2018,"12,967.84",Capital Expenditure Total
Aberdeen Heat & Power,27/09/2018,728.20,Capital Expenditure Total
Aberdeen Heat & Power,30/09/2018,"120,538.63",Premises Costs
Aberdeen Heat & Power,31/10/2018,"1,762.85",Capital Expenditure Total
Aberdeen Heat & Power,31/10/2018,"127,847.73",Premises Costs
Aberdeen Heat & Power,14/11/2018,"23,335.01",Capital Expenditure Total
Aberdeen Heat & Power,22/11/2018,"2,215.40",Capital Expenditure Total
Aberdeen Heat & Power,30/11/2018,"153,390.38",Premises Costs
Aberdeen Heat & Power,17/12/2018,"12,548.60",Capital Expenditure Total
Aberdeen Heat & Power,20/12/2018,588.50,Capital Expenditure Total
Aberdeen Heat & Power,31/12/2018,"144,596.77",Premises Costs
Aberdeen Heat & Power,08/01/2019,"11,661.49",Capital Expenditure Total
Aberdeen Heat & Power,31/01/2019,"4,140.80",Capital Expenditure Total
Aberdeen Heat & Power,31/01/2019,"76,640.95",Premises Costs
Aberdeen Heat & Power,04/02/2019,"5,942.48",Capital Expenditure Total
Aberdeen Heat & Power,28/02/2019,"1,800.04",Capital Expenditure Total
Aberdeen Home Rental Llp,22/03/2018,"1,560.00",Commissioning Services
Aberdeen Home Rental Llp,05/09/2018,"1,560.00",Commissioning Services
Aberdeen Home Rental Llp,06/12/2018,"1,560.00",Commissioning Services
Aberdeen Illness And Disability Advice Servic,17/04/2018,"8,232.25",Commissioning Services
Aberdeen Illness And Disability Advice Servic,25/06/2018,"8,232.25",Commissioning Services
Aberdeen Illness And Disability Advice Servic,25/09/2018,"8,232.25",Commissioning Services
Aberdeen Illness And Disability Advice Servic,18/12/2018,"8,232.25",Commissioning Services
Aberdeen Inspired,09/01/2018,"1,714.00",Supplies & Services
Aberdeen Inspired,01/02/2018,"4,615.36",Capital Expenditure Total
Aberdeen Inspired,14/03/2018,"6,298.70",Short Term Creditors
Aberdeen Inspired,21/03/2018,"6,980.00",Supplies & Services
Aberdeen Inspired,30/03/2018,"16,750.00",Transfer Payments
Aberdeen Inspired,31/03/2018,"2,893.01",Short Term Creditors
Aberdeen Inspired,06/04/2018,"150,000.00",Supplies & Services
Aberdeen Inspired,03/05/2018,"46,458.82",Short Term Creditors
Aberdeen Inspired,09/05/2018,"2,250.00",Supplies & Services
Aberdeen Inspired,05/06/2018,"375,862.82",Short Term Creditors
Aberdeen Inspired,22/06/2018,"4,900.00",Capital Expenditure Total
Aberdeen Inspired,03/07/2018,"181,821.81",Short Term Creditors
Aberdeen Inspired,04/07/2018,"11,750.00",Supplies & Services
Aberdeen Inspired,13/08/2018,"89,183.34",Short Term Creditors
Aberdeen Inspired,05/09/2018,"5,000.00",Supplies & Services
Aberdeen Inspired,07/09/2018,"82,715.27",Short Term Creditors
Aberdeen Inspired,04/10/2018,"16,750.00",Supplies & Services
Aberdeen Inspired,09/10/2018,"57,149.43",Short Term Creditors
Aberdeen Inspired,07/01/2019,"16,750.00",Supplies & Services
Aberdeen Inspired,08/01/2019,"1,072.00",Supplies & Services
Aberdeen International Airport,17/05/2018,780.57,Transfer Payments
Aberdeen International Airport,25/05/2018,667.59,Transfer Payments
Aberdeen International Airport,14/02/2019,"13,021.78",Transfer Payments
Aberdeen International Airport,13/03/2019,"1,803.60",Transfer Payments
Aberdeen Journals Ltd,24/02/2018,504.50,Administration Costs
Aberdeen Journals Ltd,13/03/2018,555.50,Administration Costs
Aberdeen Journals Ltd,15/03/2018,860.00,Administration Costs
Aberdeen Journals Ltd,20/03/2018,"5,945.00",Administration Costs
Aberdeen Journals Ltd,27/03/2018,"1,493.50",Administration Costs
Aberdeen Journals Ltd,31/03/2018,"1,213.00",Administration Costs
Aberdeen Journals Ltd,03/04/2018,587.50,Administration Costs
Aberdeen Journals Ltd,06/04/2018,648.00,Administration Costs
Aberdeen Journals Ltd,10/04/2018,"1,714.50",Administration Costs
Aberdeen Journals Ltd,17/04/2018,"2,207.50",Administration Costs
Aberdeen Journals Ltd,19/04/2018,575.00,Administration Costs
Aberdeen Journals Ltd,24/04/2018,785.00,Administration Costs
Aberdeen Journals Ltd,01/05/2018,581.00,Administration Costs
Aberdeen Journals Ltd,08/05/2018,"1,213.00",Administration Costs
Aberdeen Journals Ltd,09/05/2018,612.90,Administration Costs
Aberdeen Journals Ltd,15/05/2018,"1,850.50",Administration Costs
Aberdeen Journals Ltd,22/05/2018,"2,414.50",Administration Costs
Aberdeen Journals Ltd,26/05/2018,"5,680.00",Administration Costs
Aberdeen Journals Ltd,05/06/2018,"3,349.50",Administration Costs
Aberdeen Journals Ltd,12/06/2018,"1,748.00",Administration Costs
Aberdeen Journals Ltd,13/06/2018,741.50,Supplies & Services
Aberdeen Journals Ltd,14/06/2018,"1,651.50",Supplies & Services
Aberdeen Journals Ltd,15/06/2018,807.30,Administration Costs
Aberdeen Journals Ltd,19/06/2018,802.00,Administration Costs
Aberdeen Journals Ltd,25/06/2018,587.50,Administration Costs
Aberdeen Journals Ltd,26/06/2018,"1,040.00",Administration Costs
Aberdeen Journals Ltd,27/06/2018,720.54,Administration Costs
Aberdeen Journals Ltd,29/06/2018,"1,316.50",Administration Costs
Aberdeen Journals Ltd,30/06/2018,"1,417.00",Administration Costs
Aberdeen Journals Ltd,10/07/2018,"1,417.00",Administration Costs
Aberdeen Journals Ltd,11/07/2018,"1,652.00",Administration Costs
Aberdeen Journals Ltd,12/07/2018,581.00,Administration Costs
Aberdeen Journals Ltd,17/07/2018,555.50,Administration Costs
Aberdeen Journals Ltd,18/07/2018,501.00,Administration Costs
Aberdeen Journals Ltd,19/07/2018,852.50,Supplies & Services
Aberdeen Journals Ltd,22/07/2018,"1,056.00",Administration Costs
Aberdeen Journals Ltd,24/07/2018,"2,156.50",Administration Costs
Aberdeen Journals Ltd,28/07/2018,"1,417.00",Administration Costs
Aberdeen Journals Ltd,01/08/2018,538.00,Administration Costs
Aberdeen Journals Ltd,07/08/2018,"2,258.50",Administration Costs
Aberdeen Journals Ltd,14/08/2018,"3,327.00",Administration Costs
Aberdeen Journals Ltd,15/08/2018,861.50,Administration Costs
Aberdeen Journals Ltd,25/08/2018,"2,537.00",Administration Costs
Aberdeen Journals Ltd,27/08/2018,587.50,Administration Costs
Aberdeen Journals Ltd,30/08/2018,"1,627.50",Administration Costs
Aberdeen Journals Ltd,05/09/2018,530.00,Administration Costs
Aberdeen Journals Ltd,12/09/2018,"1,536.00",Administration Costs
Aberdeen Journals Ltd,21/09/2018,587.50,Supplies & Services
Aberdeen Journals Ltd,25/09/2018,"1,663.50",Administration Costs
Aberdeen Journals Ltd,25/09/2018,965.70,Other Income
Aberdeen Journals Ltd,26/09/2018,785.00,Administration Costs
Aberdeen Journals Ltd,03/10/2018,"1,652.00",Administration Costs
Aberdeen Journals Ltd,05/10/2018,587.50,Supplies & Services
Aberdeen Journals Ltd,16/10/2018,606.50,Administration Costs
Aberdeen Journals Ltd,18/10/2018,587.50,Supplies & Services
Aberdeen Journals Ltd,22/10/2018,587.50,Administration Costs
Aberdeen Journals Ltd,23/10/2018,"1,289.50",Administration Costs
Aberdeen Journals Ltd,24/10/2018,"2,309.50",Administration Costs
Aberdeen Journals Ltd,27/10/2018,"1,040.00",Administration Costs
Aberdeen Journals Ltd,29/10/2018,587.50,Administration Costs
Aberdeen Journals Ltd,30/10/2018,587.50,Administration Costs
Aberdeen Journals Ltd,31/10/2018,"1,000.00",Administration Costs
Aberdeen Journals Ltd,02/11/2018,587.50,Supplies & Services
Aberdeen Journals Ltd,06/11/2018,"1,755.00",Administration Costs
Aberdeen Journals Ltd,07/11/2018,"1,448.00",Administration Costs
Aberdeen Journals Ltd,15/11/2018,575.00,Administration Costs
Aberdeen Journals Ltd,19/11/2018,"2,000.00",Supplies & Services
Aberdeen Journals Ltd,20/11/2018,"1,006.00",Administration Costs
Aberdeen Journals Ltd,21/11/2018,"4,100.00",Administration Costs
Aberdeen Journals Ltd,24/11/2018,"2,564.50",Administration Costs
Aberdeen Journals Ltd,28/11/2018,504.50,Administration Costs
Aberdeen Journals Ltd,03/12/2018,768.00,Administration Costs
Aberdeen Journals Ltd,05/12/2018,581.00,Administration Costs
Aberdeen Journals Ltd,06/12/2018,686.00,Administration Costs
Aberdeen Journals Ltd,12/12/2018,504.50,Administration Costs
Aberdeen Journals Ltd,13/12/2018,575.00,Administration Costs
Aberdeen Journals Ltd,19/12/2018,587.50,Administration Costs
Aberdeen Journals Ltd,20/12/2018,587.50,Administration Costs
Aberdeen Journals Ltd,22/12/2018,587.50,Administration Costs
Aberdeen Journals Ltd,24/12/2018,530.00,Administration Costs
Aberdeen Journals Ltd,27/12/2018,587.50,Administration Costs
Aberdeen Journals Ltd,28/12/2018,587.50,Administration Costs
Aberdeen Journals Ltd,29/12/2018,587.50,Administration Costs
Aberdeen Journals Ltd,31/12/2018,581.00,Administration Costs
Aberdeen Journals Ltd,03/01/2019,587.50,Administration Costs
Aberdeen Journals Ltd,06/01/2019,"1,241.00",Administration Costs
Aberdeen Journals Ltd,07/01/2019,587.50,Administration Costs
Aberdeen Journals Ltd,08/01/2019,587.50,Supplies & Services
Aberdeen Journals Ltd,09/01/2019,"1,372.50",Administration Costs
Aberdeen Journals Ltd,13/01/2019,530.00,Administration Costs
Aberdeen Journals Ltd,17/01/2019,"1,040.00",Administration Costs
Aberdeen Journals Ltd,21/01/2019,700.00,Administration Costs
Aberdeen Journals Ltd,22/01/2019,575.00,Administration Costs
Aberdeen Journals Ltd,23/01/2019,700.00,Administration Costs
Aberdeen Journals Ltd,26/01/2019,723.00,Administration Costs
Aberdeen Journals Ltd,28/01/2019,"1,423.50",Administration Costs
Aberdeen Journals Ltd,03/02/2019,989.00,Administration Costs
Aberdeen Journals Ltd,04/02/2019,723.00,Administration Costs
Aberdeen Journals Ltd,05/02/2019,955.00,Administration Costs
Aberdeen Journals Ltd,10/02/2019,836.00,Administration Costs
Aberdeen Journals Ltd,10/02/2019,580.00,Supplies & Services
Aberdeen Journals Ltd,17/02/2019,"1,346.00",Administration Costs
Aberdeen Journals Ltd,19/02/2019,"1,184.00",Administration Costs
Aberdeen Journals Ltd,23/02/2019,"1,502.00",Administration Costs
Aberdeen Journals Ltd,03/03/2019,"1,924.00",Administration Costs
Aberdeen Journals Ltd,05/03/2019,606.50,Administration Costs
Aberdeen Journals Ltd,05/03/2019,871.00,Supplies & Services
Aberdeen Lads Club,18/04/2018,"3,750.00",Commissioning Services
Aberdeen Lads Club,18/04/2018,"9,500.00",Transfer Payments
Aberdeen Lads Club,26/06/2018,"30,989.25",Commissioning Services
Aberdeen Lads Club,18/07/2018,"30,989.25",Commissioning Services
Aberdeen Lads Club,12/11/2018,"9,500.00",Transfer Payments
Aberdeen Lads Club,18/12/2018,"30,989.25",Commissioning Services
Aberdeen Lads Club Community Project,20/03/2018,"1,489.33",Supplies & Services
Aberdeen Lads Club Community Project,16/05/2018,"30,989.25",Commissioning Services
Aberdeen Lads Club Community Project,17/07/2018,"1,000.00",Transfer Payments
Aberdeen Mastic And Services Ltd,19/03/2018,900.00,Commissioning Services
Aberdeen Mastic And Services Ltd,30/07/2018,800.00,Commissioning Services
Aberdeen Mastic And Services Ltd,20/08/2018,700.00,Commissioning Services
Aberdeen Multicultural Centre,15/03/2018,"1,875.00",Transfer Payments
Aberdeen Multicultural Centre,30/04/2018,"3,750.00",Transfer Payments
Aberdeen Multicultural Centre,17/07/2018,"3,750.00",Transfer Payments
Aberdeen Multicultural Centre,17/08/2018,"7,500.00",Transfer Payments
Aberdeen Multicultural Centre,29/10/2018,"3,750.00",Transfer Payments
Aberdeen Offshore Windfarm Ltd,31/08/2018,"11,318.79",Transfer Payments
Aberdeen Parent Council Forum,23/04/2018,"6,278.10",Supplies & Services
Aberdeen Performing Arts,01/12/2017,"1,270.00",Supplies & Services
Aberdeen Performing Arts,19/04/2018,"243,750.00",Transfer Payments
Aberdeen Performing Arts,03/05/2018,"1,950.83",Supplies & Services
Aberdeen Performing Arts,22/05/2018,"27,500.00",Supplies & Services
Aberdeen Performing Arts,26/06/2018,"1,150.00",Transfer Payments
Aberdeen Performing Arts,02/07/2018,"28,679.00",Supplies & Services
Aberdeen Performing Arts,02/07/2018,"243,750.00",Transfer Payments
Aberdeen Performing Arts,26/09/2018,"2,375.00",Supplies & Services
Aberdeen Performing Arts,01/10/2018,"27,500.00",Supplies & Services
Aberdeen Performing Arts,01/10/2018,"243,750.00",Transfer Payments
Aberdeen Performing Arts,02/10/2018,"5,175.00",Supplies & Services
Aberdeen Performing Arts,16/10/2018,"6,270.83",Supplies & Services
Aberdeen Performing Arts,15/11/2018,"2,437.50",Supplies & Services
Aberdeen Performing Arts,22/11/2018,"1,983.33",Supplies & Services
Aberdeen Performing Arts,26/11/2018,"1,606.00",Supplies & Services
Aberdeen Performing Arts,13/12/2018,"1,150.00",Transfer Payments
Aberdeen Performing Arts,04/01/2019,"27,500.00",Supplies & Services
Aberdeen Performing Arts,04/01/2019,"243,750.00",Transfer Payments
Aberdeen Performing Arts,07/01/2019,700.00,Supplies & Services
Aberdeen Picture Palaces Ltd,19/04/2018,"8,299.96",Transfer Payments
Aberdeen Picture Palaces Ltd,31/08/2018,"5,575.35",Transfer Payments
Aberdeen Play Forum,19/09/2018,"2,500.00",Supplies & Services
Aberdeen Play Forum,30/09/2018,"18,982.00",Supplies & Services
Aberdeen Play Forum,28/01/2019,"8,130.00",Supplies & Services
Aberdeen Precision Training Limited,29/05/2018,"11,000.00",Supplies & Services
Aberdeen Precision Training Limited,10/09/2018,"20,350.00",Supplies & Services
Aberdeen Renewable Energy Group,17/10/2017,"3,500.00",Administration Costs
Aberdeen Roads Ltd,05/03/2018,"90,640.48",Supplies & Services
Aberdeen Roads Ltd,12/04/2018,"90,784.19",Supplies & Services
Aberdeen Roads Ltd,17/05/2018,"90,784.19",Supplies & Services
Aberdeen Roads Ltd,16/06/2018,"90,784.19",Supplies & Services
Aberdeen Roads Ltd,02/07/2018,"369,900.86",Supplies & Services
Aberdeen Roads Ltd,01/08/2018,"402,917.52",Supplies & Services
Aberdeen Roads Ltd,21/09/2018,"1,233,069.72",Supplies & Services
Aberdeen Roads Ltd,08/10/2018,"848,036.34",Supplies & Services
Aberdeen Roads Ltd,01/11/2018,"848,036.34",Supplies & Services
Aberdeen Roads Ltd,01/12/2018,"1,165,385.34",Supplies & Services
Aberdeen Roads Ltd,11/01/2019,"4,080,156.63",Supplies & Services
Aberdeen Roads Ltd,14/02/2019,"2,637,245.79",Supplies & Services
Aberdeen Roads Ltd,21/02/2019,"485,586.54",Supplies & Services
Aberdeen Schools Rowing Association,18/12/2018,"10,000.00",Supplies & Services
Aberdeen Science Centre,25/06/2018,"3,750.00",Transfer Payments
Aberdeen Science Centre,07/01/2019,"3,750.00",Transfer Payments
Aberdeenshire Council,07/09/2016,"3,100.00",Commissioning Services
Aberdeenshire Council,03/01/2018,"3,100.00",Commissioning Services
Aberdeenshire Council,30/01/2018,"8,192.86",Commissioning Services
Aberdeenshire Council,21/02/2018,"3,100.00",Commissioning Services
Aberdeenshire Council,21/02/2018,995.67,Staff Costs
Aberdeenshire Council,22/02/2018,"2,696.38",Premises Costs
Aberdeenshire Council,13/03/2018,"14,647.59",Staff Costs
Aberdeenshire Council,14/03/2018,"15,363.00",Supplies & Services
Aberdeenshire Council,14/03/2018,"9,824.21",Transport Costs
Aberdeenshire Council,19/03/2018,"5,000.00",Supplies & Services
Aberdeenshire Council,21/03/2018,538.00,Capital Expenditure Total
Aberdeenshire Council,21/03/2018,"15,500.00",Commissioning Services
Aberdeenshire Council,21/03/2018,624.00,Staff Costs
Aberdeenshire Council,21/03/2018,"187,411.00",Supplies & Services
Aberdeenshire Council,22/03/2018,"9,985.11",Staff Costs
Aberdeenshire Council,22/03/2018,"12,024.00",Transport Costs
Aberdeenshire Council,26/03/2018,"2,087.41",Administration Costs
Aberdeenshire Council,26/03/2018,"177,000.00",Commissioning Services
Aberdeenshire Council,29/03/2018,"4,840.05",Staff Costs
Aberdeenshire Council,29/03/2018,"23,076.52",Supplies & Services
Aberdeenshire Council,02/04/2018,"1,800.00",Administration Costs
Aberdeenshire Council,03/04/2018,"4,679.78",Commissioning Services
Aberdeenshire Council,05/04/2018,"53,137.18",Supplies & Services
Aberdeenshire Council,10/04/2018,"375,000.00",Capital Expenditure Total
Aberdeenshire Council,10/04/2018,"233,977.34",Commissioning Services
Aberdeenshire Council,12/04/2018,"4,428.00",Premises Costs
Aberdeenshire Council,13/04/2018,"64,572.30",Supplies & Services
Aberdeenshire Council,18/04/2018,"12,456.00",Commissioning Services
Aberdeenshire Council,18/04/2018,"15,395.21",Staff Costs
Aberdeenshire Council,26/04/2018,"90,300.45",Commissioning Services
Aberdeenshire Council,28/04/2018,"3,128.00",Commissioning Services
Aberdeenshire Council,15/05/2018,600.00,Administration Costs
Aberdeenshire Council,23/05/2018,"6,200.00",Commissioning Services
Aberdeenshire Council,25/05/2018,"8,557.10",Supplies & Services
Aberdeenshire Council,28/05/2018,"1,800.00",Administration Costs
Aberdeenshire Council,01/06/2018,"2,168.54",Supplies & Services
Aberdeenshire Council,11/06/2018,"47,500.00",Supplies & Services
Aberdeenshire Council,13/06/2018,"11,167.14",Commissioning Services
Aberdeenshire Council,04/07/2018,539.88,Supplies & Services
Aberdeenshire Council,11/07/2018,"9,860.00",Commissioning Services
Aberdeenshire Council,12/07/2018,"500,000.00",Capital Expenditure Total
Aberdeenshire Council,13/07/2018,"15,299.13",Staff Costs
Aberdeenshire Council,13/07/2018,"12,130.86",Transport Costs
Aberdeenshire Council,18/07/2018,"1,877.54",Supplies & Services
Aberdeenshire Council,18/07/2018,"6,845.00",Transfer Payments
Aberdeenshire Council,08/08/2018,"9,860.00",Commissioning Services
Aberdeenshire Council,15/08/2018,"47,500.00",Supplies & Services
Aberdeenshire Council,16/08/2018,"6,028.75",Staff Costs
Aberdeenshire Council,16/08/2018,"17,750.00",Supplies & Services
Aberdeenshire Council,22/08/2018,"1,130.63",Supplies & Services
Aberdeenshire Council,31/08/2018,737.50,Supplies & Services
Aberdeenshire Council,05/09/2018,"9,860.00",Commissioning Services
Aberdeenshire Council,03/10/2018,"6,760.00",Commissioning Services
Aberdeenshire Council,09/10/2018,"500,000.00",Capital Expenditure Total
Aberdeenshire Council,09/10/2018,"13,800.00",Commissioning Services
Aberdeenshire Council,17/10/2018,"2,400.00",Administration Costs
Aberdeenshire Council,30/10/2018,"15,916.50",Supplies & Services
Aberdeenshire Council,31/10/2018,"9,860.00",Commissioning Services
Aberdeenshire Council,05/11/2018,"3,360.00",Supplies & Services
Aberdeenshire Council,16/11/2018,"4,719.85",Commissioning Services
Aberdeenshire Council,28/11/2018,"9,860.00",Commissioning Services
Aberdeenshire Council,28/11/2018,"60,057.16",Supplies & Services
Aberdeenshire Council,28/11/2018,"8,166.99",Transport Costs
Aberdeenshire Council,30/11/2018,900.00,Transport Costs
Aberdeenshire Council,04/12/2018,"8,256.27",Commissioning Services
Aberdeenshire Council,06/12/2018,831.51,Supplies & Services
Aberdeenshire Council,31/12/2018,"16,050.00",Supplies & Services
Aberdeenshire Council,03/01/2019,"1,568.57",Commissioning Services
Aberdeenshire Council,03/01/2019,763.20,Transport Costs
Aberdeenshire Council,08/01/2019,"6,200.00",Commissioning Services
Aberdeenshire Council,09/01/2019,600.00,Administration Costs
Aberdeenshire Council,11/01/2019,"1,245.25",Commissioning Services
Aberdeenshire Council,17/01/2019,"500,000.00",Capital Expenditure Total
Aberdeenshire Council,22/01/2019,"31,254.43",Staff Costs
Aberdeenshire Council,23/01/2019,"6,200.00",Commissioning Services
Aberdeenshire Council,25/01/2019,"7,973.49",Transport Costs
Aberdeenshire Council,01/02/2019,"1,028.58",Supplies & Services
Aberdeenshire Council,05/02/2019,"5,224.83",Staff Costs
Aberdeenshire Council,04/03/2019,633.55,Supplies & Services
Aberdeen Sinfonietta,14/09/2018,"2,050.00",Transfer Payments
Aberdeen Sinfonietta,13/12/2018,"2,050.00",Transfer Payments
Aberdeen Sports Village Ltd,30/04/2018,"247,863.25",Transfer Payments
Aberdeen Sports Village Ltd,04/05/2018,"1,900.00",Commissioning Services
Aberdeen Sports Village Ltd,31/07/2018,"1,463.70",Supplies & Services
Aberdeen Sports Village Ltd,01/08/2018,"247,863.25",Transfer Payments
Aberdeen Sports Village Ltd,31/08/2018,"1,900.00",Commissioning Services
Aberdeen Sports Village Ltd,30/11/2018,"109,919.17",Supplies & Services
Aberdeen Sports Village Ltd,30/11/2018,"137,944.08",Transfer Payments
Aberdeen Technical Services Ltd,12/03/2018,596.55,Premises Costs
Aberdeen Technical Services Ltd,27/03/2018,"1,229.54",Premises Costs
Aberdeen Technical Services Ltd,28/03/2018,810.00,Premises Costs
Aberdeen Technical Services Ltd,30/03/2018,723.08,Supplies & Services
Aberdeen Technical Services Ltd,11/04/2018,953.36,Capital Expenditure Total
Aberdeen Technical Services Ltd,11/04/2018,672.35,Premises Costs
Aberdeen Technical Services Ltd,12/04/2018,665.88,Supplies & Services
Aberdeen Technical Services Ltd,18/04/2018,510.00,Premises Costs
Aberdeen Technical Services Ltd,25/04/2018,537.00,Premises Costs
Aberdeen Technical Services Ltd,08/06/2018,682.50,Premises Costs
Aberdeen Technical Services Ltd,26/06/2018,672.00,Premises Costs
Aberdeen Technical Services Ltd,17/07/2018,835.00,Supplies & Services
Aberdeen Technical Services Ltd,24/07/2018,611.56,Premises Costs
Aberdeen Technical Services Ltd,25/07/2018,503.61,Supplies & Services
Aberdeen Technical Services Ltd,26/07/2018,689.01,Supplies & Services
Aberdeen Technical Services Ltd,27/07/2018,582.00,Premises Costs
Aberdeen Technical Services Ltd,09/08/2018,585.00,Premises Costs
Aberdeen Technical Services Ltd,10/09/2018,552.00,Supplies & Services
Aberdeen Technical Services Ltd,15/11/2018,611.56,Premises Costs
Aberdeen Technical Services Ltd,27/11/2018,815.00,Premises Costs
Aberdeen Technical Services Ltd,30/11/2018,"1,276.00",Supplies & Services
Aberdeen Technical Services Ltd,05/12/2018,"2,234.49",Premises Costs
Aberdeen Technical Services Ltd,09/01/2019,"4,088.00",Premises Costs
Aberdeen Technical Services Ltd,14/01/2019,579.46,Supplies & Services
Aberdeen Technical Services Ltd,21/01/2019,"1,065.00",Premises Costs
Aberdeen Tile Distributors Limited,18/04/2018,"1,099.46",Supplies & Services
Aberdeen Tile Distributors Limited,14/02/2019,"1,160.68",Transfer Payments
Aberdeen Trades Council,13/03/2019,"13,000.20",Transfer Payments
Aberdeen Training Services,13/04/2018,745.00,Supplies & Services
Aberdeen Training Services,27/01/2019,"1,050.00",Staff Costs
Aberdeen Trophy Centre Ltd,26/06/2018,810.00,Supplies & Services
Aberdeen Trophy Centre Ltd,21/09/2018,"1,222.45",Supplies & Services
Aberdeen Universities Officers Training Corp,27/06/2018,"4,950.00",Supplies & Services
Aberdeen Urban Studies Trust,05/02/2019,"5,688.63",Capital Expenditure Total
Aberdeen Volks Centre Ltd,14/02/2019,"7,059.80",Transfer Payments
Aberdeen Ymca,30/11/2018,"7,455.00",Supplies & Services
Aberdein Considine And Co,31/05/2018,"1,275.00",Administration Costs
Aberdein Considine And Co,11/07/2018,741.00,Commissioning Services
Aberdein Considine And Co,15/08/2018,"2,240.78",Premises Costs
Aberdein Considine And Co,11/10/2018,"5,138.53",Administration Costs
Aberdein Considine And Co,26/10/2018,"3,295.19",Administration Costs
Aberdein Considine And Co,14/11/2018,"1,168.75",Premises Costs
Aberdein Considine And Co,13/12/2018,"1,207.20",Premises Costs
Aberdein Considine And Co,10/01/2019,"1,464.00",Premises Costs
Aberdein Considine And Co,21/02/2019,"1,792.39",Administration Costs
Aberdein Considine And Co,25/02/2019,"5,114.16",Premises Costs
Aberlea House,19/03/2018,"24,702.10",Commissioning Services
Aberlea House,23/04/2018,"19,823.76",Commissioning Services
Aberlea House,21/05/2018,"19,823.76",Commissioning Services
Aberlea House,18/06/2018,"24,658.54",Commissioning Services
Aberlea House,23/07/2018,"19,217.40",Commissioning Services
Aberlea House,20/08/2018,"19,786.48",Commissioning Services
Aberlea House,17/09/2018,"24,733.10",Commissioning Services
Aberlea House,22/10/2018,"19,786.48",Commissioning Services
Aberlea House,19/11/2018,"19,451.48",Commissioning Services
Aberlea House,17/12/2018,"24,733.10",Commissioning Services
Aberlea House,21/01/2019,"24,139.54",Commissioning Services
Aberlea House,18/02/2019,"19,748.80",Commissioning Services
Aberlour Child Care Trust,28/02/2018,"28,031.88",Commissioning Services
Aberlour Child Care Trust,28/02/2018,617.40,Staff Costs
Aberlour Child Care Trust,01/03/2018,"33,500.00",Commissioning Services
Aberlour Child Care Trust,31/03/2018,"31,168.26",Commissioning Services
Aberlour Child Care Trust,31/03/2018,"2,889.70",Staff Costs
Aberlour Child Care Trust,01/04/2018,"46,497.42",Commissioning Services
Aberlour Child Care Trust,01/04/2018,"8,750.00",Premises Costs
Aberlour Child Care Trust,10/04/2018,"1,006.50",Administration Costs
Aberlour Child Care Trust,30/04/2018,"32,920.58",Commissioning Services
Aberlour Child Care Trust,30/04/2018,523.20,Supplies & Services
Aberlour Child Care Trust,01/05/2018,"58,157.17",Commissioning Services
Aberlour Child Care Trust,04/05/2018,"2,029.20",Administration Costs
Aberlour Child Care Trust,22/05/2018,"20,833.33",Commissioning Services
Aberlour Child Care Trust,31/05/2018,"32,160.28",Commissioning Services
Aberlour Child Care Trust,01/06/2018,"46,497.42",Commissioning Services
Aberlour Child Care Trust,04/06/2018,"2,776.80",Administration Costs
Aberlour Child Care Trust,19/06/2018,"2,839.00",Commissioning Services
Aberlour Child Care Trust,19/06/2018,"3,542.20",Staff Costs
Aberlour Child Care Trust,19/06/2018,915.60,Supplies & Services
Aberlour Child Care Trust,30/06/2018,"32,121.26",Commissioning Services
Aberlour Child Care Trust,30/06/2018,"5,195.20",Staff Costs
Aberlour Child Care Trust,30/06/2018,"1,663.90",Supplies & Services
Aberlour Child Care Trust,01/07/2018,"58,157.17",Commissioning Services
Aberlour Child Care Trust,01/07/2018,"8,750.00",Premises Costs
Aberlour Child Care Trust,31/07/2018,"33,507.88",Commissioning Services
Aberlour Child Care Trust,01/08/2018,"46,497.42",Commissioning Services
Aberlour Child Care Trust,21/08/2018,506.60,Staff Costs
Aberlour Child Care Trust,31/08/2018,"34,031.48",Commissioning Services
Aberlour Child Care Trust,31/08/2018,"1,418.30",Staff Costs
Aberlour Child Care Trust,31/08/2018,708.50,Supplies & Services
Aberlour Child Care Trust,01/09/2018,"46,497.42",Commissioning Services
Aberlour Child Care Trust,30/09/2018,"32,294.06",Commissioning Services
Aberlour Child Care Trust,30/09/2018,"5,608.40",Staff Costs
Aberlour Child Care Trust,30/09/2018,"10,408.90",Supplies & Services
Aberlour Child Care Trust,01/10/2018,"58,097.17",Commissioning Services
Aberlour Child Care Trust,01/10/2018,"8,750.00",Premises Costs
Aberlour Child Care Trust,10/10/2018,"8,000.00",Supplies & Services
Aberlour Child Care Trust,31/10/2018,"35,470.78",Commissioning Services
Aberlour Child Care Trust,31/10/2018,"18,619.84",Staff Costs
Aberlour Child Care Trust,31/10/2018,"1,133.60",Supplies & Services
Aberlour Child Care Trust,01/11/2018,"47,666.67",Commissioning Services
Aberlour Child Care Trust,30/11/2018,"32,736.06",Commissioning Services
Aberlour Child Care Trust,30/11/2018,"4,574.60",Staff Costs
Aberlour Child Care Trust,30/11/2018,"3,825.90",Supplies & Services
Aberlour Child Care Trust,01/12/2018,"47,666.67",Commissioning Services
Aberlour Child Care Trust,31/12/2018,"33,370.18",Commissioning Services
Aberlour Child Care Trust,31/12/2018,"2,506.20",Staff Costs
Aberlour Child Care Trust,31/12/2018,"3,008.40",Supplies & Services
Aberlour Child Care Trust,01/01/2019,"59,326.42",Commissioning Services
Aberlour Child Care Trust,01/01/2019,"8,750.00",Premises Costs
Aberlour Child Care Trust,31/01/2019,"33,620.88",Commissioning Services
Aberlour Child Care Trust,31/01/2019,"2,263.70",Staff Costs
Aberlour Child Care Trust,31/01/2019,"2,539.70",Supplies & Services
Aberlour Child Care Trust,01/02/2019,"47,666.67",Commissioning Services
Aberlour Child Care Trust,28/02/2019,"30,159.80",Commissioning Services
Aberlour Child Care Trust,28/02/2019,"1,871.50",Staff Costs
Aberlour Child Care Trust,28/02/2019,"3,760.50",Supplies & Services
Aberlour Child Care Trust,01/03/2019,"47,666.67",Commissioning Services
Aberlour Futures Aberdeen,18/04/2018,"53,016.50",Transfer Payments
Aberlour Futures Aberdeen,25/04/2018,"41,090.00",Transfer Payments
Aberlour Futures Aberdeen,09/07/2018,"44,833.50",Transfer Payments
Aberlour Futures Aberdeen,20/07/2018,731.50,Administration Costs
Aberlour Futures Aberdeen,09/10/2018,"25,000.00",Transfer Payments
Aberlour Futures Aberdeen,22/10/2018,"22,183.00",Transfer Payments
Aberlour Futures Aberdeen,15/11/2018,"96,050.00",Transfer Payments
Aberlour Futures Aberdeen,15/01/2019,"25,000.00",Transfer Payments
Aberlour Futures Aberdeen,06/02/2019,"1,941.80",Administration Costs
Abermedia,07/01/2019,550.00,Supplies & Services
Aberness Care Limited,10/07/2017,584.74,Commissioning Services
Aberness Care Limited,02/10/2017,"2,158.12",Commissioning Services
Aberness Care Limited,30/10/2017,"2,679.85",Commissioning Services
Aberness Care Limited,27/11/2017,"3,682.52",Commissioning Services
Aberness Care Limited,25/12/2017,"2,237.38",Commissioning Services
Aberness Care Limited,21/01/2018,569.30,Commissioning Services
Aberness Care Limited,22/01/2018,"12,406.96",Commissioning Services
Aberness Care Limited,19/02/2018,"14,515.25",Commissioning Services
Aberness Care Limited,19/03/2018,"15,055.28",Commissioning Services
Aberness Care Limited,16/04/2018,"15,047.20",Commissioning Services
Aberness Care Limited,14/05/2018,"14,169.76",Commissioning Services
Aberness Care Limited,11/06/2018,"18,257.28",Commissioning Services
Aberness Care Limited,09/07/2018,"17,398.71",Commissioning Services
Aberness Care Limited,06/08/2018,"15,815.22",Commissioning Services
Aberness Care Limited,03/09/2018,"15,750.57",Commissioning Services
Aberness Care Limited,01/10/2018,"14,302.85",Commissioning Services
Aberness Care Limited,29/10/2018,"17,920.22",Commissioning Services
Aberness Care Limited,07/11/2018,"1,181.78",Commissioning Services
Aberness Care Limited,26/11/2018,"14,837.72",Commissioning Services
Aberness Care Limited,04/12/2018,601.49,Commissioning Services
Aberness Care Limited,24/12/2018,"14,560.08",Commissioning Services
Aberness Care Limited,21/01/2019,"16,188.62",Commissioning Services
Aberness Care Limited,18/02/2019,"10,751.29",Commissioning Services
Aberness Care Limited,28/02/2019,607.76,Commissioning Services
Abernethy Trust Limited,14/03/2018,"6,228.00",Supplies & Services
Abernethy Trust Limited,20/03/2018,"6,390.00",Supplies & Services
Abernethy Trust Limited,18/04/2018,"2,790.00",Supplies & Services
Abernethy Trust Limited,15/05/2018,"2,400.00",Supplies & Services
Abernethy Trust Limited,15/11/2018,"2,580.00",Supplies & Services
Abernethy Trust Limited,11/12/2018,"1,860.00",Supplies & Services
Abernethy Trust Limited,11/02/2019,"2,400.00",Supplies & Services
Aberroof,23/07/2018,790.00,Premises Costs
Able Care Limited,19/04/2018,550.00,Supplies & Services
Able Care Limited,25/05/2018,"4,145.00",Transfer Payments
Able Care Limited,18/07/2018,"1,766.40",Transfer Payments
Ab Mixology Ltd,22/06/2018,"4,555.59",Transfer Payments
Abraham Associates Ltd,20/12/2018,545.33,Premises Costs
A B Robb Ltd,14/02/2019,"3,709.81",Transfer Payments
Abscaff Ltd,28/02/2018,"4,965.00",Supplies & Services
Abscaff Ltd,26/03/2018,592.80,Supplies & Services
Abscaff Ltd,29/03/2018,"38,103.61",Supplies & Services
Abscaff Ltd,31/03/2018,"8,746.43",Supplies & Services
Abscaff Ltd,11/04/2018,"2,480.00",Supplies & Services
Abscaff Ltd,23/04/2018,"28,132.53",Supplies & Services
Abscaff Ltd,30/04/2018,"9,598.28",Supplies & Services
Abscaff Ltd,22/05/2018,"20,499.28",Supplies & Services
Abscaff Ltd,29/05/2018,"3,715.00",Supplies & Services
Abscaff Ltd,30/05/2018,"3,090.00",Supplies & Services
Abscaff Ltd,31/05/2018,"9,396.43",Supplies & Services
Abscaff Ltd,11/06/2018,"3,240.00",Supplies & Services
Abscaff Ltd,21/06/2018,"29,430.33",Supplies & Services
Abscaff Ltd,28/06/2018,"2,060.00",Supplies & Services
Abscaff Ltd,30/06/2018,"8,464.29",Supplies & Services
Abscaff Ltd,17/07/2018,"26,901.47",Supplies & Services
Abscaff Ltd,27/07/2018,"2,480.00",Supplies & Services
Abscaff Ltd,31/07/2018,"10,107.15",Supplies & Services
Abscaff Ltd,13/08/2018,"5,120.00",Supplies & Services
Abscaff Ltd,14/08/2018,"42,377.67",Supplies & Services
Abscaff Ltd,28/08/2018,"5,290.00",Supplies & Services
Abscaff Ltd,31/08/2018,"10,910.01",Supplies & Services
Abscaff Ltd,17/09/2018,"25,673.89",Supplies & Services
Abscaff Ltd,28/09/2018,"5,975.00",Supplies & Services
Abscaff Ltd,30/09/2018,"10,803.55",Supplies & Services
Abscaff Ltd,16/10/2018,"17,901.06",Supplies & Services
Abscaff Ltd,29/10/2018,"3,213.60",Supplies & Services
Abscaff Ltd,31/10/2018,"10,910.01",Supplies & Services
Abscaff Ltd,16/11/2018,"20,189.89",Supplies & Services
Abscaff Ltd,21/11/2018,"1,591.20",Supplies & Services
Abscaff Ltd,29/11/2018,"7,617.86",Supplies & Services
Abscaff Ltd,30/11/2018,"25,111.71",Supplies & Services
Abscaff Ltd,24/01/2019,"29,609.46",Supplies & Services
Abscaff Ltd,11/03/2019,"36,027.84",Supplies & Services
Abserv Doors Limited,10/10/2016,"1,264.00",Premises Costs
Abserv Doors Limited,28/03/2018,"1,795.87",Supplies & Services
Abserv Doors Limited,22/06/2018,"4,434.78",Supplies & Services
Abserv Doors Limited,03/08/2018,710.87,Supplies & Services
Abserv Doors Limited,20/09/2018,"1,232.00",Premises Costs
Absolute Recruitment (Uk) Ltd T/A Able Care@,13/01/2011,"2,007.50",Commissioning Services
Absolute Recruitment (Uk) Ltd T/A Able Care@,07/02/2018,"2,970.24",Commissioning Services
Absolute Recruitment (Uk) Ltd T/A Able Care@,15/04/2018,622.80,Commissioning Services
Absolute Recruitment (Uk) Ltd T/A Able Care@,30/04/2018,640.10,Commissioning Services
Absolute Recruitment (Uk) Ltd T/A Able Care@,12/05/2018,"1,453.20",Commissioning Services
Absolute Recruitment (Uk) Ltd T/A Able Care@,20/05/2018,726.60,Commissioning Services
Absolute Recruitment (Uk) Ltd T/A Able Care@,31/05/2018,742.56,Commissioning Services
Absolute Recruitment (Uk) Ltd T/A Able Care@,02/06/2018,742.56,Commissioning Services
Absolute Recruitment (Uk) Ltd T/A Able Care@,06/06/2018,742.56,Commissioning Services
Absolute Recruitment (Uk) Ltd T/A Able Care@,26/06/2018,"2,103.92",Commissioning Services
Absolute Recruitment (Uk) Ltd T/A Able Care@,30/06/2018,"3,976.86",Commissioning Services
Absolute Recruitment (Uk) Ltd T/A Able Care@,07/07/2018,"1,872.56",Commissioning Services
Absolute Recruitment (Uk) Ltd T/A Able Care@,10/07/2018,"1,131.52",Commissioning Services
Absolute Recruitment (Uk) Ltd T/A Able Care@,16/07/2018,866.32,Commissioning Services
Absolute Recruitment (Uk) Ltd T/A Able Care@,28/07/2018,"7,434.44",Commissioning Services
Absolute Recruitment (Uk) Ltd T/A Able Care@,30/07/2018,"1,511.64",Commissioning Services
Absolute Recruitment (Uk) Ltd T/A Able Care@,01/08/2018,"3,889.60",Commissioning Services
Absolute Recruitment (Uk) Ltd T/A Able Care@,13/08/2018,"4,337.34",Commissioning Services
Absolute Recruitment (Uk) Ltd T/A Able Care@,22/08/2018,"1,237.60",Commissioning Services
Absolute Recruitment (Uk) Ltd T/A Able Care@,30/08/2018,"1,485.12",Commissioning Services
Absolute Recruitment (Uk) Ltd T/A Able Care@,31/08/2018,"1,414.40",Commissioning Services
Absolute Recruitment (Uk) Ltd T/A Able Care@,13/09/2018,"2,598.96",Commissioning Services
Absolute Recruitment (Uk) Ltd T/A Able Care@,16/09/2018,"2,722.72",Commissioning Services
Absolute Recruitment (Uk) Ltd T/A Able Care@,18/09/2018,"1,408.68",Commissioning Services
Absolute Recruitment (Uk) Ltd T/A Able Care@,19/09/2018,"1,536.08",Commissioning Services
Absolute Recruitment (Uk) Ltd T/A Able Care@,30/09/2018,"1,485.12",Commissioning Services
Absolute Recruitment (Uk) Ltd T/A Able Care@,01/10/2018,"1,414.40",Commissioning Services
Absolute Recruitment (Uk) Ltd T/A Able Care@,04/10/2018,"1,485.12",Commissioning Services
Absolute Recruitment (Uk) Ltd T/A Able Care@,10/10/2018,"1,485.12",Commissioning Services
Absolute Recruitment (Uk) Ltd T/A Able Care@,15/10/2018,"1,343.68",Commissioning Services
Absolute Recruitment (Uk) Ltd T/A Able Care@,16/10/2018,"1,423.24",Commissioning Services
Absolute Recruitment (Uk) Ltd T/A Able Care@,21/10/2018,"1,414.40",Commissioning Services
Absolute Recruitment (Uk) Ltd T/A Able Care@,25/10/2018,"1,635.40",Commissioning Services
Absolute Recruitment (Uk) Ltd T/A Able Care@,03/11/2018,618.80,Commissioning Services
Absolute Recruitment (Uk) Ltd T/A Able Care@,07/11/2018,"4,455.36",Commissioning Services
Absolute Recruitment (Uk) Ltd T/A Able Care@,14/11/2018,"2,784.60",Commissioning Services
Absolute Recruitment (Uk) Ltd T/A Able Care@,18/11/2018,530.40,Commissioning Services
Absolute Recruitment (Uk) Ltd T/A Able Care@,22/11/2018,"4,455.36",Commissioning Services
Absolute Recruitment (Uk) Ltd T/A Able Care@,25/11/2018,"1,661.92",Commissioning Services
Absolute Recruitment (Uk) Ltd T/A Able Care@,02/12/2018,"5,091.84",Commissioning Services
Absolute Recruitment (Uk) Ltd T/A Able Care@,03/12/2018,"1,219.78",Commissioning Services
Absolute Recruitment (Uk) Ltd T/A Able Care@,07/12/2018,"3,039.04",Commissioning Services
Absolute Recruitment (Uk) Ltd T/A Able Care@,12/12/2018,"1,874.08",Commissioning Services
Absolute Recruitment (Uk) Ltd T/A Able Care@,22/12/2018,"2,492.88",Commissioning Services
Absolute Recruitment (Uk) Ltd T/A Able Care@,29/12/2018,"5,991.60",Commissioning Services
Absolute Recruitment (Uk) Ltd T/A Able Care@,02/01/2019,"5,339.36",Commissioning Services
Absolute Recruitment (Uk) Ltd T/A Able Care@,15/01/2019,"3,797.84",Commissioning Services
Absolute Recruitment (Uk) Ltd T/A Able Care@,18/01/2019,"1,060.80",Commissioning Services
Absolute Recruitment (Uk) Ltd T/A Able Care@,23/01/2019,"1,166.64",Commissioning Services
Absolute Recruitment (Uk) Ltd T/A Able Care@,26/01/2019,"1,474.84",Commissioning Services
Absolute Recruitment (Uk) Ltd T/A Able Care@,27/01/2019,860.30,Commissioning Services
Absolute Recruitment (Uk) Ltd T/A Able Care@,01/02/2019,"2,970.24",Commissioning Services
Absolute Recruitment (Uk) Ltd T/A Able Care@,02/02/2019,"2,121.12",Commissioning Services
Absolute Recruitment (Uk) Ltd T/A Able Care@,04/02/2019,698.36,Commissioning Services
Absolute Recruitment (Uk) Ltd T/A Able Care@,05/02/2019,"1,326.00",Commissioning Services
Absolute Recruitment (Uk) Ltd T/A Able Care@,06/02/2019,"1,878.50",Commissioning Services
Absolute Recruitment (Uk) Ltd T/A Able Care@,07/02/2019,599.20,Commissioning Services
Absolute Recruitment (Uk) Ltd T/A Able Care@,09/02/2019,"3,994.72",Commissioning Services
Absolute Recruitment (Uk) Ltd T/A Able Care@,16/02/2019,"5,091.84",Commissioning Services
Absolute Recruitment (Uk) Ltd T/A Able Care@,20/02/2019,"2,722.72",Commissioning Services
Absolute Recruitment (Uk) Ltd T/A Able Care@,24/02/2019,990.08,Commissioning Services
Absolute Recruitment (Uk) Ltd T/A Able Care@,09/03/2019,990.08,Commissioning Services
Absolute Solar And Wind Ltd,20/06/2018,"22,912.23",Capital Expenditure Total
Absolute Solar And Wind Ltd,26/06/2018,"9,720.34",Capital Expenditure Total
Absolute Solar And Wind Ltd,31/07/2018,"11,108.96",Capital Expenditure Total
Absolute Solar And Wind Ltd,31/07/2018,554.73,Premises Costs
Absolute Solar And Wind Ltd,18/09/2018,"5,872.80",Premises Costs
Absolute Solar And Wind Ltd,16/10/2018,720.00,Capital Expenditure Total
Absolute Solar And Wind Ltd,16/10/2018,720.00,Premises Costs
Absolute Solar And Wind Ltd,29/10/2018,920.00,Capital Expenditure Total
Acad (Applied Care And Development Ltd),30/09/2018,"16,817.14",Commissioning Services
Acad (Applied Care And Development Ltd),28/10/2018,"17,440.00",Commissioning Services
Acad (Applied Care And Development Ltd),25/11/2018,"17,440.00",Commissioning Services
Acad (Applied Care And Development Ltd),23/12/2018,"17,440.00",Commissioning Services
Acad (Applied Care And Development Ltd),20/01/2019,"15,440.00",Commissioning Services
Acad (Applied Care And Development Ltd),17/02/2019,"6,065.71",Commissioning Services
Access Alba,19/06/2018,575.00,Supplies & Services
Access Av Ltd,04/10/2018,"2,892.75",Capital Expenditure Total
Access Uk Ltd,19/04/2018,"2,530.85",Supplies & Services
Access Uk Ltd,17/05/2018,670.68,Supplies & Services
Acc-Fergus House Imprest Account,26/03/2018,537.00,Other Income
Acc-Fergus House Imprest Account,24/04/2018,540.00,Other Income
Acc-Fergus House Imprest Account,25/05/2018,648.00,Other Income
Acc-Fergus House Imprest Account,20/06/2018,648.00,Other Income
Acc-Fergus House Imprest Account,17/07/2018,648.00,Other Income
Acc-Fergus House Imprest Account,14/08/2018,756.00,Other Income
Acc-Fergus House Imprest Account,12/09/2018,756.00,Other Income
Acc-Fergus House Imprest Account,10/10/2018,756.00,Other Income
Acc-Fergus House Imprest Account,06/11/2018,756.00,Other Income
Acc-Fergus House Imprest Account,05/12/2018,756.00,Other Income
Accordial Ltd,25/07/2018,"1,345.00",Supplies & Services
Accordial Ltd,20/12/2018,675.00,Supplies & Services
Acl Hire Limited,31/01/2019,768.09,Transport Costs
Actavo Uk,31/05/2018,"4,617.72",Transport Costs
Actavo Uk,28/06/2018,"1,210.00",Transport Costs
Actavo Uk,12/10/2018,"1,616.50",Supplies & Services
Actavo Uk,09/11/2018,800.00,Transport Costs
Action For Children,15/02/2018,"16,000.00",Transfer Payments
Action For Children,07/03/2018,"31,628.00",Commissioning Services
Action For Children,14/03/2018,"88,510.50",Supplies & Services
Action For Children,22/03/2018,"89,185.75",Supplies & Services
Action For Children,23/03/2018,"21,874.38",Commissioning Services
Action For Children,28/03/2018,"96,090.00",Commissioning Services
Action For Children,31/03/2018,"13,887.54",Supplies & Services
Action For Children,10/05/2018,"32,030.00",Commissioning Services
Action For Children,18/05/2018,"6,511.20",Commissioning Services
Action For Children,12/06/2018,"20,036.75",Commissioning Services
Action For Children,29/06/2018,"20,180.10",Commissioning Services
Action For Children,04/07/2018,"64,060.00",Commissioning Services
Action For Children,27/07/2018,"20,061.66",Commissioning Services
Action For Children,03/08/2018,"32,030.00",Commissioning Services
Action For Children,30/08/2018,"20,129.62",Commissioning Services
Action For Children,04/09/2018,"32,030.00",Commissioning Services
Action For Children,21/09/2018,"29,645.90",Commissioning Services
Action For Children,25/09/2018,"16,000.00",Commissioning Services
Action For Children,27/09/2018,"45,531.99",Commissioning Services
Action For Children,02/10/2018,"178,371.50",Supplies & Services
Action For Children,17/10/2018,"6,705.99",Commissioning Services
Action For Children,05/11/2018,"32,030.00",Commissioning Services
Action For Children,12/11/2018,"10,228.03",Commissioning Services
Action For Children,30/11/2018,"35,290.61",Commissioning Services
Action For Children,03/12/2018,"3,190.16",Commissioning Services
Action For Children,04/12/2018,"32,030.00",Commissioning Services
Action For Children,14/12/2018,"30,341.91",Commissioning Services
Action For Children,18/12/2018,"16,000.00",Commissioning Services
Action For Children,31/12/2018,"36,311.55",Commissioning Services
Action For Children,09/01/2019,"32,030.00",Commissioning Services
Action For Children,16/01/2019,"89,185.75",Supplies & Services
Action For Children,04/02/2019,"86,649.50",Commissioning Services
Action For Children,27/02/2019,"32,908.70",Commissioning Services
Action For Children Services Ltd,18/05/2018,"13,134.50",Commissioning Services
Action For Children Services Ltd,14/12/2018,"6,842.89",Commissioning Services
Action For Children Services Ltd,09/01/2019,"32,030.00",Commissioning Services
Action For Children Services Ltd,12/03/2019,"43,774.20",Commissioning Services
Active Outdoor Pursuits,26/09/2017,"43,864.78",Supplies & Services
Active Outdoor Pursuits,19/04/2018,"2,000.00",Supplies & Services
Active Outdoor Pursuits,19/06/2018,"12,200.00",Supplies & Services
Active Outdoor Pursuits,08/07/2018,"3,145.00",Supplies & Services
Active Outdoor Pursuits,31/08/2018,"2,201.50",Supplies & Services
Active Outdoor Pursuits,01/10/2018,"3,275.00",Supplies & Services
Active Outdoor Pursuits,30/11/2018,"10,483.33",Supplies & Services
Active Outdoor Pursuits,07/01/2019,"34,171.50",Supplies & Services
Active Outdoor Pursuits,01/02/2019,"8,178.33",Supplies & Services
Adams Psychology Services,30/11/2018,"1,350.00",Administration Costs
Add Latent Limited,14/02/2019,"1,405.22",Transfer Payments
A D (Edinburgh) Ltd,14/02/2019,"1,753.97",Transfer Payments
Adgiftdiscounts Ltd,01/08/2017,600.00,Administration Costs
Adl Lift Services Ltd,07/02/2018,"5,750.00",Supplies & Services
Adl Lift Services Ltd,08/02/2018,"10,500.00",Supplies & Services
Adl Lift Services Ltd,01/04/2018,"6,127.75",Supplies & Services
Adl Lift Services Ltd,04/04/2018,"90,024.52",Capital Expenditure Total
Adl Lift Services Ltd,17/04/2018,"10,500.00",Supplies & Services
Adl Lift Services Ltd,01/05/2018,"3,346.00",Supplies & Services
Adl Lift Services Ltd,03/05/2018,"197,790.00",Capital Expenditure Total
Adl Lift Services Ltd,01/06/2018,"3,232.50",Supplies & Services
Adl Lift Services Ltd,06/06/2018,"107,274.00",Capital Expenditure Total
Adl Lift Services Ltd,28/06/2018,"2,808.00",Supplies & Services
Adl Lift Services Ltd,01/07/2018,"2,579.40",Supplies & Services
Adl Lift Services Ltd,02/07/2018,"6,150.00",Supplies & Services
Adl Lift Services Ltd,31/07/2018,"136,619.50",Capital Expenditure Total
Adl Lift Services Ltd,21/08/2018,650.00,Supplies & Services
Adl Lift Services Ltd,01/09/2018,"9,219.75",Supplies & Services
Adl Lift Services Ltd,06/09/2018,"144,780.00",Capital Expenditure Total
Adl Lift Services Ltd,06/09/2018,"5,500.00",Supplies & Services
Adl Lift Services Ltd,20/09/2018,"1,656.25",Supplies & Services
Adl Lift Services Ltd,25/09/2018,"29,835.00",Capital Expenditure Total
Adl Lift Services Ltd,02/11/2018,"62,458.20",Capital Expenditure Total
Adl Lift Services Ltd,14/11/2018,"144,058.95",Capital Expenditure Total
Adl Lift Services Ltd,01/12/2018,"10,143.50",Supplies & Services
Adl Lift Services Ltd,11/12/2018,"72,200.00",Capital Expenditure Total
Adl Lift Services Ltd,12/12/2018,"86,972.22",Capital Expenditure Total
Adl Lift Services Ltd,20/12/2018,"4,000.00",Supplies & Services
Adl Lift Services Ltd,01/01/2019,"16,217.75",Supplies & Services
Adl Lift Services Ltd,01/02/2019,"4,624.75",Supplies & Services
Adl Lift Services Ltd,21/02/2019,"37,399.78",Capital Expenditure Total
Adl Lift Services Ltd,01/03/2019,"4,773.00",Supplies & Services
Adl Lift Services Ltd,04/03/2019,"121,790.00",Capital Expenditure Total
Adl Lift Services Ltd,05/03/2019,"80,095.25",Capital Expenditure Total
Adoption And Fostering Alliance (Afa)Scotland,04/04/2018,"4,010.70",Commissioning Services
Adoption And Fostering Alliance (Afa)Scotland,07/09/2018,"1,382.00",Commissioning Services
Adt Fire & Security Plc,01/03/2018,508.82,Short Term Creditors
Adt Fire & Security Plc,04/04/2018,684.19,Supplies & Services
Adt Fire & Security Plc,01/06/2018,523.98,Premises Costs
Adt Fire & Security Plc,20/07/2018,"4,979.00",Supplies & Services
Adt Fire & Security Plc,26/07/2018,"1,845.22",Premises Costs
Adt Fire & Security Plc,01/11/2018,698.29,Supplies & Services
Adt Fire & Security Plc,02/01/2019,652.49,Premises Costs
Adt Fire & Security Plc,04/02/2019,"1,108.36",Premises Costs
Advanced Business Solutions,14/03/2018,"2,619.94",Supplies & Services
Advanced Business Solutions,11/04/2018,"2,065.92",Supplies & Services
Advanced Business Solutions,15/05/2018,"2,065.92",Supplies & Services
Advanced Business Solutions,30/06/2018,"2,065.92",Supplies & Services
Advanced Business Solutions,31/07/2018,"2,065.92",Supplies & Services
Advanced Business Solutions,16/08/2018,"2,065.92",Supplies & Services
Advanced Business Solutions,12/09/2018,"2,065.92",Supplies & Services
Advanced Business Solutions,31/10/2018,"2,054.79",Supplies & Services
Advanced Business Solutions,18/01/2019,"162,379.49",Supplies & Services
Advanced Travel Partners Uk Ltd,19/03/2018,"2,276.69",Transport Costs
Advanced Travel Partners Uk Ltd,29/03/2018,"1,231.56",Transport Costs
Advanced Travel Partners Uk Ltd,04/04/2018,"2,782.23",Transport Costs
Advanced Travel Partners Uk Ltd,21/05/2018,"3,019.50",Supplies & Services
Advanced Travel Partners Uk Ltd,20/06/2018,"2,873.10",Transport Costs
Advanced Travel Partners Uk Ltd,18/07/2018,790.00,Transport Costs
Advanced Travel Partners Uk Ltd,12/09/2018,"1,775.40",Transport Costs
Advanced Travel Partners Uk Ltd,13/09/2018,"1,775.40",Transport Costs
Advanced Travel Partners Uk Ltd,24/09/2018,529.98,Transport Costs
Advanced Travel Partners Uk Ltd,01/10/2018,"2,664.00",Short Term Debtors
Advanced Travel Partners Uk Ltd,02/10/2018,"1,418.00",Transport Costs
Advanced Travel Partners Uk Ltd,12/02/2019,"1,830.45",Transport Costs
Adventure Activities Licensing Service,27/03/2018,715.00,Supplies & Services
Adventure Activities Licensing Service,22/01/2019,715.00,Supplies & Services
Advice Uk,16/08/2018,"7,380.00",Supplies & Services
Advocacy Service Aberdeen,24/04/2018,"62,630.77",Commissioning Services
Advocacy Service Aberdeen,23/07/2018,"63,134.91",Commissioning Services
Advocacy Service Aberdeen,10/12/2018,"64,384.50",Commissioning Services
Advocacy Service Aberdeen,01/01/2019,"21,461.50",Commissioning Services
Advocacy Service Aberdeen,01/02/2019,"21,461.50",Commissioning Services
Advocacy Service Aberdeen,01/03/2019,"21,461.50",Commissioning Services
Aebi Schmidt (Uk) Ltd,12/03/2018,"1,633.13",Supplies & Services
Aebi Schmidt (Uk) Ltd,26/03/2018,695.15,Supplies & Services
Aebi Schmidt (Uk) Ltd,26/04/2018,"1,469.37",Supplies & Services
Aebi Schmidt (Uk) Ltd,04/05/2018,"1,485.99",Supplies & Services
Aebi Schmidt (Uk) Ltd,12/06/2018,"1,168.63",Supplies & Services
Aebi Schmidt (Uk) Ltd,21/06/2018,"1,096.98",Supplies & Services
Aebi Schmidt (Uk) Ltd,27/06/2018,"1,240.94",Supplies & Services
Aebi Schmidt (Uk) Ltd,31/07/2018,"2,998.16",Transport Costs
Aebi Schmidt (Uk) Ltd,18/09/2018,"1,095.94",Supplies & Services
Aebi Schmidt (Uk) Ltd,27/09/2018,"1,253.80",Supplies & Services
Aebi Schmidt (Uk) Ltd,03/10/2018,"1,448.37",Supplies & Services
Aebi Schmidt (Uk) Ltd,17/10/2018,551.46,Supplies & Services
Aebi Schmidt (Uk) Ltd,24/10/2018,519.35,Supplies & Services
Aebi Schmidt (Uk) Ltd,31/10/2018,"5,650.00",Transport Costs
Aebi Schmidt (Uk) Ltd,21/11/2018,609.44,Supplies & Services
Aebi Schmidt (Uk) Ltd,12/12/2018,609.44,Supplies & Services
Aebi Schmidt (Uk) Ltd,07/01/2019,573.92,Supplies & Services
Aebi Schmidt (Uk) Ltd,08/03/2019,"1,236.11",Supplies & Services
Aecom Limited,09/03/2018,"16,268.47",Capital Expenditure Total
Aecom Limited,19/03/2018,"1,829.67",Supplies & Services
Aecom Limited,20/03/2018,"25,775.45",Capital Expenditure Total
Aecom Limited,27/03/2018,"1,500.00",Capital Expenditure Total
Aecom Limited,01/04/2018,"26,072.63",Supplies & Services
Aecom Limited,06/04/2018,"15,172.49",Capital Expenditure Total
Aecom Limited,06/04/2018,"1,558.83",Supplies & Services
Aecom Limited,19/04/2018,"1,680.67",Supplies & Services
Aecom Limited,04/05/2018,"7,388.55",Capital Expenditure Total
Aecom Limited,09/05/2018,"2,240.07",Supplies & Services
Aecom Limited,01/06/2018,"1,244.00",Capital Expenditure Total
Aecom Limited,04/06/2018,"12,782.00",Capital Expenditure Total
Aecom Limited,07/06/2018,810.04,Supplies & Services
Aecom Limited,18/06/2018,980.00,Capital Expenditure Total
Aecom Limited,04/07/2018,"14,137.34",Capital Expenditure Total
Aecom Limited,04/07/2018,716.29,Supplies & Services
Aecom Limited,24/07/2018,"1,113.97",Supplies & Services
Aecom Limited,06/09/2018,940.80,Capital Expenditure Total
Aecom Limited,07/09/2018,"1,008.93",Supplies & Services
Aecom Limited,11/09/2018,"1,401.58",Capital Expenditure Total
Aecom Limited,20/09/2018,"4,316.00",Capital Expenditure Total
Aecom Limited,21/09/2018,"2,442.04",Supplies & Services
Aecom Limited,18/10/2018,850.00,Capital Expenditure Total
Aecom Limited,21/11/2018,"1,147.62",Supplies & Services
Aecom Limited,06/12/2018,"8,703.94",Capital Expenditure Total
Aecom Limited,12/12/2018,"2,442.04",Supplies & Services
Aecom Limited,20/12/2018,"1,056.74",Supplies & Services
Aecom Limited,16/01/2019,"2,615.75",Capital Expenditure Total
Aecom Limited,28/01/2019,"1,700.00",Capital Expenditure Total
Aecom Limited,12/03/2019,"1,153.98",Supplies & Services
Aero Healthcare Ltd,13/06/2018,"1,072.20",Supplies & Services
Ag Bean Building Surveyors,04/07/2018,680.00,Supplies & Services
Agecare Aberdeen,30/01/2018,"3,609.23",Commissioning Services
Agecare Aberdeen,31/03/2018,"3,609.23",Commissioning Services
Agecare Aberdeen,01/04/2018,"53,813.65",Commissioning Services
Air Liquide Uk Limited,30/04/2018,587.25,Supplies & Services
Air Monitors Limited,29/05/2018,"1,398.00",Supplies & Services
Air Monitors Limited,09/10/2018,641.28,Supplies & Services
Air Monitors Limited,06/11/2018,"15,844.00",Supplies & Services
Air Products Plc,30/11/2018,"2,221.60",Short Term Creditors
Airyhall Community Centre,18/04/2018,"2,769.00",Supplies & Services
Airyhall Community Centre,27/06/2018,"2,765.00",Supplies & Services
Airyhall Community Centre,29/10/2018,"1,765.00",Supplies & Services
Airyhall Community Centre,18/02/2019,"3,481.74",Supplies & Services
Airylea Motors,10/10/2018,843.00,Supplies & Services
Airylea Motors,31/10/2018,"2,620.79",Supplies & Services
Aitchies Ale House,13/12/2018,"3,496.35",Transfer Payments
A J Donald Slaters,15/02/2018,"2,077.50",Premises Costs
A J Donald Slaters,08/05/2018,"1,693.32",Premises Costs
A J Donald Slaters,15/06/2018,"2,778.00",Premises Costs
A J Donald Slaters,16/01/2019,"1,189.40",Premises Costs
A J Donald Slaters,14/02/2019,"11,315.62",Transfer Payments
Ajs (Contract Cars) Ltd,03/03/2018,"13,057.26",Transport Costs
Ajs (Contract Cars) Ltd,31/03/2018,"24,575.43",Transport Costs
Ajs (Contract Cars) Ltd,30/04/2018,"15,740.22",Transport Costs
Ajs (Contract Cars) Ltd,31/05/2018,"26,788.88",Transport Costs
Ajs (Contract Cars) Ltd,30/06/2018,"26,767.19",Transport Costs
Ajs (Contract Cars) Ltd,31/07/2018,"4,318.44",Transport Costs
Ajs (Contract Cars) Ltd,31/08/2018,"9,625.25",Transport Costs
Ajs (Contract Cars) Ltd,30/09/2018,"19,987.30",Transport Costs
Ajs (Contract Cars) Ltd,31/10/2018,"16,308.08",Transport Costs
Ajs (Contract Cars) Ltd,30/11/2018,"23,678.72",Transport Costs
Ajs (Contract Cars) Ltd,31/12/2018,"17,274.00",Transport Costs
Ajs (Contract Cars) Ltd,31/01/2019,"22,443.49",Transport Costs
Ajs (Contract Cars) Ltd,28/02/2019,"19,949.59",Transport Costs
Ajt Engineering Limited,19/10/2018,"5,412.00",Transfer Payments
Akw Medi-Care Limited,21/03/2018,"1,757.55",Inventories
Akw Medi-Care Limited,26/03/2018,505.71,Supplies & Services
Akw Medi-Care Limited,28/03/2018,"1,205.80",Inventories
Akw Medi-Care Limited,03/04/2018,501.10,Supplies & Services
Akw Medi-Care Limited,05/04/2018,"2,188.63",Supplies & Services
Akw Medi-Care Limited,18/04/2018,"1,970.10",Inventories
Akw Medi-Care Limited,18/04/2018,501.10,Supplies & Services
Akw Medi-Care Limited,24/04/2018,685.33,Supplies & Services
Akw Medi-Care Limited,25/04/2018,"1,733.85",Inventories
Akw Medi-Care Limited,26/04/2018,773.81,Supplies & Services
Akw Medi-Care Limited,30/04/2018,586.06,Supplies & Services
Akw Medi-Care Limited,02/05/2018,"2,123.40",Inventories
Akw Medi-Care Limited,09/05/2018,544.92,Supplies & Services
Akw Medi-Care Limited,16/05/2018,"2,963.35",Inventories
Akw Medi-Care Limited,16/05/2018,536.69,Supplies & Services
Akw Medi-Care Limited,24/05/2018,756.88,Inventories
Akw Medi-Care Limited,30/05/2018,"1,002.20",Supplies & Services
Akw Medi-Care Limited,06/06/2018,"2,036.79",Supplies & Services
Akw Medi-Care Limited,13/06/2018,"1,757.55",Inventories
Akw Medi-Care Limited,13/06/2018,"2,039.35",Supplies & Services
Akw Medi-Care Limited,14/06/2018,532.96,Supplies & Services
Akw Medi-Care Limited,18/06/2018,"1,757.55",Inventories
Akw Medi-Care Limited,20/06/2018,"1,404.20",Inventories
Akw Medi-Care Limited,20/06/2018,"1,281.84",Supplies & Services
Akw Medi-Care Limited,27/06/2018,"1,156.58",Inventories
Akw Medi-Care Limited,27/06/2018,"1,083.56",Supplies & Services
Akw Medi-Care Limited,04/07/2018,542.20,Inventories
Akw Medi-Care Limited,04/07/2018,"1,186.43",Supplies & Services
Akw Medi-Care Limited,18/07/2018,764.81,Supplies & Services
Akw Medi-Care Limited,25/07/2018,564.50,Supplies & Services
Akw Medi-Care Limited,26/07/2018,"2,963.35",Inventories
Akw Medi-Care Limited,01/08/2018,"1,757.55",Inventories
Akw Medi-Care Limited,01/08/2018,"1,259.95",Supplies & Services
Akw Medi-Care Limited,08/08/2018,619.03,Supplies & Services
Akw Medi-Care Limited,09/08/2018,"1,205.80",Inventories
Akw Medi-Care Limited,20/08/2018,"1,500.30",Inventories
Akw Medi-Care Limited,22/08/2018,"1,757.55",Inventories
Akw Medi-Care Limited,22/08/2018,"2,434.07",Supplies & Services
Akw Medi-Care Limited,31/08/2018,"1,814.15",Inventories
Akw Medi-Care Limited,31/08/2018,501.10,Supplies & Services
Akw Medi-Care Limited,04/09/2018,"1,205.80",Inventories
Akw Medi-Care Limited,04/09/2018,"1,070.25",Supplies & Services
Akw Medi-Care Limited,12/09/2018,728.04,Supplies & Services
Akw Medi-Care Limited,19/09/2018,"1,217.00",Supplies & Services
Akw Medi-Care Limited,26/09/2018,"2,007.57",Inventories
Akw Medi-Care Limited,26/09/2018,655.49,Supplies & Services
Akw Medi-Care Limited,08/10/2018,640.92,Supplies & Services
Akw Medi-Care Limited,10/10/2018,"3,107.57",Inventories
Akw Medi-Care Limited,10/10/2018,"3,075.60",Supplies & Services
Akw Medi-Care Limited,17/10/2018,"2,963.35",Inventories
Akw Medi-Care Limited,24/10/2018,607.95,Supplies & Services
Akw Medi-Care Limited,31/10/2018,"1,809.17",Inventories
Akw Medi-Care Limited,31/10/2018,"2,872.99",Supplies & Services
Akw Medi-Care Limited,07/11/2018,"2,032.94",Supplies & Services
Akw Medi-Care Limited,21/11/2018,"2,963.35",Inventories
Akw Medi-Care Limited,05/12/2018,"1,573.28",Supplies & Services
Akw Medi-Care Limited,13/12/2018,"1,156.59",Supplies & Services
Akw Medi-Care Limited,09/01/2019,"1,334.19",Supplies & Services
Akw Medi-Care Limited,16/01/2019,"1,360.71",Supplies & Services
Akw Medi-Care Limited,21/01/2019,"2,554.83",Inventories
Akw Medi-Care Limited,23/01/2019,"2,269.18",Inventories
Akw Medi-Care Limited,23/01/2019,"1,938.29",Supplies & Services
Akw Medi-Care Limited,30/01/2019,"1,054.53",Inventories
Akw Medi-Care Limited,30/01/2019,"2,872.67",Supplies & Services
Akw Medi-Care Limited,06/02/2019,"2,067.22",Supplies & Services
Akw Medi-Care Limited,07/02/2019,"1,205.80",Inventories
Akw Medi-Care Limited,13/02/2019,"2,440.34",Supplies & Services
Akw Medi-Care Limited,20/02/2019,"1,333.18",Inventories
Akw Medi-Care Limited,25/02/2019,"1,180.39",Supplies & Services
Alarm Radio Monitoring Ltd,08/09/2018,609.83,Capital Expenditure Total
Alastrean Care Ltd,15/03/2018,996.00,Commissioning Services
Alastrean Care Ltd,12/04/2018,996.00,Commissioning Services
Alastrean Care Ltd,10/05/2018,996.00,Commissioning Services
Alastrean Care Ltd,29/05/2018,"2,758.92",Commissioning Services
Alastrean Care Ltd,06/06/2018,"2,758.92",Commissioning Services
Alastrean Care Ltd,07/06/2018,996.00,Commissioning Services
Alastrean Care Ltd,04/07/2018,"2,758.92",Commissioning Services
Alastrean Care Ltd,05/07/2018,996.00,Commissioning Services
Alastrean Care Ltd,01/08/2018,"2,758.92",Commissioning Services
Alastrean Care Ltd,02/08/2018,996.00,Commissioning Services
Alastrean Care Ltd,29/08/2018,"2,758.92",Commissioning Services
Alastrean Care Ltd,30/08/2018,"1,100.57",Commissioning Services
Alastrean Care Ltd,26/09/2018,"2,758.92",Commissioning Services
Alastrean Care Ltd,27/09/2018,"1,012.00",Commissioning Services
Alastrean Care Ltd,24/10/2018,"2,758.92",Commissioning Services
Alastrean Care Ltd,25/10/2018,"1,012.00",Commissioning Services
Alastrean Care Ltd,21/11/2018,"2,758.92",Commissioning Services
Alastrean Care Ltd,22/11/2018,"1,012.00",Commissioning Services
Alastrean Care Ltd,19/12/2018,"2,758.92",Commissioning Services
Alastrean Care Ltd,20/12/2018,"1,012.00",Commissioning Services
Alastrean Care Ltd,16/01/2019,"2,758.92",Commissioning Services
Alastrean Care Ltd,17/01/2019,"1,012.00",Commissioning Services
Alastrean Care Ltd,13/02/2019,"2,758.92",Commissioning Services
Alastrean Care Ltd,14/02/2019,"1,012.00",Commissioning Services
Alba / Sb Pools Ltd,08/08/2016,"2,067.20",Premises Costs
Albyn School,23/04/2018,"68,838.67",Commissioning Services
Albyn School,17/09/2018,"58,875.18",Commissioning Services
Albyn School,26/09/2018,905.77,Commissioning Services
Albyn School,08/10/2018,905.77,Commissioning Services
Albyn School,05/11/2018,"1,358.66",Commissioning Services
Albyn School,21/01/2019,"62,110.08",Commissioning Services
Alcohol And Drugs Action,22/03/2018,"5,826.75",Commissioning Services
Alcohol And Drugs Action,23/04/2018,"240,452.01",Commissioning Services
Alcohol And Drugs Action,23/07/2018,"240,452.01",Commissioning Services
Alcohol And Drugs Action,08/10/2018,"240,452.01",Commissioning Services
Alcohol And Drugs Action,09/10/2018,"240,452.01",Commissioning Services
Alcohol And Drugs Action,01/01/2019,"240,452.01",Commissioning Services
Alcohol Focus Scotland,20/07/2018,550.00,Administration Costs
Alcohol Focus Scotland,19/11/2018,"1,100.00",Administration Costs
A-Line Audio Visual (Scotland) Ltd,26/06/2018,"11,654.30",Supplies & Services
A-Line Audio Visual (Scotland) Ltd,12/07/2018,"1,510.50",Supplies & Services
A-Line Audio Visual (Scotland) Ltd,29/08/2018,"9,000.00",Supplies & Services
A-Line Audio Visual (Scotland) Ltd,14/11/2018,"7,250.00",Supplies & Services
A-Line Audio Visual (Scotland) Ltd,28/11/2018,"5,285.00",Supplies & Services
A-Line Audio Visual (Scotland) Ltd,06/12/2018,900.00,Supplies & Services
A-Line Audio Visual (Scotland) Ltd,08/01/2019,"12,785.00",Supplies & Services
Alison Waller T/A Perfect Collections,20/09/2018,"6,230.78",Transfer Payments
Alison Waller T/A Perfect Outlet,20/09/2018,"5,643.59",Transfer Payments
Allandale House,19/02/2018,"2,632.92",Commissioning Services
Allandale House,12/03/2018,"16,143.76",Commissioning Services
Allandale House,19/03/2018,"2,632.92",Commissioning Services
Allandale House,09/04/2018,"16,143.76",Commissioning Services
Allandale House,16/04/2018,"1,974.69",Commissioning Services
Allandale House,20/04/2018,"7,240.53",Commissioning Services
Allandale House,07/05/2018,"21,763.92",Commissioning Services
Allandale House,04/06/2018,"8,594.76",Commissioning Services
Allandale House,01/07/2018,"13,181.16",Commissioning Services
Allandale House,02/07/2018,"21,775.92",Commissioning Services
Allandale House,30/07/2018,"21,587.48",Commissioning Services
Allandale House,07/08/2018,"28,115.81",Commissioning Services
Allandale House,27/08/2018,"22,084.16",Commissioning Services
Allandale House,24/09/2018,"22,084.16",Commissioning Services
Allandale House,22/10/2018,"22,084.16",Commissioning Services
Allandale House,19/11/2018,"22,084.16",Commissioning Services
Allandale House,17/12/2018,"16,809.36",Commissioning Services
Allandale House,18/12/2018,"3,306.00",Commissioning Services
Allandale House,14/01/2019,"19,398.60",Commissioning Services
Allandale House,11/02/2019,"19,398.60",Commissioning Services
Allandale House,11/03/2019,"19,398.60",Commissioning Services
Allan Haddow Ltd,12/04/2018,"2,675.00",Short Term Creditors
Allan Haddow Ltd,30/05/2018,"4,405.00",Supplies & Services
Allan Haddow Ltd,13/11/2018,"2,370.00",Staff Costs
Allan Robertson Consulting Limited,26/02/2018,"3,655.50",Capital Expenditure Total
Allan Robertson Consulting Limited,22/06/2018,"3,500.00",Capital Expenditure Total
Allan'S Magic Events Ltd,25/06/2018,"1,800.00",Supplies & Services
Allied Healthcare,28/03/2018,"50,737.49",Commissioning Services
Allied Healthcare,25/04/2018,"49,781.70",Commissioning Services
Allied Healthcare,23/05/2018,"50,996.81",Commissioning Services
Allied Healthcare,20/06/2018,"54,326.22",Commissioning Services
Allied Healthcare,20/07/2018,"50,670.88",Commissioning Services
Allied Healthcare,22/07/2018,625.80,Commissioning Services
Allied Healthcare,05/08/2018,"2,574.72",Commissioning Services
Allied Healthcare,16/08/2018,"49,235.91",Commissioning Services
Allied Healthcare,02/09/2018,"3,111.12",Commissioning Services
Allied Healthcare,12/09/2018,"52,602.42",Commissioning Services
Allied Healthcare,30/09/2018,"3,343.56",Commissioning Services
Allied Healthcare,10/10/2018,"52,752.70",Commissioning Services
Allied Healthcare,28/10/2018,"3,307.80",Commissioning Services
Allied Healthcare,07/11/2018,"50,927.24",Commissioning Services
Allied Healthcare,25/11/2018,"3,459.78",Commissioning Services
Allied Healthcare,05/12/2018,"51,157.08",Commissioning Services
Allied Healthcare,09/12/2018,"2,136.66",Commissioning Services
Allied Healthcare,31/12/2018,"5,317.26",Commissioning Services
Allied Healthcare,23/12/2019,500.64,Commissioning Services
Allied Healthcare Ltd,11/03/2018,"1,133.40",Commissioning Services
Allied Healthcare Ltd,08/04/2018,909.00,Commissioning Services
Allied Healthcare Ltd,06/05/2018,"1,042.50",Commissioning Services
Allied Healthcare Ltd,03/06/2018,"1,133.40",Commissioning Services
Allied Healthcare Ltd,01/07/2018,"1,021.20",Commissioning Services
Allied Healthcare Ltd,22/07/2018,625.80,Commissioning Services
Allied Healthcare Ltd,29/07/2018,"1,042.50",Commissioning Services
Allied Healthcare Ltd,05/08/2018,"2,574.72",Commissioning Services
Allied Healthcare Ltd,26/08/2018,"1,096.00",Commissioning Services
Allied Healthcare Ltd,02/09/2018,"2,378.04",Commissioning Services
Allied Healthcare Ltd,23/09/2018,"1,143.41",Commissioning Services
Allied Healthcare Ltd,30/09/2018,"2,521.08",Commissioning Services
Allied Healthcare Ltd,21/10/2018,"1,182.34",Commissioning Services
Allied Healthcare Ltd,28/10/2018,"2,431.68",Commissioning Services
Allied Healthcare Ltd,18/11/2018,"1,182.34",Commissioning Services
Allied Healthcare Ltd,25/11/2018,"2,413.80",Commissioning Services
Allied Healthcare Ltd,09/12/2018,686.52,Commissioning Services
Allplay (Ireland) Limited,31/01/2019,"28,999.00",Supplies & Services
Allstar Fitness,23/05/2018,904.82,Supplies & Services
Alpha Fencing Ltd,22/03/2018,"11,291.55",Supplies & Services
Alpha Fencing Ltd,26/03/2018,"7,611.78",Supplies & Services
Alpha Fencing Ltd,20/06/2018,"4,024.58",Supplies & Services
Alpha Fencing Ltd,24/09/2018,"2,210.96",Supplies & Services
Alpha Fencing Ltd,26/10/2018,"6,152.88",Capital Expenditure Total
Alpha Fencing Ltd,30/10/2018,"3,606.90",Supplies & Services
Alpha Fencing Ltd,01/11/2018,"4,792.16",Supplies & Services
Alpha Fencing Ltd,27/11/2018,"24,569.79",Supplies & Services
Alpha Fencing Ltd,12/01/2019,"5,032.37",Supplies & Services
Alpha Geosurvey Ltd,02/08/2018,"5,971.50",Supplies & Services
Alpha Projects (Scotland) Ltd,28/02/2019,"29,500.18",Capital Expenditure Total
Als Environmental Limited,26/03/2018,"1,172.80",Supplies & Services
Als Environmental Limited,28/03/2018,567.00,Supplies & Services
Als Environmental Limited,10/04/2018,567.00,Supplies & Services
Als Environmental Limited,24/04/2018,"1,071.00",Supplies & Services
Als Environmental Limited,02/05/2018,504.00,Supplies & Services
Als Environmental Limited,17/05/2018,504.00,Supplies & Services
Als Environmental Limited,23/05/2018,567.00,Supplies & Services
Als Environmental Limited,29/05/2018,605.00,Supplies & Services
Als Environmental Limited,06/06/2018,755.00,Supplies & Services
Als Environmental Limited,07/06/2018,514.00,Supplies & Services
Als Environmental Limited,26/11/2018,951.30,Supplies & Services
Als Environmental Limited,30/11/2018,"1,109.85",Supplies & Services
Als Environmental Limited,27/12/2018,616.48,Supplies & Services
Als Environmental Limited,31/12/2018,"2,774.16",Supplies & Services
Als Holdings Ltd T/A Ac Education,19/12/2018,"5,200.00",Supplies & Services
Altens And Cove Community Centre,14/05/2018,"5,530.00",Supplies & Services
Altens And Cove Community Centre,09/10/2018,"5,534.00",Supplies & Services
Altens And Cove Community Centre,08/03/2019,"5,530.00",Supplies & Services
Altens Lorry Park Development,14/02/2019,"14,668.81",Transfer Payments
Altens Lorry Park Development,13/03/2019,"5,509.65",Transfer Payments
Alzheimer Scotland,28/03/2018,"1,023.98",Supplies & Services
Alzheimer Scotland,05/06/2018,"7,385.49",Commissioning Services
Alzheimer Scotland,02/07/2018,"7,385.49",Commissioning Services
Alzheimer Scotland,01/08/2018,"7,385.49",Commissioning Services
Alzheimer Scotland,01/09/2018,"7,385.49",Commissioning Services
Alzheimer Scotland,01/10/2018,"7,385.49",Commissioning Services
Alzheimer Scotland,01/10/2018,"18,753.00",Supplies & Services
Alzheimer Scotland,01/11/2018,"7,385.49",Commissioning Services
Alzheimer Scotland,01/01/2019,"26,138.49",Commissioning Services
Alzheimer Scotland,01/02/2019,"7,385.49",Commissioning Services
Alzheimer Scotland,01/03/2019,"7,385.49",Commissioning Services
Alzheimers Scotland,03/04/2018,"28,129.50",Short Term Creditors
Alzheimers Scotland,01/05/2018,"7,385.49",Commissioning Services
Alzheimers Scotland,01/12/2018,"7,385.49",Commissioning Services
Amadores Ltd,20/09/2018,"1,776.00",Transfer Payments
Amandeep,24/01/2019,"2,236.80",Transfer Payments
Amarone Restaurants Ltd,24/01/2019,"1,418.19",Transfer Payments
Amber Kindergarten,23/04/2018,"11,301.73",Commissioning Services
Amber Kindergarten,19/09/2018,905.77,Commissioning Services
Amber Kindergarten,24/09/2018,"6,081.53",Commissioning Services
Amber Kindergarten,21/01/2019,"8,596.72",Commissioning Services
Amber Kindergarten,18/02/2019,"1,033.20",Commissioning Services
Amberol Limited,31/05/2018,"3,493.26",Supplies & Services
Americanino Ltd  (Incorporating Mr Memory),17/12/2018,"2,362.75",Supplies & Services
Americanino Ltd  (Incorporating Mr Memory),31/12/2018,675.00,Supplies & Services
A.M. Irvine Slating Ltd,13/04/2018,591.00,Premises Costs
A M Phillip Agritech Ltd,27/02/2018,681.35,Supplies & Services
A M Phillip Agritech Ltd,08/03/2018,607.63,Supplies & Services
A M Phillip Agritech Ltd,31/03/2018,560.00,Transport Costs
A M Phillip Agritech Ltd,30/04/2018,560.00,Transport Costs
A M Phillip Agritech Ltd,15/05/2018,"2,088.98",Supplies & Services
A M Phillip Agritech Ltd,16/05/2018,659.83,Supplies & Services
A M Phillip Agritech Ltd,25/05/2018,857.50,Supplies & Services
A M Phillip Agritech Ltd,30/05/2018,"4,191.09",Supplies & Services
A M Phillip Agritech Ltd,01/06/2018,505.24,Supplies & Services
A M Phillip Agritech Ltd,11/06/2018,540.61,Short Term Creditors
A M Phillip Agritech Ltd,27/06/2018,833.45,Supplies & Services
A M Phillip Agritech Ltd,16/07/2018,603.02,Supplies & Services
Am Phillip Trucktech Ltd,30/11/2017,"1,143.66",Supplies & Services
Am Phillip Trucktech Ltd,14/03/2018,780.73,Supplies & Services
Am Phillip Trucktech Ltd,23/03/2018,533.30,Supplies & Services
Am Phillip Trucktech Ltd,03/04/2018,525.56,Supplies & Services
Am Phillip Trucktech Ltd,30/04/2018,"1,547.07",Supplies & Services
Am Phillip Trucktech Ltd,24/05/2018,"1,075.92",Supplies & Services
Am Phillip Trucktech Ltd,05/06/2018,879.10,Supplies & Services
Am Phillip Trucktech Ltd,06/06/2018,518.20,Supplies & Services
Am Phillip Trucktech Ltd,12/06/2018,595.54,Supplies & Services
Am Phillip Trucktech Ltd,21/06/2018,678.95,Supplies & Services
Am Phillip Trucktech Ltd,26/07/2018,784.50,Supplies & Services
Am Phillip Trucktech Ltd,11/08/2018,651.95,Supplies & Services
Am Phillip Trucktech Ltd,05/09/2018,506.27,Supplies & Services
Am Phillip Trucktech Ltd,20/09/2018,"24,232.55",Transfer Payments
Am Phillip Trucktech Ltd,27/09/2018,"1,191.30",Supplies & Services
Am Phillip Trucktech Ltd,02/10/2018,687.79,Supplies & Services
Am Phillip Trucktech Ltd,04/10/2018,"1,328.07",Supplies & Services
Am Phillip Trucktech Ltd,26/10/2018,674.05,Supplies & Services
Am Phillip Trucktech Ltd,30/10/2018,524.95,Supplies & Services
Am Phillip Trucktech Ltd,01/11/2018,528.40,Supplies & Services
Am Phillip Trucktech Ltd,22/11/2018,532.76,Supplies & Services
Am Phillip Trucktech Ltd,05/12/2018,524.95,Supplies & Services
Am Phillip Trucktech Ltd,14/12/2018,619.40,Supplies & Services
Am Phillip Trucktech Ltd,24/12/2018,"3,849.84",Supplies & Services
Am Phillip Trucktech Ltd,10/01/2019,"3,002.90",Supplies & Services
A&M Smith Skip Hire Ltd,15/04/2018,"1,649.60",Supplies & Services
A&M Smith Skip Hire Ltd,30/04/2018,"1,423.10",Supplies & Services
A&M Smith Skip Hire Ltd,31/05/2018,809.50,Supplies & Services
A&M Smith Skip Hire Ltd,15/06/2018,"1,717.20",Supplies & Services
A&M Smith Skip Hire Ltd,31/07/2018,722.50,Supplies & Services
A&M Smith Skip Hire Ltd,15/08/2018,"1,318.00",Supplies & Services
A&M Smith Skip Hire Ltd,31/08/2018,980.30,Supplies & Services
A&M Smith Skip Hire Ltd,15/09/2018,884.82,Supplies & Services
A&M Smith Skip Hire Ltd,15/10/2018,"1,480.92",Supplies & Services
A&M Smith Skip Hire Ltd,15/11/2018,"1,238.26",Supplies & Services
A&M Smith Skip Hire Ltd,30/11/2018,"1,177.30",Supplies & Services
A&M Smith Skip Hire Ltd,15/12/2018,"2,054.50",Supplies & Services
A&M Smith Skip Hire Ltd,15/01/2019,"1,625.70",Supplies & Services
A&M Smith Skip Hire Ltd,31/01/2019,613.82,Supplies & Services
A&M Smith Skip Hire Ltd,15/02/2019,"1,361.04",Supplies & Services
A&M Smith Skip Hire Ltd,28/02/2019,593.36,Supplies & Services
Analytical Information Systems Ltd,14/08/2018,"5,448.00",Supplies & Services
Ana Recruitment Professionals,29/12/2017,929.23,Staff Costs
Ana Recruitment Professionals,13/02/2018,513.52,Staff Costs
Ana Recruitment Professionals,06/03/2018,644.86,Staff Costs
Ana Recruitment Professionals,07/11/2018,690.46,Transfer Payments
Ana Recruitment Professionals,16/11/2018,874.00,Transfer Payments
Ana Recruitment Professionals,23/11/2018,874.00,Transfer Payments
Ana Recruitment Professionals,29/11/2018,874.00,Transfer Payments
Ana Recruitment Professionals,07/12/2018,874.00,Transfer Payments
Ana Recruitment Professionals,13/12/2018,874.00,Transfer Payments
Ana Recruitment Professionals,21/12/2018,874.00,Transfer Payments
Ana Recruitment Professionals,14/01/2019,"1,748.00",Transfer Payments
Ana Recruitment Professionals,17/01/2019,874.00,Transfer Payments
Ana Recruitment Professionals,24/01/2019,874.00,Transfer Payments
Ana Recruitment Professionals,31/01/2019,874.00,Transfer Payments
Ana Recruitment Professionals,07/02/2019,874.00,Transfer Payments
Ana Recruitment Professionals,15/02/2019,874.00,Transfer Payments
Ana Recruitment Professionals,21/02/2019,"1,012.69",Transfer Payments
Ancyra Health Limited,07/03/2018,684.00,Commissioning Services
Ancyra Health Limited,27/04/2018,684.00,Commissioning Services
Ancyra Health Limited,04/05/2018,702.43,Commissioning Services
Ancyra Health Limited,31/05/2018,696.00,Commissioning Services
Ancyra Health Limited,30/06/2018,696.00,Commissioning Services
Ancyra Health Limited,27/07/2018,696.00,Commissioning Services
Ancyra Health Limited,23/01/2019,"13,473.87",Commissioning Services
"Anderson, Anderson And Brown Llp",22/06/2018,"20,746.00",Transfer Payments
"Anderson, Anderson And Brown Llp",19/10/2018,"306,593.09",Transfer Payments
"Anderson, Anderson And Brown Llp",01/11/2018,"40,072.44",Transfer Payments
Andersonbain Llp,16/07/2018,"142,980.00",Capital Expenditure Total
Andersonbain Llp,19/11/2018,"130,000.00",Capital Expenditure Total
Anderson Construction (Aberdeen) Ltd,30/01/2019,"3,187.05",Capital Expenditure Total
Anderson Specialist Contracting Ltd,22/06/2018,"1,655.00",Supplies & Services
Anderson Specialist Contracting Ltd,10/07/2018,"35,880.73",Capital Expenditure Total
Anderson Specialist Contracting Ltd,07/01/2019,"19,361.20",Capital Expenditure Total
Andersons Residential Home,20/03/2018,"2,307.68",Commissioning Services
Andersons Residential Home,23/04/2018,"2,307.68",Commissioning Services
Andersons Residential Home,17/05/2018,"2,385.56",Commissioning Services
Andersons Residential Home,28/06/2018,"2,319.88",Commissioning Services
Andersons Residential Home,13/07/2018,"2,319.88",Commissioning Services
Andersons Residential Home,14/08/2018,"2,319.88",Commissioning Services
Andersons Residential Home,10/12/2018,"9,487.58",Commissioning Services
Andersons Residential Home,07/01/2019,"2,397.76",Commissioning Services
Anderson Strathern Llp,30/04/2018,"137,685.27",Capital Expenditure Total
Anderson Strathern Llp,06/07/2018,"1,150.00",Administration Costs
Anderson Transport,21/03/2018,900.00,Commissioning Services
Ande Salvin-Keech T/A Dolce Vita Flowers,01/06/2018,780.55,Transfer Payments
Andrell Education Limited,07/06/2018,995.00,Supplies & Services
Andrell Education Limited,21/06/2018,"1,200.00",Supplies & Services
Andrell Education Limited,10/08/2018,995.00,Supplies & Services
Andrell Education Limited,19/09/2018,995.00,Supplies & Services
Andrell Education Limited,02/10/2018,995.00,Supplies & Services
Andrell Education Limited,08/10/2018,995.00,Supplies & Services
Andrell Education Limited,30/10/2018,995.00,Supplies & Services
Andrell Education Limited,18/01/2019,995.00,Supplies & Services
Andrew Cowie Construction Ltd,13/12/2018,"1,896.33",Transfer Payments
Andrew Shepherd Construction Ltd,03/04/2018,"39,021.35",Capital Expenditure Total
Andrew Shepherd Construction Ltd,17/04/2018,"77,144.04",Capital Expenditure Total
Andrew Shepherd Construction Ltd,30/04/2018,"89,252.91",Capital Expenditure Total
Andrew Shepherd Construction Ltd,10/05/2018,"171,448.59",Capital Expenditure Total
Andrew Shepherd Construction Ltd,16/05/2018,"50,406.63",Capital Expenditure Total
Andrew Shepherd Construction Ltd,23/05/2018,"69,164.56",Capital Expenditure Total
Andrew Shepherd Construction Ltd,12/06/2018,"182,326.60",Capital Expenditure Total
Andrew Shepherd Construction Ltd,22/06/2018,"102,532.81",Capital Expenditure Total
Andrew Shepherd Construction Ltd,11/07/2018,"198,654.03",Capital Expenditure Total
Andrew Shepherd Construction Ltd,24/07/2018,"82,781.46",Capital Expenditure Total
Andrew Shepherd Construction Ltd,08/08/2018,"142,164.61",Capital Expenditure Total
Andrew Shepherd Construction Ltd,21/08/2018,"51,419.72",Capital Expenditure Total
Andrew Shepherd Construction Ltd,04/09/2018,"98,852.48",Capital Expenditure Total
Andrew Shepherd Construction Ltd,18/09/2018,"31,010.26",Capital Expenditure Total
Andrew Shepherd Construction Ltd,19/09/2018,"256,741.61",Capital Expenditure Total
Andrew Shepherd Construction Ltd,16/10/2018,"58,008.82",Capital Expenditure Total
Andrew Shepherd Construction Ltd,25/10/2018,"143,181.10",Capital Expenditure Total
Andrew Shepherd Construction Ltd,13/11/2018,"243,123.49",Capital Expenditure Total
Andrew Shepherd Construction Ltd,19/11/2018,"45,995.32",Capital Expenditure Total
Andrew Shepherd Construction Ltd,22/11/2018,"66,550.80",Capital Expenditure Total
Andrew Shepherd Construction Ltd,11/12/2018,"195,397.47",Capital Expenditure Total
Andrew Shepherd Construction Ltd,12/12/2018,"44,242.07",Capital Expenditure Total
Andrew Shepherd Construction Ltd,15/01/2019,"143,845.41",Capital Expenditure Total
Andrew Shepherd Construction Ltd,24/01/2019,"88,019.31",Capital Expenditure Total
Andrew Shepherd Construction Ltd,05/02/2019,"169,897.91",Capital Expenditure Total
Andrew Shepherd Construction Ltd,11/02/2019,"37,801.04",Capital Expenditure Total
Andrew Shepherd Construction Ltd,13/02/2019,"30,263.23",Staff Costs
Andrew Shepherd Construction Ltd,21/02/2019,"160,928.68",Capital Expenditure Total
Andrew Shepherd Construction Ltd,05/03/2019,"45,504.18",Capital Expenditure Total
Andrew Shepherd Construction Ltd,07/03/2019,"24,163.49",Capital Expenditure Total
Andrew Shepherd Construction Ltd,08/03/2019,"12,933.00",Capital Expenditure Total
Andrew Shepherd Construction Ltd,11/03/2019,"109,507.57",Capital Expenditure Total
Andrews Sykes Hire Ltd,31/03/2018,528.00,Supplies & Services
Andrews Sykes Hire Ltd,30/04/2018,504.00,Supplies & Services
Andrews Sykes Hire Ltd,31/05/2018,552.00,Supplies & Services
Andrews Sykes Hire Ltd,30/06/2018,504.00,Supplies & Services
Andrews Sykes Hire Ltd,31/07/2018,528.00,Supplies & Services
Andrews Sykes Hire Ltd,31/08/2018,552.00,Supplies & Services
Andrews Sykes Hire Ltd,31/10/2018,552.00,Supplies & Services
Andrews Sykes Hire Ltd,30/11/2018,528.00,Supplies & Services
Andrews Sykes Hire Ltd,31/12/2018,504.00,Supplies & Services
Andrews Sykes Hire Ltd,31/01/2019,552.00,Supplies & Services
Angel Springs Ltd T/A Waterlogic Uk,31/07/2018,577.34,Supplies & Services
Anglian Water Business (National) Ltd,31/05/2018,746.28,Supplies & Services
Anglian Water Business (National) Ltd,29/11/2018,746.28,Capital Expenditure Total
Anglian Water Business (National) Ltd,24/01/2019,"1,442,089.56",Short Term Debtors
Angus Biofuels,28/03/2018,"4,121.10",Premises Costs
Angus Biofuels,30/04/2018,"4,906.94",Premises Costs
Angus Biofuels,29/05/2018,"4,189.68",Premises Costs
Angus Biofuels,27/06/2018,"2,309.18",Premises Costs
Angus Biofuels,31/07/2018,544.50,Premises Costs
Angus Biofuels,30/08/2018,"3,531.83",Premises Costs
Angus Biofuels,27/09/2018,"2,309.18",Premises Costs
Angus Biofuels,30/10/2018,"4,554.00",Premises Costs
Angus Biofuels,28/11/2018,"6,324.62",Premises Costs
Angus Biofuels,27/12/2018,"1,760.22",Premises Costs
Angus Biofuels,31/01/2019,"3,531.33",Premises Costs
Angus Chain Saws,07/08/2018,827.64,Supplies & Services
Angus Chain Saws,08/09/2018,523.08,Supplies & Services
Angus Council,20/07/2018,"6,750.00",Administration Costs
Angus Council,24/08/2018,"2,642.21",Commissioning Services
Angus Council,19/10/2018,"8,335.27",Commissioning Services
Angus Council,18/01/2019,"7,014.86",Commissioning Services
Angus Decorating Co Ltd,19/03/2018,"29,052.50",Supplies & Services
Angus Decorating Co Ltd,28/03/2018,828.70,Supplies & Services
Angus Decorating Co Ltd,08/05/2018,"30,149.25",Supplies & Services
Angus Decorating Co Ltd,17/05/2018,"15,117.70",Supplies & Services
Angus Decorating Co Ltd,10/08/2018,825.00,Supplies & Services
Angus Decorating Co Ltd,16/08/2018,"37,110.40",Supplies & Services
Angus Decorating Co Ltd,03/12/2018,"39,720.37",Supplies & Services
Angus Decorating Co Ltd,11/02/2019,"24,174.40",Supplies & Services
Angus Decorating Co Ltd,13/02/2019,"23,552.60",Supplies & Services
Angus Decorating Co Ltd,22/02/2019,"23,935.75",Supplies & Services
Angusfield House Nursing Home,26/02/2018,"2,680.36",Commissioning Services
Angusfield House Nursing Home,01/03/2018,"1,102.71",Commissioning Services
Angusfield House Nursing Home,26/03/2018,"44,941.37",Commissioning Services
Angusfield House Nursing Home,01/04/2018,"1,067.14",Commissioning Services
Angusfield House Nursing Home,23/04/2018,"42,789.80",Commissioning Services
Angusfield House Nursing Home,25/04/2018,"20,908.63",Commissioning Services
Angusfield House Nursing Home,01/05/2018,"1,120.43",Commissioning Services
Angusfield House Nursing Home,15/05/2018,847.66,Commissioning Services
Angusfield House Nursing Home,21/05/2018,"43,916.59",Commissioning Services
Angusfield House Nursing Home,01/06/2018,"1,084.29",Commissioning Services
Angusfield House Nursing Home,18/06/2018,"71,038.12",Commissioning Services
Angusfield House Nursing Home,01/07/2018,"1,120.43",Commissioning Services
Angusfield House Nursing Home,16/07/2018,"47,809.55",Commissioning Services
Angusfield House Nursing Home,01/08/2018,"1,120.43",Commissioning Services
Angusfield House Nursing Home,13/08/2018,"47,599.68",Commissioning Services
Angusfield House Nursing Home,01/09/2018,"1,084.29",Commissioning Services
Angusfield House Nursing Home,09/09/2018,"2,375.56",Commissioning Services
Angusfield House Nursing Home,10/09/2018,"45,930.52",Commissioning Services
Angusfield House Nursing Home,01/10/2018,"1,120.43",Commissioning Services
Angusfield House Nursing Home,08/10/2018,"48,537.09",Commissioning Services
Angusfield House Nursing Home,01/11/2018,"1,084.29",Commissioning Services
Angusfield House Nursing Home,05/11/2018,"44,316.17",Commissioning Services
Angusfield House Nursing Home,01/12/2018,"1,120.43",Commissioning Services
Angusfield House Nursing Home,03/12/2018,"61,081.09",Commissioning Services
Angusfield House Nursing Home,31/12/2018,"46,008.66",Commissioning Services
Angusfield House Nursing Home,01/01/2019,"1,120.43",Commissioning Services
Angusfield House Nursing Home,28/01/2019,"41,811.52",Commissioning Services
Angusfield House Nursing Home,01/02/2019,"1,012.00",Commissioning Services
Angusfield House Nursing Home,25/02/2019,"41,696.09",Commissioning Services
Angusfield House Nursing Home,05/11/2019,"1,012.00",Commissioning Services
Annesley House Nursing Home,02/04/2018,"8,324.84",Commissioning Services
Annesley House Nursing Home,30/04/2018,"8,551.24",Commissioning Services
Annesley House Nursing Home,28/05/2018,"8,624.91",Commissioning Services
Annesley House Nursing Home,25/06/2018,"8,546.16",Commissioning Services
Annesley House Nursing Home,02/07/2018,"1,335.54",Commissioning Services
Annesley House Nursing Home,09/07/2018,"1,548.20",Commissioning Services
Annesley House Nursing Home,16/07/2018,"1,575.00",Commissioning Services
Annesley House Nursing Home,23/07/2018,"1,578.00",Commissioning Services
Annesley House Nursing Home,24/07/2018,"20,977.29",Commissioning Services
Annesley House Nursing Home,30/07/2018,"1,559.60",Commissioning Services
Annesley House Nursing Home,06/08/2018,"1,594.00",Commissioning Services
Annesley House Nursing Home,13/08/2018,"1,692.00",Commissioning Services
Annesley House Nursing Home,20/08/2018,"11,829.71",Commissioning Services
Annesley House Nursing Home,27/08/2018,790.00,Commissioning Services
Annesley House Nursing Home,17/09/2018,"9,815.32",Commissioning Services
Annesley House Nursing Home,12/10/2018,"7,791.32",Commissioning Services
Annesley House Nursing Home,15/10/2018,"10,391.32",Commissioning Services
Annesley House Nursing Home,12/11/2018,"2,024.00",Commissioning Services
Annesley House Nursing Home,10/12/2018,"7,746.13",Commissioning Services
Annesley House Nursing Home,07/01/2019,"7,056.40",Commissioning Services
Annesley House Nursing Home,09/01/2019,"6,333.53",Commissioning Services
Annesley House Nursing Home,04/02/2019,"7,056.40",Commissioning Services
Ann Inspired Care Ltd,11/01/2018,"1,701.70",Commissioning Services
Ann Inspired Care Ltd,05/03/2018,724.50,Commissioning Services
Ann Inspired Care Ltd,20/03/2018,"1,652.26",Commissioning Services
Ann Inspired Care Ltd,29/03/2018,"2,171.43",Commissioning Services
Ann Inspired Care Ltd,09/04/2018,"7,297.24",Commissioning Services
Ann Inspired Care Ltd,01/05/2018,"2,201.69",Commissioning Services
Ann Inspired Care Ltd,03/05/2018,527.65,Commissioning Services
Ann Inspired Care Ltd,08/05/2018,"2,188.76",Commissioning Services
Ann Inspired Care Ltd,14/05/2018,"3,711.40",Commissioning Services
Ann Inspired Care Ltd,23/05/2018,"1,704.97",Commissioning Services
Ann Inspired Care Ltd,24/05/2018,"2,723.48",Commissioning Services
Ann Inspired Care Ltd,01/06/2018,"4,678.60",Commissioning Services
Ann Inspired Care Ltd,13/06/2018,"4,380.22",Commissioning Services
Ann Inspired Care Ltd,26/06/2018,"2,192.32",Commissioning Services
Ann Inspired Care Ltd,28/06/2018,"1,816.62",Commissioning Services
Ann Inspired Care Ltd,09/07/2018,"1,679.60",Commissioning Services
Ann Inspired Care Ltd,16/07/2018,"2,329.34",Commissioning Services
Ann Inspired Care Ltd,19/07/2018,"2,311.66",Commissioning Services
Ann Inspired Care Ltd,25/07/2018,"2,210.00",Commissioning Services
Ann Inspired Care Ltd,10/08/2018,"2,267.46",Commissioning Services
Ann Inspired Care Ltd,13/08/2018,"2,320.50",Commissioning Services
Ann Inspired Care Ltd,20/08/2018,"2,267.46",Commissioning Services
Ann Inspired Care Ltd,24/08/2018,"2,254.20",Commissioning Services
Ann Inspired Care Ltd,27/08/2018,777.92,Commissioning Services
Ann Inspired Care Ltd,07/09/2018,"1,741.48",Commissioning Services
Ann Inspired Care Ltd,20/09/2018,"2,311.66",Commissioning Services
Ann Inspired Care Ltd,25/09/2018,"1,728.22",Commissioning Services
Ann Inspired Care Ltd,01/10/2018,"1,768.00",Commissioning Services
Ann Inspired Care Ltd,19/10/2018,"1,741.48",Commissioning Services
Ann Inspired Care Ltd,23/10/2018,"3,951.48",Commissioning Services
Ann Inspired Care Ltd,24/10/2018,"2,665.26",Commissioning Services
Ann Inspired Care Ltd,02/11/2018,"2,413.32",Commissioning Services
Ann Inspired Care Ltd,09/11/2018,"1,900.60",Commissioning Services
Ann Inspired Care Ltd,23/11/2018,"1,745.90",Commissioning Services
Ann Inspired Care Ltd,27/11/2018,"2,391.22",Commissioning Services
Ann Inspired Care Ltd,03/12/2018,"1,734.85",Commissioning Services
Ann Inspired Care Ltd,12/12/2018,"2,422.16",Commissioning Services
Ann Inspired Care Ltd,13/12/2018,654.16,Commissioning Services
Ann Inspired Care Ltd,18/12/2018,"3,986.84",Commissioning Services
Ann Inspired Care Ltd,19/12/2018,"1,657.50",Commissioning Services
Ann Inspired Care Ltd,04/01/2019,"7,347.47",Commissioning Services
Ann Inspired Care Ltd,16/01/2019,"3,797.58",Commissioning Services
Ann Inspired Care Ltd,23/01/2019,"2,422.16",Commissioning Services
Ann Inspired Care Ltd,28/01/2019,"2,426.58",Commissioning Services
Ann Inspired Care Ltd,29/01/2019,"2,970.24",Commissioning Services
Ann Inspired Care Ltd,13/02/2019,733.72,Commissioning Services
Ann Inspired Care Ltd,15/02/2019,"1,869.66",Commissioning Services
Ann Inspired Care Ltd,26/02/2019,"1,896.18",Commissioning Services
Ann Inspired Care Ltd,28/02/2019,"1,087.32",Commissioning Services
Ann Inspired Care Ltd,07/03/2019,"1,825.46",Commissioning Services
Ann Inspired Care Ltd,11/03/2019,"1,918.28",Commissioning Services
Ansco Signs Ltd,20/08/2018,"2,547.38",Supplies & Services
Ansco Signs Ltd,23/01/2019,"1,195.30",Supplies & Services
Anti Climb Guards Ltd T/A Vandgard,14/05/2018,"1,373.92",Supplies & Services
Anton Paar Ltd,12/04/2018,683.40,Supplies & Services
Aoc Archaeology Group,31/01/2018,"11,340.00",Premises Costs
Aoc Archaeology Group,23/03/2018,"9,255.00",Capital Expenditure Total
Aoc Archaeology Group,27/06/2018,"29,815.00",Capital Expenditure Total
Aoc Archaeology Group,28/09/2018,"34,200.00",Premises Costs
Aon Uk Limited Tenants Insurance Services,05/04/2018,"9,823.50",Administration Costs
Aon Uk Limited Tenants Insurance Services,03/05/2018,"9,912.69",Administration Costs
Aon Uk Limited Tenants Insurance Services,13/06/2018,"10,063.92",Administration Costs
Aon Uk Limited Tenants Insurance Services,03/07/2018,"10,021.61",Administration Costs
Aon Uk Limited Tenants Insurance Services,08/08/2018,"10,122.29",Administration Costs
Aon Uk Limited Tenants Insurance Services,04/09/2018,"10,289.89",Administration Costs
Aon Uk Limited Tenants Insurance Services,05/10/2018,"10,430.59",Administration Costs
Aon Uk Limited Tenants Insurance Services,02/11/2018,"10,441.82",Administration Costs
Aon Uk Limited Tenants Insurance Services,12/12/2018,"10,577.67",Administration Costs
Aon Uk Limited Tenants Insurance Services,08/01/2019,"10,600.78",Administration Costs
Aon Uk Limited Tenants Insurance Services,11/02/2019,"10,572.55",Administration Costs
Aon Uk Limited Tenants Insurance Services,06/03/2019,"10,633.80",Administration Costs
A & P Chambers Ltd,21/08/2018,"1,415.00",Supplies & Services
Apea,16/03/2018,"1,120.00",Administration Costs
Apetito Ltd,31/03/2018,798.64,Supplies & Services
Apetito Ltd,11/04/2018,758.88,Supplies & Services
Apetito Ltd,19/04/2018,734.68,Supplies & Services
Apetito Ltd,15/05/2018,921.20,Supplies & Services
Apetito Ltd,04/07/2018,696.00,Supplies & Services
Apetito Ltd,27/07/2018,684.20,Supplies & Services
Apetito Ltd,29/08/2018,849.30,Supplies & Services
Apetito Ltd,27/09/2018,667.84,Supplies & Services
Apetito Ltd,07/12/2018,822.90,Supplies & Services
Apetito Ltd,20/12/2018,679.84,Supplies & Services
Apetito Ltd,21/12/2018,691.84,Supplies & Services
Apetito Ltd,20/02/2019,"1,534.20",Supplies & Services
Apex Scotland,20/07/2018,"19,009.50",Commissioning Services
Apex Speciality Solutions Ltd,08/05/2018,504.00,Supplies & Services
Apex Speciality Solutions Ltd,18/06/2018,504.00,Supplies & Services
Apex Speciality Solutions Ltd,27/06/2018,504.00,Supplies & Services
Apex Speciality Solutions Ltd,20/08/2018,504.00,Supplies & Services
Apex Speciality Solutions Ltd,12/09/2018,517.60,Supplies & Services
Apex Speciality Solutions Ltd,10/12/2018,504.00,Supplies & Services
Apex Speciality Solutions Ltd,11/01/2019,522.00,Supplies & Services
Apogee Corporation Limited,31/08/2018,608.35,Supplies & Services
Apogee Corporation Ltd,27/09/2018,554.01,Supplies & Services
Apollo Blinds,25/03/2018,528.33,Capital Expenditure Total
Appetite For Business Limited,31/07/2018,600.00,Supplies & Services
Appetite For Business Limited,12/11/2018,"1,400.00",Supplies & Services
Apse,03/04/2018,"3,796.00",Supplies & Services
Apse,18/04/2018,"2,050.00",Administration Costs
Apse,01/05/2018,890.00,Administration Costs
Apse,15/06/2018,"7,566.41",Supplies & Services
Apse,05/10/2018,"5,454.78",Supplies & Services
Apse,31/10/2018,516.00,Supplies & Services
Apse,13/11/2018,"9,251.58",Supplies & Services
Apse,22/01/2019,"10,854.57",Supplies & Services
Aqua Leisure Ltd,28/03/2018,632.98,Premises Costs
Aqua Leisure Ltd,20/11/2018,960.52,Capital Expenditure Total
Aqua Leisure Ltd,05/12/2018,"57,000.00",Capital Expenditure Total
Aqua Leisure Ltd,07/02/2019,"70,155.48",Capital Expenditure Total
Aqua Power Services Ltd,19/06/2018,840.00,Supplies & Services
Aqua Power Services Ltd,08/11/2018,"1,020.00",Supplies & Services
Aquarius Solutions,04/04/2018,"2,177.16",Supplies & Services
Aquarius Solutions,27/04/2018,"1,197.00",Supplies & Services
Aquarius Solutions,17/05/2018,"1,530.00",Supplies & Services
Aquarius Solutions,20/06/2018,"1,542.60",Supplies & Services
Aquarius Solutions,14/08/2018,960.50,Supplies & Services
Aquarius Solutions,08/10/2018,"1,277.00",Supplies & Services
Aquarius Solutions,24/10/2018,"1,647.60",Supplies & Services
Aquarius Solutions,05/11/2018,"1,668.00",Supplies & Services
Aquarius Solutions,25/01/2019,"1,550.00",Inventories
Arcadia Group Plc,16/08/2018,"2,460.00",Transfer Payments
Archer Marketing,19/06/2018,"1,023.00",Supplies & Services
Archer Marketing,08/11/2018,"5,830.00",Supplies & Services
Archway,23/02/2017,"23,095.36",Commissioning Services
Archway,04/08/2017,"1,840.00",Commissioning Services
Archway,25/01/2018,"17,376.96",Commissioning Services
Archway,05/02/2018,"72,865.00",Commissioning Services
Archway,13/02/2018,"77,313.00",Commissioning Services
Archway,19/02/2018,"3,683.16",Commissioning Services
Archway,06/03/2018,"37,823.60",Commissioning Services
Archway,12/03/2018,"1,062.45",Commissioning Services
Archway,13/03/2018,"71,570.50",Commissioning Services
Archway,09/04/2018,"77,491.50",Commissioning Services
Archway,10/04/2018,"5,823.80",Commissioning Services
Archway,24/04/2018,"5,587.70",Commissioning Services
Archway,09/05/2018,"44,240.00",Commissioning Services
Archway,10/05/2018,"2,391.68",Commissioning Services
Archway,13/05/2018,"9,660.00",Commissioning Services
Archway,23/05/2018,"73,406.00",Commissioning Services
Archway,28/05/2018,"2,825.33",Commissioning Services
Archway,06/06/2018,"44,279.68",Commissioning Services
Archway,08/06/2018,"6,299.61",Commissioning Services
Archway,12/06/2018,"79,058.00",Commissioning Services
Archway,11/07/2018,"84,036.00",Commissioning Services
Archway,12/07/2018,511.55,Commissioning Services
Archway,16/07/2018,"44,279.68",Commissioning Services
Archway,13/08/2018,"111,443.68",Commissioning Services
Archway,14/08/2018,"7,208.92",Commissioning Services
Archway,20/08/2018,"44,279.68",Commissioning Services
Archway,13/09/2018,"77,826.00",Commissioning Services
Archway,17/09/2018,"4,084.53",Commissioning Services
Archway,18/09/2018,"44,279.68",Commissioning Services
Archway,28/09/2018,"10,420.52",Commissioning Services
Archway,12/10/2018,"3,966.48",Commissioning Services
Archway,15/10/2018,"41,143.68",Commissioning Services
Archway,16/10/2018,"81,884.00",Commissioning Services
Archway,07/11/2018,"82,196.00",Commissioning Services
Archway,08/11/2018,"3,785.47",Commissioning Services
Archway,13/11/2018,"41,143.68",Commissioning Services
Archway,13/12/2018,"108,970.00",Commissioning Services
Archway,14/12/2018,"8,553.89",Commissioning Services
Archway,08/01/2019,"44,279.68",Commissioning Services
Archway,10/01/2019,"76,751.97",Commissioning Services
Archway,12/02/2019,"47,089.27",Commissioning Services
Archway,11/03/2019,"72,326.00",Commissioning Services
Archway,11/03/2019,"19,540.00",Transfer Payments
Archway,12/03/2019,"45,342.13",Commissioning Services
Arcola Energy Ltd,29/03/2018,"27,145.00",Supplies & Services
Arcola Energy Ltd,30/04/2018,"10,855.00",Supplies & Services
Arcola Energy Ltd,07/11/2018,"74,921.41",Supplies & Services
Arcola Energy Ltd,04/01/2019,"79,084.81",Supplies & Services
Arco Limited,19/03/2018,502.90,Inventories
Arco Limited,20/03/2018,798.40,Staff Costs
Arco Limited,27/03/2018,683.84,Supplies & Services
Arco Limited,05/04/2018,839.21,Staff Costs
Arco Limited,11/04/2018,893.19,Inventories
Arco Limited,14/05/2018,796.00,Inventories
Arco Limited,29/05/2018,624.00,Staff Costs
Arco Limited,12/06/2018,751.15,Staff Costs
Arco Limited,19/07/2018,931.50,Supplies & Services
Arco Limited,25/07/2018,645.69,Staff Costs
Arco Limited,25/07/2018,"1,495.99",Supplies & Services
Arco Limited,26/07/2018,540.00,Supplies & Services
Arco Limited,10/08/2018,"1,068.56",Supplies & Services
Arco Limited,17/08/2018,625.20,Supplies & Services
Arco Limited,20/09/2018,595.49,Inventories
Arco Limited,04/10/2018,549.00,Staff Costs
Arco Limited,20/10/2018,631.33,Inventories
Arco Limited,24/10/2018,603.74,Inventories
Arco Limited,31/10/2018,728.74,Inventories
Arco Limited,22/11/2018,939.05,Supplies & Services
Arco Limited,31/01/2019,693.89,Staff Costs
Arco Limited,19/02/2019,"4,725.00",Supplies & Services
Ar Entertainments Ltd,16/09/2018,"2,645.00",Supplies & Services
Argonaut Marine Ltd,17/05/2018,961.75,Transfer Payments
Aristo-Kat Discos,01/09/2018,540.00,Supplies & Services
Arjo Uk Ltd,25/04/2018,"2,728.68",Premises Costs
Arjo Uk Ltd,22/05/2018,516.53,Premises Costs
Arjo Uk Ltd,24/08/2018,"6,451.56",Premises Costs
Arjo Uk Ltd,05/10/2018,"1,064.52",Premises Costs
Arjo Uk Ltd,23/11/2018,655.44,Premises Costs
Arjo Uk Ltd,30/11/2018,"1,410.53",Premises Costs
Arjo Uk Ltd,31/01/2019,"3,479.73",Premises Costs
Arkadiys Wachonski,31/05/2018,"1,188.51",Supplies & Services
Arkay Imaging Ltd,04/06/2018,"7,480.00",Administration Costs
Ark Housing Association Ltd (Housing),20/02/2018,"4,161.28",Premises Costs
Ark Housing Association Ltd (Housing),08/03/2018,"6,374.59",Premises Costs
Ark Housing Association Ltd (Housing),26/03/2018,"9,328.76",Commissioning Services
Ark Housing Association Ltd (Housing),05/04/2018,"2,113.26",Premises Costs
Ark Housing Association Ltd (Housing),23/04/2018,"9,328.76",Commissioning Services
Ark Housing Association Ltd (Housing),21/05/2018,"9,328.76",Commissioning Services
Ark Housing Association Ltd (Housing),18/06/2018,"8,995.59",Commissioning Services
Ark Housing Association Ltd (Housing),29/06/2018,"1,087.56",Premises Costs
Ark Housing Association Ltd (Housing),16/07/2018,"9,328.76",Commissioning Services
Ark Housing Association Ltd (Housing),13/08/2018,"9,328.76",Commissioning Services
Ark Housing Association Ltd (Housing),10/09/2018,"9,328.76",Commissioning Services
Ark Housing Association Ltd (Housing),03/10/2018,"1,087.56",Premises Costs
Ark Housing Association Ltd (Housing),08/10/2018,"9,328.76",Commissioning Services
Ark Housing Association Ltd (Housing),05/11/2018,"9,328.76",Commissioning Services
Ark Housing Association Ltd (Housing),31/01/2019,"1,087.56",Premises Costs
Ark Services Ltd,31/01/2018,"2,319.74",Commissioning Services
Ark Services Ltd,31/01/2018,"1,118.53",Premises Costs
Ark Services Ltd,08/03/2018,"3,355.59",Administration Costs
Ark Services Ltd,08/03/2018,"1,628.93",Commissioning Services
Ark Services Ltd,02/04/2018,"1,628.93",Commissioning Services
Ark Services Ltd,21/05/2018,"1,440.34",Commissioning Services
Ark Services Ltd,22/05/2018,531.77,Commissioning Services
Ark Services Ltd,22/05/2018,"3,223.11",Premises Costs
Ark Services Ltd,24/05/2018,"1,209.39",Administration Costs
Ark Services Ltd,28/05/2018,874.09,Commissioning Services
Ark Services Ltd,04/06/2018,"1,071.86",Commissioning Services
Ark Services Ltd,09/07/2018,"1,071.86",Commissioning Services
Ark Services Ltd,27/07/2018,"3,612.81",Premises Costs
Ark Services Ltd,06/08/2018,"1,071.86",Commissioning Services
Ark Services Ltd,07/08/2018,514.59,Commissioning Services
Ark Services Ltd,23/08/2018,"2,400.00",Premises Costs
Ark Services Ltd,12/09/2018,"1,071.86",Commissioning Services
Ark Services Ltd,13/09/2018,514.59,Commissioning Services
Ark Services Ltd,03/10/2018,"1,586.45",Commissioning Services
Ark Services Ltd,03/10/2018,"3,612.81",Premises Costs
Ark Services Ltd,19/10/2018,648.96,Commissioning Services
Ark Services Ltd,25/10/2018,"1,586.45",Commissioning Services
Ark Services Ltd,29/11/2018,"4,040.03",Commissioning Services
Ark Services Ltd,30/11/2018,514.59,Commissioning Services
Ark Services Ltd,18/12/2018,"1,576.29",Commissioning Services
Ark Services Ltd,20/12/2018,"4,367.27",Premises Costs
Ark Services Ltd,21/12/2018,514.59,Commissioning Services
Ark Services Ltd,10/01/2019,"1,576.29",Commissioning Services
Ark Services Ltd,16/01/2019,514.59,Commissioning Services
Ark Services Ltd,31/01/2019,"1,576.29",Commissioning Services
Ark Services Ltd,31/01/2019,"12,347.35",Premises Costs
Ark Services Ltd,01/02/2019,514.59,Commissioning Services
Ark Services Ltd,08/03/2019,"1,559.32",Commissioning Services
Arneil Johnston,28/02/2018,"4,252.50",Capital Expenditure Total
Arneil Johnston,30/03/2018,"5,439.00",Capital Expenditure Total
Arneil Johnston,06/04/2018,"2,835.00",Capital Expenditure Total
Arneil Johnston,30/04/2018,"1,063.13",Capital Expenditure Total
Arneil Johnston,31/07/2018,"5,512.50",Capital Expenditure Total
Arneil Johnston,31/07/2018,"23,287.50",Supplies & Services
Arneil Johnston,31/08/2018,"6,483.75",Capital Expenditure Total
Arnold Clark Finance Limited,29/03/2018,655.20,Transport Costs
Arnold Clark Finance Limited,27/04/2018,610.40,Transport Costs
Arnold Clark Finance Limited,30/04/2018,655.20,Transport Costs
Arnold Clark Finance Limited,24/05/2018,655.20,Transport Costs
Arnold Clark Finance Limited,25/05/2018,531.44,Transport Costs
Arnold Clark Finance Limited,21/06/2018,655.20,Transport Costs
Arnold Clark Finance Limited,25/06/2018,531.44,Transport Costs
Arnold Clark Finance Limited,19/07/2018,531.44,Transport Costs
Arnold Clark Finance Limited,23/07/2018,655.20,Transport Costs
Arnold Clark Finance Limited,08/08/2018,990.00,Transport Costs
Arnold Clark Finance Limited,16/08/2018,637.73,Short Term Creditors
Arnold Clark Finance Limited,17/08/2018,655.20,Transport Costs
Arnold Clark Finance Limited,14/09/2018,"1,186.64",Transport Costs
Arnold Clark Finance Limited,20/09/2018,531.44,Transport Costs
Arnold Clark Finance Limited,25/09/2018,"1,074.88",Transport Costs
Arnold Clark Finance Limited,29/09/2018,531.45,Transport Costs
Arnold Clark Finance Limited,12/10/2018,531.44,Transport Costs
Arnold Clark Finance Limited,15/10/2018,655.20,Transport Costs
Arnold Clark Finance Limited,19/10/2018,531.45,Transport Costs
Arnold Clark Finance Limited,26/10/2018,610.40,Transport Costs
Arnold Clark Finance Limited,08/11/2018,655.20,Transport Costs
Arnold Clark Finance Limited,10/11/2018,531.44,Transport Costs
Arnold Clark Finance Limited,23/11/2018,531.44,Transport Costs
Arnold Clark Finance Limited,06/12/2018,655.20,Transport Costs
Arnold Clark Finance Limited,10/12/2018,531.44,Transport Costs
Arnold Clark Finance Limited,24/12/2018,531.44,Transport Costs
Arnold Clark Finance Limited,03/01/2019,531.44,Transport Costs
Arnold Clark Finance Limited,05/01/2019,655.20,Transport Costs
Arnold Clark Finance Limited,18/01/2019,531.44,Transport Costs
Arnold Clark Finance Limited,20/01/2019,589.40,Transport Costs
Arnold Clark Finance Limited,31/01/2019,"1,186.64",Transport Costs
Arnold Clark Finance Limited,28/02/2019,655.20,Transport Costs
Arnold Clark Finance Limited,01/03/2019,531.44,Transport Costs
Arqiva,27/07/2018,"3,634.00",Supplies & Services
Arqiva,16/10/2018,"1,000.00",Supplies & Services
Arqiva,23/11/2018,"1,076.51",Supplies & Services
A & R Services,06/04/2018,"3,492.00",Supplies & Services
A & R Services,16/05/2018,"3,549.70",Supplies & Services
A & R Services,13/06/2018,"1,268.12",Supplies & Services
A & R Services,10/07/2018,"3,706.50",Supplies & Services
A & R Services,15/11/2018,"1,836.50",Supplies & Services
A & R Services,28/11/2018,"2,114.50",Supplies & Services
A & R Services,04/12/2018,893.00,Transport Costs
A & R Services,23/01/2019,"1,839.00",Supplies & Services
A & R Services,31/01/2019,"3,369.50",Supplies & Services
A & R Services,28/02/2019,"1,091.00",Supplies & Services
Arts & Heritage Services Ltd,30/01/2019,"1,700.00",Supplies & Services
Art Uk,02/08/2018,900.00,Supplies & Services
Asa International Ltd,05/12/2017,547.40,Short Term Creditors
Asa International Ltd,13/12/2017,"4,449.94",Staff Costs
Asa International Ltd,27/12/2017,"1,594.24",Staff Costs
Asa International Ltd,06/03/2018,"3,371.76",Staff Costs
Asa International Ltd,13/03/2018,"4,593.72",Staff Costs
Asa International Ltd,14/03/2018,"27,229.28",Staff Costs
Asa International Ltd,15/03/2018,661.36,Staff Costs
Asa International Ltd,20/03/2018,"6,793.27",Staff Costs
Asa International Ltd,22/03/2018,862.44,Staff Costs
Asa International Ltd,27/03/2018,"34,378.51",Staff Costs
Asa International Ltd,29/03/2018,704.08,Staff Costs
Asa International Ltd,03/04/2018,"15,325.61",Staff Costs
Asa International Ltd,04/04/2018,"4,358.33",Staff Costs
Asa International Ltd,06/04/2018,"1,107.82",Staff Costs
Asa International Ltd,10/04/2018,"6,685.36",Staff Costs
Asa International Ltd,11/04/2018,"18,523.07",Staff Costs
Asa International Ltd,17/04/2018,"7,168.97",Staff Costs
Asa International Ltd,24/04/2018,"4,874.20",Staff Costs
Asa International Ltd,26/04/2018,"1,083.96",Staff Costs
Asa International Ltd,01/05/2018,"34,545.23",Staff Costs
Asa International Ltd,02/05/2018,"33,229.16",Staff Costs
Asa International Ltd,03/05/2018,"1,083.96",Staff Costs
Asa International Ltd,08/05/2018,"7,128.24",Staff Costs
Asa International Ltd,09/05/2018,"21,216.65",Staff Costs
Asa International Ltd,10/05/2018,"1,144.51",Staff Costs
Asa International Ltd,15/05/2018,"5,648.38",Staff Costs
Asa International Ltd,16/05/2018,"12,649.99",Staff Costs
Asa International Ltd,17/05/2018,744.88,Staff Costs
Asa International Ltd,18/05/2018,"7,420.63",Staff Costs
Asa International Ltd,22/05/2018,"8,460.40",Staff Costs
Asa International Ltd,24/05/2018,"2,609.99",Staff Costs
Asa International Ltd,29/05/2018,"17,501.80",Staff Costs
Asa International Ltd,31/05/2018,"20,740.57",Staff Costs
Asa International Ltd,05/06/2018,"7,104.25",Staff Costs
Asa International Ltd,07/06/2018,"1,588.66",Staff Costs
Asa International Ltd,08/06/2018,"8,372.62",Staff Costs
Asa International Ltd,11/06/2018,"30,290.04",Staff Costs
Asa International Ltd,13/06/2018,"4,865.43",Staff Costs
Asa International Ltd,14/06/2018,986.98,Staff Costs
Asa International Ltd,19/06/2018,"6,966.78",Staff Costs
Asa International Ltd,20/06/2018,"27,527.14",Staff Costs
Asa International Ltd,21/06/2018,"1,296.80",Staff Costs
Asa International Ltd,26/06/2018,"26,986.42",Staff Costs
Asa International Ltd,28/06/2018,963.79,Staff Costs
Asa International Ltd,04/07/2018,"6,058.43",Staff Costs
Asa International Ltd,05/07/2018,"1,150.77",Staff Costs
Asa International Ltd,06/07/2018,"22,754.43",Staff Costs
Asa International Ltd,10/07/2018,"17,219.68",Staff Costs
Asa International Ltd,12/07/2018,"1,241.00",Staff Costs
Asa International Ltd,17/07/2018,"8,433.94",Staff Costs
Asa International Ltd,18/07/2018,"31,368.60",Staff Costs
Asa International Ltd,24/07/2018,"8,681.10",Staff Costs
Asa International Ltd,31/07/2018,"28,606.77",Staff Costs
Asa International Ltd,08/08/2018,"4,663.20",Staff Costs
Asa International Ltd,09/08/2018,534.26,Staff Costs
Asa International Ltd,14/08/2018,"6,400.76",Staff Costs
Asa International Ltd,21/08/2018,"10,884.57",Staff Costs
Asa International Ltd,22/08/2018,"93,854.66",Staff Costs
Asa International Ltd,28/08/2018,"6,572.15",Staff Costs
Asa International Ltd,30/08/2018,636.94,Staff Costs
Asa International Ltd,04/09/2018,"6,876.87",Staff Costs
Asa International Ltd,06/09/2018,"1,108.21",Staff Costs
Asa International Ltd,11/09/2018,"9,391.69",Staff Costs
Asa International Ltd,13/09/2018,"1,385.97",Staff Costs
Asa International Ltd,18/09/2018,"10,136.43",Staff Costs
Asa International Ltd,20/09/2018,"13,107.92",Staff Costs
Asa International Ltd,21/09/2018,"108,853.92",Staff Costs
Asa International Ltd,25/09/2018,"6,631.97",Staff Costs
Asa International Ltd,28/09/2018,"1,183.49",Staff Costs
Asa International Ltd,02/10/2018,"6,780.63",Staff Costs
Asa International Ltd,04/10/2018,"1,692.27",Staff Costs
Asa International Ltd,09/10/2018,"48,654.31",Staff Costs
Asa International Ltd,11/10/2018,"1,274.88",Staff Costs
Asa International Ltd,16/10/2018,"5,431.68",Staff Costs
Asa International Ltd,18/10/2018,"1,802.62",Staff Costs
Asa International Ltd,23/10/2018,"6,703.83",Staff Costs
Asa International Ltd,24/10/2018,"49,028.66",Staff Costs
Asa International Ltd,25/10/2018,"11,552.44",Staff Costs
Asa International Ltd,30/10/2018,"4,143.21",Staff Costs
Asa International Ltd,06/11/2018,"6,325.84",Staff Costs
Asa International Ltd,07/11/2018,"37,679.25",Staff Costs
Asa International Ltd,08/11/2018,"2,049.78",Staff Costs
Asa International Ltd,13/11/2018,"25,872.42",Staff Costs
Asa International Ltd,15/11/2018,"1,669.26",Staff Costs
Asa International Ltd,20/11/2018,"6,766.37",Staff Costs
Asa International Ltd,22/11/2018,"2,183.45",Staff Costs
Asa International Ltd,27/11/2018,"6,650.96",Staff Costs
Asa International Ltd,29/11/2018,"2,652.87",Staff Costs
Asa International Ltd,04/12/2018,"6,044.35",Staff Costs
Asa International Ltd,06/12/2018,"2,682.32",Staff Costs
Asa International Ltd,11/12/2018,"52,852.73",Staff Costs
Asa International Ltd,12/12/2018,"11,343.95",Staff Costs
Asa International Ltd,13/12/2018,"2,701.00",Staff Costs
Asa International Ltd,18/12/2018,"6,195.73",Staff Costs
Asa International Ltd,19/12/2018,"14,121.31",Staff Costs
Asa International Ltd,20/12/2018,"3,705.94",Staff Costs
Asa International Ltd,24/12/2018,"3,806.93",Staff Costs
Asa International Ltd,28/12/2018,"22,942.15",Staff Costs
Asa International Ltd,08/01/2019,"16,699.67",Staff Costs
Asa International Ltd,11/01/2019,"3,028.67",Staff Costs
Asa International Ltd,15/01/2019,"3,888.04",Staff Costs
Asa International Ltd,17/01/2019,"2,799.37",Staff Costs
Asa International Ltd,22/01/2019,"4,386.88",Staff Costs
Asa International Ltd,24/01/2019,"2,706.63",Staff Costs
Asa International Ltd,25/01/2019,"14,335.00",Staff Costs
Asa International Ltd,29/01/2019,"2,495.74",Staff Costs
Asa International Ltd,30/01/2019,"27,604.55",Staff Costs
Asa International Ltd,31/01/2019,"2,792.53",Staff Costs
Asa International Ltd,05/02/2019,"3,804.41",Staff Costs
Asa International Ltd,07/02/2019,"3,462.90",Staff Costs
Asa International Ltd,08/02/2019,"11,777.49",Staff Costs
Asa International Ltd,12/02/2019,"2,393.34",Staff Costs
Asa International Ltd,14/02/2019,"2,775.63",Staff Costs
Asa International Ltd,15/02/2019,"11,964.84",Staff Costs
Asa International Ltd,19/02/2019,"1,104.82",Staff Costs
Asa International Ltd,21/02/2019,"2,684.16",Staff Costs
Asa International Ltd,26/02/2019,507.45,Staff Costs
Asa International Ltd,27/02/2019,"3,476.53",Staff Costs
Asa International Ltd,28/02/2019,"2,037.49",Staff Costs
Asa International Ltd,06/03/2019,"12,675.86",Staff Costs
Asa International Ltd,08/03/2019,"13,937.88",Staff Costs
Asbestos Specialists (Uk) Ltd,30/11/2017,980.00,Premises Costs
Asbestos Specialists (Uk) Ltd,20/04/2018,"12,540.00",Premises Costs
Asbestos Specialists (Uk) Ltd,31/05/2018,"7,650.00",Premises Costs
Asbestos Specialists (Uk) Ltd,20/07/2018,"5,100.00",Premises Costs
Asbestos Specialists (Uk) Ltd,27/07/2018,"4,125.00",Premises Costs
Asbestos Specialists (Uk) Ltd,16/08/2018,"3,950.00",Premises Costs
Asbestos Specialists (Uk) Ltd,13/09/2018,"1,975.00",Premises Costs
Asbestos Specialists (Uk) Ltd,19/09/2018,"1,565.00",Premises Costs
Asbestos Specialists (Uk) Ltd,31/10/2018,"2,750.00",Premises Costs
Asdan Limited,14/01/2019,625.00,Supplies & Services
Asda Stores Ltd,31/08/2018,610.46,Transfer Payments
Ashdown Supplies,16/11/2018,"1,012.50",Supplies & Services
Ashgrove Trading,18/06/2018,"1,095.00",Supplies & Services
Ashley & Broomhill Community Council,07/09/2018,"1,055.63",Transfer Payments
Ashley House Residential Home,26/03/2018,"7,773.32",Commissioning Services
Ashley House Residential Home,12/04/2018,"2,100.56",Commissioning Services
Ashley House Residential Home,23/04/2018,"7,773.32",Commissioning Services
Ashley House Residential Home,10/05/2018,"2,100.56",Commissioning Services
Ashley House Residential Home,21/05/2018,"7,773.32",Commissioning Services
Ashley House Residential Home,04/06/2018,"2,593.36",Commissioning Services
Ashley House Residential Home,20/06/2018,"9,365.84",Commissioning Services
Ashley House Residential Home,06/07/2018,"1,477.08",Commissioning Services
Ashley House Residential Home,13/07/2018,"8,046.44",Commissioning Services
Ashley House Residential Home,10/08/2018,"8,650.20",Commissioning Services
Ashley House Residential Home,10/09/2018,"8,650.20",Commissioning Services
Ashley House Residential Home,08/10/2018,"8,650.20",Commissioning Services
Ashley House Residential Home,09/11/2018,"8,650.20",Commissioning Services
Ashley House Residential Home,23/11/2018,"2,297.68",Commissioning Services
Ashley House Residential Home,05/12/2018,"7,954.20",Commissioning Services
Ashley House Residential Home,17/12/2018,"2,297.68",Commissioning Services
Ashley House Residential Home,09/01/2019,"7,954.20",Commissioning Services
Ashley House Residential Home,16/01/2019,"2,297.68",Commissioning Services
Ashley House Residential Home,31/01/2019,"6,299.68",Commissioning Services
Ashley House Residential Home,18/02/2019,"2,297.68",Commissioning Services
Ashley House Residential Home,20/02/2019,"2,297.68",Commissioning Services
Ashley House Residential Home,28/02/2019,"8,650.20",Commissioning Services
Ashness Care Ltd,06/04/2018,"3,548.00",Commissioning Services
Ashness Care Ltd,01/05/2018,"3,548.00",Commissioning Services
Ashness Care Ltd,01/06/2018,"3,548.00",Commissioning Services
Ashness Care Ltd,27/06/2018,"3,548.00",Commissioning Services
Ashness Care Ltd,25/07/2018,"3,548.00",Commissioning Services
Ashness Care Ltd,24/08/2018,"3,548.00",Commissioning Services
Ashness Care Ltd,20/09/2018,"3,548.00",Commissioning Services
Ashness Care Ltd,17/10/2018,"3,548.00",Commissioning Services
Ashness Care Ltd,14/11/2018,"3,548.00",Commissioning Services
Ashness Care Ltd,09/12/2018,"3,548.00",Commissioning Services
Ashness Care Ltd,06/01/2019,"3,548.00",Commissioning Services
Ashness Care Ltd,03/02/2019,"3,548.00",Commissioning Services
Aspect Land & Hydrographic Surveys Ltd,10/12/2018,"7,700.00",Supplies & Services
Assa Abloy Entrance Systems,09/01/2019,"1,021.03",Supplies & Services
Asset International - A Division Of Hill And,06/07/2018,"2,174.80",Supplies & Services
Association Of Port Health Authorities,17/01/2019,"1,500.00",Administration Costs
Association Of Public Analysts (Asa),04/09/2018,"1,200.00",Administration Costs
Assoc Of Directors Of Education In Scotland,22/03/2018,900.00,Administration Costs
Asw Aberdeen Ltd,18/04/2018,"20,000.00",Supplies & Services
Asw Aberdeen Ltd,26/04/2018,"22,000.00",Supplies & Services
Asw Aberdeen Ltd,30/04/2018,"3,800.00",Supplies & Services
Asw Aberdeen Ltd,07/05/2018,"12,250.00",Capital Expenditure Total
Asw Aberdeen Ltd,29/05/2018,"5,000.00",Supplies & Services
Asw Aberdeen Ltd,08/06/2018,"7,845.00",Supplies & Services
Asw Aberdeen Ltd,22/06/2018,"22,250.00",Supplies & Services
Asw Aberdeen Ltd,28/06/2018,"2,625.00",Supplies & Services
Asw Aberdeen Ltd,09/07/2018,"15,520.00",Supplies & Services
Asw Aberdeen Ltd,17/07/2018,"35,890.00",Supplies & Services
Asw Aberdeen Ltd,25/07/2018,"5,400.00",Supplies & Services
Asw Aberdeen Ltd,26/07/2018,"2,900.00",Supplies & Services
Asw Aberdeen Ltd,03/09/2018,"3,200.00",Supplies & Services
Asw Aberdeen Ltd,19/09/2018,"3,990.00",Supplies & Services
Asw Aberdeen Ltd,09/10/2018,"3,651.00",Supplies & Services
Asw Aberdeen Ltd,19/11/2018,"3,900.00",Capital Expenditure Total
Asw Aberdeen Ltd,19/11/2018,"3,430.00",Supplies & Services
Asw Aberdeen Ltd,05/12/2018,"3,640.00",Supplies & Services
Asw Aberdeen Ltd,10/01/2019,"4,444.00",Capital Expenditure Total
Asw Aberdeen Ltd,10/01/2019,"2,800.00",Supplies & Services
Asw Aberdeen Ltd,01/03/2019,"1,400.00",Supplies & Services
Atelier Ten (Scotland) Ltd,31/08/2018,"3,850.00",Capital Expenditure Total
Atholls Chartered Surveyors,26/06/2018,"5,254.74",Transfer Payments
Atkins Limited,28/02/2018,"16,351.08",Capital Expenditure Total
Atkins Limited,29/03/2018,"16,351.08",Capital Expenditure Total
Atkins Limited,27/04/2018,"29,313.72",Capital Expenditure Total
Atkins Limited,31/05/2018,"16,351.08",Capital Expenditure Total
Atkins Limited,29/06/2018,"16,351.08",Capital Expenditure Total
Atkins Limited,27/07/2018,"29,313.72",Capital Expenditure Total
Atkins Limited,31/08/2018,"16,351.08",Capital Expenditure Total
Atkins Limited,28/09/2018,"6,200.00",Capital Expenditure Total
Atkins Limited,31/10/2018,"29,313.73",Capital Expenditure Total
Atkins Limited,30/11/2018,"207,813.73",Capital Expenditure Total
Atkins Limited,20/12/2018,"16,351.08",Capital Expenditure Total
Atlantis Medicare (Bridgeness) Ltd,15/03/2018,"2,668.36",Commissioning Services
Atlantis Medicare (Bridgeness) Ltd,15/04/2018,"2,668.36",Commissioning Services
Atlantis Medicare (Bridgeness) Ltd,14/05/2018,"2,668.36",Commissioning Services
Atlantis Medicare (Bridgeness) Ltd,13/06/2018,"2,668.36",Commissioning Services
Atlantis Medicare (Bridgeness) Ltd,16/07/2018,"5,361.20",Commissioning Services
Atlantis Medicare (Bridgeness) Ltd,11/09/2018,"5,361.20",Commissioning Services
Atlas Lifts & Services Ltd,27/03/2018,"4,970.24",Supplies & Services
Atlas Lifts & Services Ltd,10/04/2018,"3,793.48",Supplies & Services
Atlas Lifts & Services Ltd,18/04/2018,"4,636.44",Supplies & Services
Atlas Lifts & Services Ltd,20/04/2018,905.36,Premises Costs
Atlas Lifts & Services Ltd,30/07/2018,"4,850.38",Supplies & Services
Atlas Lifts & Services Ltd,22/10/2018,"4,616.48",Supplies & Services
Atlas Lifts & Services Ltd,20/12/2018,"2,593.72",Supplies & Services
Atlas Lifts & Services Ltd,11/03/2019,"5,230.38",Supplies & Services
Atmosphere Lighting And Sound,11/06/2018,955.71,Supplies & Services
Atmosphere Lighting And Sound,14/06/2018,540.00,Supplies & Services
Atr Lifting Solutions Ltd,01/06/2018,"6,765.61",Transfer Payments
Auch Well Ltd,14/02/2019,"3,665.19",Transfer Payments
Audience Systems Ltd,30/10/2018,840.00,Supplies & Services
Audit Scotland,18/12/2017,"8,000.00",Supplies & Services
Audit Scotland,15/05/2018,"164,307.00",Supplies & Services
Audit Scotland,01/06/2018,"8,500.00",Supplies & Services
Audit Scotland,04/09/2018,"148,710.00",Supplies & Services
Audit Scotland,11/12/2018,"8,333.00",Supplies & Services
Autofix Services,17/05/2018,"6,628.40",Transfer Payments
A U Volleyball Club,27/11/2018,"1,000.00",Commissioning Services
Avesta Scotland Limited,25/01/2019,"36,295.09",Capital Expenditure Total
Avesta Scotland Limited,22/02/2019,"51,626.20",Capital Expenditure Total
Aviemore Homes Ltd,17/09/2013,"7,634.52",Commissioning Services
Aviemore Homes Ltd,12/11/2013,"2,279.84",Commissioning Services
Aviemore Homes Ltd,13/03/2014,"1,491.71",Commissioning Services
Aviemore Homes Ltd,23/05/2014,"2,268.00",Commissioning Services
Aviemore Homes Ltd,10/07/2014,"1,820.84",Commissioning Services
Aviemore Homes Ltd,23/09/2014,"11,566.98",Commissioning Services
Aviemore Homes Ltd,23/09/2014,"3,679.29",Customer & Client Receipts
Aviemore Homes Ltd,07/04/2015,"8,972.71",Commissioning Services
Aviemore Homes Ltd,23/04/2015,"11,287.20",Commissioning Services
Aviemore Homes Ltd,22/05/2015,"3,444.38",Commissioning Services
Aviemore Homes Ltd,21/07/2015,870.44,Commissioning Services
Aviemore Homes Ltd,13/08/2015,609.31,Commissioning Services
Aviemore Homes Ltd,27/08/2015,"2,437.24",Commissioning Services
Aviemore Homes Ltd,22/09/2015,"9,497.79",Commissioning Services
Aviemore Homes Ltd,27/10/2015,"1,600.71",Commissioning Services
Aviemore Homes Ltd,27/11/2015,"1,380.46",Commissioning Services
Aviemore Homes Ltd,09/12/2015,"5,087.22",Commissioning Services
Aviemore Homes Ltd,03/02/2016,"1,820.45",Commissioning Services
Aviemore Homes Ltd,02/03/2016,"5,319.82",Commissioning Services
Aviemore Homes Ltd,15/04/2016,"2,437.24",Commissioning Services
Aviemore Homes Ltd,01/08/2016,"2,327.25",Commissioning Services
Aviemore Homes Ltd,01/09/2016,996.00,Commissioning Services
Aviemore Homes Ltd,01/12/2016,"2,744.24",Commissioning Services
Aviemore Homes Ltd,15/02/2017,"2,383.88",Commissioning Services
Aviemore Homes Ltd,02/07/2017,"1,052.00",Commissioning Services
Aviemore Homes Ltd,17/07/2017,"1,067.14",Commissioning Services
Aviemore Homes Ltd,16/08/2017,"2,608.28",Commissioning Services
Aviemore Homes Ltd,18/09/2017,"2,063.14",Commissioning Services
Aviemore Homes Ltd,02/11/2017,"1,594.35",Commissioning Services
Aviemore Homes Ltd,15/11/2017,"2,668.36",Commissioning Services
Aviemore Homes Ltd,18/12/2017,"9,904.43",Commissioning Services
Aviemore Homes Ltd,15/01/2018,"18,827.54",Commissioning Services
Aviemore Homes Ltd,26/01/2018,"3,426.73",Commissioning Services
Aviemore Homes Ltd,15/02/2018,"10,109.57",Commissioning Services
Aviemore Homes Ltd,15/03/2018,"52,505.24",Commissioning Services
Aviemore Homes Ltd,03/04/2018,"81,991.64",Commissioning Services
Aviemore Homes Ltd,17/04/2018,"18,855.36",Commissioning Services
Aviemore Homes Ltd,01/05/2018,"73,759.91",Commissioning Services
Aviemore Homes Ltd,15/05/2018,"19,334.64",Commissioning Services
Aviemore Homes Ltd,01/06/2018,"75,351.35",Commissioning Services
Aviemore Homes Ltd,05/06/2018,"4,010.78",Commissioning Services
Aviemore Homes Ltd,05/06/2018,"10,196.36",Customer & Client Receipts
Aviemore Homes Ltd,15/06/2018,"40,437.46",Commissioning Services
Aviemore Homes Ltd,02/07/2018,"85,471.29",Commissioning Services
Aviemore Homes Ltd,16/07/2018,"30,814.84",Commissioning Services
Aviemore Homes Ltd,01/08/2018,"85,152.03",Commissioning Services
Aviemore Homes Ltd,07/08/2018,"4,093.67",Commissioning Services
Aviemore Homes Ltd,15/08/2018,"41,131.72",Commissioning Services
Aviemore Homes Ltd,17/08/2018,"1,287.16",Commissioning Services
Aviemore Homes Ltd,29/08/2018,"3,060.64",Commissioning Services
Aviemore Homes Ltd,03/09/2018,"91,453.74",Commissioning Services
Aviemore Homes Ltd,17/09/2018,"80,665.47",Commissioning Services
Aviemore Homes Ltd,01/10/2018,"27,942.70",Commissioning Services
Aviemore Homes Ltd,15/10/2018,"117,052.19",Commissioning Services
Aviemore Homes Ltd,01/11/2018,"35,491.27",Commissioning Services
Aviemore Homes Ltd,05/11/2018,"2,758.92",Commissioning Services
Aviemore Homes Ltd,08/11/2018,"6,439.04",Commissioning Services
Aviemore Homes Ltd,15/11/2018,"91,409.22",Commissioning Services
Aviemore Homes Ltd,03/12/2018,"37,879.71",Commissioning Services
Aviemore Homes Ltd,17/12/2018,"96,553.56",Commissioning Services
Aviemore Homes Ltd,02/01/2019,"36,181.16",Commissioning Services
Aviemore Homes Ltd,15/01/2019,"101,592.04",Commissioning Services
Aviemore Homes Ltd,04/02/2019,"115,495.50",Commissioning Services
Aviemore Homes Ltd,15/02/2019,"27,373.32",Commissioning Services
Aviemore Homes Ltd,01/03/2019,"96,862.36",Commissioning Services
Aviva Investors Pensions Ltd,22/06/2018,"17,450.78",Transfer Payments
Aviva Lfe And Pensions,13/12/2018,"48,540.88",Transfer Payments
Aviva Staff Pension Trustees Ltd,20/09/2018,"10,356.07",Transfer Payments
Avm Impact Ltd,08/03/2018,"46,452.00",Supplies & Services
Avm Impact Ltd,12/03/2018,"1,490.00",Supplies & Services
Avm Impact Ltd,30/04/2018,"4,995.00",Supplies & Services
Avm Impact Ltd,21/05/2018,"191,680.00",Capital Expenditure Total
Avm Impact Ltd,29/05/2018,549.00,Supplies & Services
Avm Impact Ltd,31/07/2018,"2,975.00",Supplies & Services
Avm Impact Ltd,08/08/2018,"1,250.00",Supplies & Services
Avm Impact Ltd,28/08/2018,980.00,Capital Expenditure Total
Avm Impact Ltd,30/08/2018,"8,685.00",Supplies & Services
Avm Impact Ltd,25/09/2018,"1,626.00",Supplies & Services
Avm Impact Ltd,31/10/2018,"67,562.00",Capital Expenditure Total
Avm Impact Ltd,05/11/2018,"4,490.00",Supplies & Services
Avm Impact Ltd,30/11/2018,"3,840.00",Supplies & Services
Avm Impact Ltd,05/02/2019,725.00,Supplies & Services
Avm Impact Ltd,28/02/2019,"22,190.00",Supplies & Services
Avon Armour Limited,09/08/2018,"18,495.75",Supplies & Services
Av Partsmaster Ltd,08/06/2018,658.88,Supplies & Services
Av Partsmaster Ltd,11/10/2018,576.52,Supplies & Services
Av Partsmaster Ltd,03/01/2019,537.00,Supplies & Services
Awt Water & Environmental Services,01/04/2018,617.00,Supplies & Services
Awt Water & Environmental Services,04/04/2018,"1,963.00",Supplies & Services
Awt Water & Environmental Services,12/04/2018,601.00,Supplies & Services
Awt Water & Environmental Services,18/04/2018,"2,023.00",Supplies & Services
Awt Water & Environmental Services,01/08/2018,663.00,Supplies & Services
Axiell Alm  Ltd,27/02/2018,"3,546.48",Supplies & Services
Axiell Alm  Ltd,11/02/2019,"3,635.16",Supplies & Services
Axminster Power Tool Centre Ltd,12/02/2018,"1,329.26",Supplies & Services
Azzurro Ltd,07/09/2018,"5,585.00",Supplies & Services
Bachlaw Ltd,12/02/2018,"19,600.00",Commissioning Services
Bachlaw Ltd,02/03/2018,"19,600.00",Commissioning Services
Bachlaw Ltd,26/03/2018,"19,600.00",Commissioning Services
Bachlaw Ltd,18/04/2018,"19,600.00",Commissioning Services
Bachlaw Ltd,11/05/2018,"19,900.00",Commissioning Services
Bachlaw Ltd,28/05/2018,"19,900.00",Commissioning Services
Bachlaw Ltd,18/06/2018,"19,900.00",Commissioning Services
Bachlaw Ltd,26/06/2018,"19,900.00",Commissioning Services
Bachlaw Ltd,09/07/2018,"19,900.00",Commissioning Services
Bachlaw Ltd,18/07/2018,"39,200.00",Commissioning Services
Bachlaw Ltd,25/07/2018,"19,600.00",Commissioning Services
Bachlaw Ltd,07/08/2018,"19,900.00",Commissioning Services
Bachlaw Ltd,23/08/2018,"19,900.00",Commissioning Services
Bachlaw Ltd,05/09/2018,"19,900.00",Commissioning Services
Bachlaw Ltd,21/09/2018,"19,900.00",Commissioning Services
Bachlaw Ltd,04/10/2018,"19,900.00",Commissioning Services
Bachlaw Ltd,22/10/2018,"19,900.00",Commissioning Services
Bachlaw Ltd,31/10/2018,"19,900.00",Commissioning Services
Bachlaw Ltd,19/11/2018,"19,900.00",Commissioning Services
Bachlaw Ltd,26/11/2018,"19,900.00",Commissioning Services
Bachlaw Ltd,17/12/2018,"19,900.00",Commissioning Services
Bachlaw Ltd,21/12/2018,"19,900.00",Commissioning Services
Bachlaw Ltd,15/01/2019,"19,900.00",Commissioning Services
Bachlaw Ltd,29/01/2019,"19,900.00",Commissioning Services
Bachlaw Ltd,26/02/2019,"19,900.00",Commissioning Services
Back In Action,01/05/2018,844.80,Supplies & Services
Back In Action,28/11/2018,"1,013.76",Supplies & Services
Bacs Payment Schemes Ltd,09/04/2018,"1,500.00",Administration Costs
Badaguish Outdoor Centre,15/03/2017,"2,480.00",Commissioning Services
Badaguish Outdoor Centre,26/04/2018,"4,745.00",Commissioning Services
Badenoch And Clark,05/01/2018,629.00,Staff Costs
Badenscoth House,19/03/2018,996.00,Commissioning Services
Badenscoth House,16/04/2018,996.00,Commissioning Services
Badenscoth House,14/05/2018,"1,037.14",Commissioning Services
Badenscoth House,11/06/2018,"1,012.00",Commissioning Services
Badenscoth House,09/07/2018,"1,012.00",Commissioning Services
Badenscoth House,06/08/2018,"1,012.00",Commissioning Services
Badenscoth House,03/09/2018,"1,012.00",Commissioning Services
Badenscoth House,01/10/2018,"1,012.00",Commissioning Services
Bag Books,22/03/2018,"1,034.00",Supplies & Services
Bailey Solutions,12/09/2018,"6,672.00",Supplies & Services
Bains Coaches,05/03/2018,"3,427.71",Transport Costs
Bains Coaches,09/03/2018,925.00,Supplies & Services
Bains Coaches,29/03/2018,"3,830.97",Transport Costs
Bains Coaches,01/05/2018,"2,258.52",Transport Costs
Bains Coaches,22/05/2018,"5,345.00",Supplies & Services
Bains Coaches,04/06/2018,"4,322.22",Transport Costs
Bains Coaches,05/06/2018,900.00,Supplies & Services
Bains Coaches,18/06/2018,"1,845.00",Supplies & Services
Bains Coaches,02/07/2018,"1,170.00",Supplies & Services
Bains Coaches,02/07/2018,"4,322.22",Transport Costs
Bains Coaches,02/08/2018,"1,029.10",Transport Costs
Bains Coaches,04/09/2018,"2,061.73",Transport Costs
Bains Coaches,25/09/2018,"3,955.00",Supplies & Services
Bains Coaches,30/09/2018,"4,062.36",Transport Costs
Bains Coaches,01/11/2018,"2,669.16",Transport Costs
Bains Coaches,20/11/2018,820.00,Supplies & Services
Bains Coaches,30/11/2018,"4,862.52",Transport Costs
Bains Coaches,13/12/2018,725.00,Supplies & Services
Bains Coaches,07/01/2019,"3,413.10",Transport Costs
Bains Coaches,29/01/2019,"1,125.00",Supplies & Services
Bains Coaches,01/02/2019,"4,298.78",Transport Costs
Bains Coaches,05/02/2019,690.00,Supplies & Services
Bains Coaches,28/02/2019,"3,939.24",Transport Costs
Baker Hughes,22/06/2018,"104,812.71",Transfer Payments
Baker Hughes,13/03/2019,"15,150.46",Transfer Payments
Balfour Beatty Civil Engineering Ltd,18/05/2018,"75,212.96",Capital Expenditure Total
Balgownie Community Centre,23/04/2018,"2,769.00",Supplies & Services
Balgownie Community Centre,27/06/2018,"2,765.00",Supplies & Services
Balgownie Community Centre,09/10/2018,"2,765.00",Supplies & Services
Balgownie Community Centre,09/01/2019,"2,765.00",Supplies & Services
Balgownie Ltd,16/03/2018,625.00,Supplies & Services
Balgownie Ltd,05/10/2018,660.00,Supplies & Services
Balgownie Ltd,31/10/2018,"4,105.00",Capital Expenditure Total
Balgownie Ltd,14/03/2019,502.60,Supplies & Services
Balhousie Care Group,05/07/2017,"10,806.00",Commissioning Services
Balhousie Care Group,02/08/2017,"5,788.93",Commissioning Services
Balhousie Care Group,14/03/2018,"7,031.76",Commissioning Services
Balhousie Care Group,15/03/2018,"1,992.00",Commissioning Services
Balhousie Care Group,11/04/2018,"7,031.76",Commissioning Services
Balhousie Care Group,12/04/2018,"1,992.00",Commissioning Services
Balhousie Care Group,09/05/2018,"7,091.88",Commissioning Services
Balhousie Care Group,10/05/2018,"1,992.00",Commissioning Services
Balhousie Care Group,06/06/2018,"6,670.23",Commissioning Services
Balhousie Care Group,07/06/2018,"1,992.00",Commissioning Services
Balhousie Care Group,04/07/2018,"5,402.22",Commissioning Services
Balhousie Care Group,05/07/2018,"1,992.00",Commissioning Services
Balhousie Care Group,01/08/2018,"4,437.56",Commissioning Services
Balhousie Care Group,02/08/2018,"1,992.00",Commissioning Services
Balhousie Care Group,23/08/2018,"2,770.92",Commissioning Services
Balhousie Care Group,29/08/2018,"7,381.62",Commissioning Services
Balhousie Care Group,30/08/2018,"2,149.14",Commissioning Services
Balhousie Care Group,26/09/2018,"7,244.48",Commissioning Services
Balhousie Care Group,27/09/2018,"2,024.00",Commissioning Services
Balhousie Care Group,24/10/2018,"6,548.48",Commissioning Services
Balhousie Care Group,25/10/2018,"2,024.00",Commissioning Services
Balhousie Care Group,02/11/2018,696.00,Commissioning Services
Balhousie Care Group,21/11/2018,"6,548.48",Commissioning Services
Balhousie Care Group,22/11/2018,"2,024.00",Commissioning Services
Balhousie Care Group,19/12/2018,"7,244.48",Commissioning Services
Balhousie Care Group,20/12/2018,"2,024.00",Commissioning Services
Balhousie Care Group,10/01/2019,"3,036.00",Commissioning Services
Balhousie Care Group,16/01/2019,"8,256.48",Commissioning Services
Balhousie Care Group,17/01/2019,"2,024.00",Commissioning Services
Balhousie Care Group,13/02/2019,"8,256.48",Commissioning Services
Balhousie Care Group,14/02/2019,"2,024.00",Commissioning Services
Balhousie Care Group (Ruthven Towers),09/05/2018,686.71,Commissioning Services
Balhousie Care Group (Ruthven Towers),06/06/2018,"1,012.00",Commissioning Services
Balhousie Care Group (Ruthven Towers),04/07/2018,"1,012.00",Commissioning Services
Balhousie Care Group (Ruthven Towers),01/08/2018,"1,012.00",Commissioning Services
Balhousie Care Group (Ruthven Towers),29/08/2018,"1,012.00",Commissioning Services
Balhousie Care Group (Ruthven Towers),26/09/2018,"1,012.00",Commissioning Services
Balhousie Care Group (Ruthven Towers),24/10/2018,"1,012.00",Commissioning Services
Balhousie Care Group (Ruthven Towers),21/11/2018,"1,012.00",Commissioning Services
Balhousie Care Group (Ruthven Towers),19/12/2018,"1,012.00",Commissioning Services
Balhousie Care Group (Ruthven Towers),16/01/2019,"1,012.00",Commissioning Services
Balhousie Care Group (Ruthven Towers),13/02/2019,"1,012.00",Commissioning Services
Balhousie Care Ltd,14/03/2018,"5,000.00",Commissioning Services
Balhousie Care Ltd,11/04/2018,"7,321.43",Commissioning Services
Balhousie Care Ltd,09/05/2018,"10,000.00",Commissioning Services
Balhousie Care Ltd,06/06/2018,"10,000.00",Commissioning Services
Balhousie Care Ltd,04/07/2018,"10,000.00",Commissioning Services
Balhousie Care Ltd,01/08/2018,"10,000.00",Commissioning Services
Balhousie Care Ltd,29/08/2018,"10,000.00",Commissioning Services
Balhousie Care Ltd,26/09/2018,"10,000.00",Commissioning Services
Balhousie Care Ltd,24/10/2018,"10,000.00",Commissioning Services
Balhousie Care Ltd,21/11/2018,"10,000.00",Commissioning Services
Balhousie Care Ltd,19/12/2018,"9,573.00",Commissioning Services
Balhousie Care Ltd,16/01/2019,"5,000.00",Commissioning Services
Balhousie Care Ltd,13/02/2019,"10,168.00",Commissioning Services
Balhousie Care Ltd T/A,14/03/2018,"1,715.88",Commissioning Services
Balhousie Care Ltd T/A,11/04/2018,"1,715.88",Commissioning Services
Balhousie Care Ltd T/A,09/05/2018,"1,715.88",Commissioning Services
Balhousie Care Ltd T/A,06/06/2018,"1,715.88",Commissioning Services
Balhousie Care Ltd T/A,07/06/2018,"1,012.00",Commissioning Services
Balhousie Care Ltd T/A,04/07/2018,"1,715.88",Commissioning Services
Balhousie Care Ltd T/A,05/07/2018,831.29,Commissioning Services
Balhousie Care Ltd T/A,01/08/2018,"1,715.88",Commissioning Services
Balhousie Care Ltd T/A,02/08/2018,"1,012.00",Commissioning Services
Balhousie Care Ltd T/A,29/08/2018,"2,500.35",Commissioning Services
Balhousie Care Ltd T/A,30/08/2018,"1,012.00",Commissioning Services
Balhousie Care Ltd T/A,26/09/2018,"1,856.36",Commissioning Services
Balhousie Care Ltd T/A,27/09/2018,"1,012.00",Commissioning Services
Balhousie Care Ltd T/A,24/10/2018,"1,856.36",Commissioning Services
Balhousie Care Ltd T/A,25/10/2018,"1,012.00",Commissioning Services
Balhousie Care Ltd T/A,21/11/2018,"1,856.36",Commissioning Services
Balhousie Care Ltd T/A,22/11/2018,"1,012.00",Commissioning Services
Balhousie Care Ltd T/A,19/12/2018,"1,856.36",Commissioning Services
Balhousie Care Ltd T/A,20/12/2018,"1,012.00",Commissioning Services
Balhousie Care Ltd T/A,16/01/2019,"1,856.36",Commissioning Services
Balhousie Care Ltd T/A,17/01/2019,"1,012.00",Commissioning Services
Balhousie Care Ltd T/A,13/02/2019,"1,856.36",Commissioning Services
Balhousie Care Ltd T/A,14/02/2019,"1,012.00",Commissioning Services
Ballikinrain School,03/03/2018,"23,160.00",Commissioning Services
Ballikinrain School,14/03/2018,"15,440.00",Commissioning Services
Ballikinrain School,03/04/2018,"40,529.70",Commissioning Services
Ballikinrain School,03/05/2018,"41,880.69",Commissioning Services
Ballikinrain School,03/06/2018,"17,369.70",Commissioning Services
Ballikinrain School,03/07/2018,"41,880.69",Commissioning Services
Ballikinrain School,03/08/2018,"42,510.69",Commissioning Services
Ballikinrain School,03/09/2018,"40,529.70",Commissioning Services
Ballikinrain School,03/10/2018,"41,880.69",Commissioning Services
Ballikinrain School,03/11/2018,"40,529.70",Commissioning Services
Ballikinrain School,03/12/2018,"41,880.69",Commissioning Services
Ballikinrain School,03/01/2019,"41,880.69",Commissioning Services
Ballikinrain School,03/02/2019,"16,211.72",Commissioning Services
Balnacraig School,05/07/2018,"39,642.86",Commissioning Services
Balnacraig School,09/08/2018,"19,928.57",Commissioning Services
Balnacraig School,06/09/2018,"19,285.71",Commissioning Services
Balnacraig School,02/10/2018,"19,928.57",Commissioning Services
Balnacraig School,05/11/2018,"19,285.71",Commissioning Services
Balnacraig School,12/12/2018,"19,928.57",Commissioning Services
Balnacraig School,03/01/2019,"19,928.57",Commissioning Services
Balnacraig School,06/02/2019,"19,928.57",Commissioning Services
Balnagask Community Centre,23/04/2018,"2,769.00",Supplies & Services
Balnagask Community Centre,27/06/2018,"2,765.00",Supplies & Services
Balnagask Community Centre,09/10/2018,"2,765.00",Supplies & Services
Balnagask Community Centre,09/01/2019,"2,765.00",Supplies & Services
Balnagask Community Centre Playscheme,17/07/2018,"1,000.00",Transfer Payments
Balnagask House Residents Fund,10/04/2018,690.00,Other Income
Bambach Uk,28/08/2018,"1,326.30",Supplies & Services
Bancon Construction Ltd,21/04/2018,"536,118.00",Capital Expenditure Total
Bancon Construction Ltd,21/05/2018,"328,576.00",Capital Expenditure Total
Bancon Construction Ltd,21/06/2018,"557,573.00",Capital Expenditure Total
Bancon Construction Ltd,21/07/2018,"748,533.88",Capital Expenditure Total
Bancon Construction Ltd,21/08/2018,"458,648.55",Capital Expenditure Total
Bancon Construction Ltd,21/09/2018,"567,418.86",Capital Expenditure Total
Bancon Construction Ltd,21/10/2018,"345,710.67",Capital Expenditure Total
Bancon Construction Ltd,21/11/2018,"373,355.89",Capital Expenditure Total
Bancon Construction Ltd,12/12/2018,"180,314.83",Capital Expenditure Total
Bancon Construction Ltd,21/02/2019,"99,900.76",Capital Expenditure Total
Bancon Construction Ltd,07/03/2019,"33,601.45",Capital Expenditure Total
Bancon Homes And The Rowett,19/04/2018,"3,322.18",Transfer Payments
Bancon Homes And The Rowett,13/03/2019,"3,037.81",Transfer Payments
B And D Fencing,26/09/2018,"7,480.00",Supplies & Services
Bandrum Country Nursing Home,12/09/2018,"2,463.32",Commissioning Services
Bandrum Country Nursing Home,17/09/2018,"4,828.11",Commissioning Services
Bandrum Country Nursing Home,06/11/2018,"8,276.76",Commissioning Services
Band Supplies Limited,01/10/2018,695.00,Supplies & Services
Band Supplies Limited,31/10/2018,695.00,Supplies & Services
Band Supplies Limited,04/02/2019,"4,500.00",Supplies & Services
Banff Care Home,19/03/2018,"1,680.00",Commissioning Services
Banff Care Home,16/04/2018,"1,677.00",Commissioning Services
Banff Care Home,14/05/2018,"1,708.00",Commissioning Services
Banff Care Home,11/06/2018,"1,708.00",Commissioning Services
Banff Care Home,09/07/2018,"1,708.00",Commissioning Services
Banff Care Home,06/08/2018,"1,708.00",Commissioning Services
Banff Care Home,01/10/2018,"1,708.00",Commissioning Services
Banff Care Home,29/10/2018,"1,708.00",Commissioning Services
Banff Care Home,26/11/2018,"1,708.00",Commissioning Services
Banff Care Home,24/12/2018,"1,708.00",Commissioning Services
Banff Care Home,18/02/2019,"1,708.00",Commissioning Services
Bank Of Scotland/Hbos Group Property (Rating),13/03/2019,"3,764.86",Transfer Payments
Banks O Dee Sports Club,27/03/2018,525.00,Supplies & Services
Barbour Logic Limited,18/04/2018,"20,500.00",Supplies & Services
Barchester Healthcare,20/03/2018,"1,956.43",Commissioning Services
Barchester Healthcare,01/04/2018,"8,026.88",Commissioning Services
Barchester Healthcare,23/04/2018,"9,022.88",Commissioning Services
Barchester Healthcare,22/05/2018,"8,276.76",Commissioning Services
Barchester Healthcare,23/05/2018,"9,067.45",Commissioning Services
Barchester Healthcare,28/06/2018,"6,357.60",Commissioning Services
Barchester Healthcare,31/07/2018,"6,357.60",Commissioning Services
Barchester Healthcare,27/08/2018,"6,357.60",Commissioning Services
Barchester Healthcare,17/09/2018,"6,357.60",Commissioning Services
Barchester Healthcare,19/10/2018,"6,348.72",Commissioning Services
Barchester Healthcare,05/11/2018,"6,357.60",Commissioning Services
Barchester Healthcare,04/12/2018,"5,345.60",Commissioning Services
Barchester Healthcare,31/12/2018,"5,345.60",Commissioning Services
Barchester Healthcare,04/01/2019,"1,003.59",Commissioning Services
Barchester Healthcare,31/01/2019,"6,259.96",Commissioning Services
Barchester Healthcare,28/02/2019,"2,400.00",Commissioning Services
Barchester South Grange Care Home,01/10/2015,"9,956.00",Commissioning Services
Barchester South Grange Care Home,01/07/2016,"9,956.00",Commissioning Services
Barchester South Grange Care Home,31/01/2018,"13,644.00",Commissioning Services
Barchester South Grange Care Home,01/04/2018,"9,956.00",Commissioning Services
Barchester South Grange Care Home,01/05/2018,"9,956.00",Commissioning Services
Barchester South Grange Care Home,01/06/2018,"9,956.00",Commissioning Services
Barchester South Grange Care Home,01/07/2018,"9,956.00",Commissioning Services
Barchester South Grange Care Home,01/08/2018,"9,956.00",Commissioning Services
Barchester South Grange Care Home,01/09/2018,"9,956.00",Commissioning Services
Barchester South Grange Care Home,01/10/2018,"9,956.00",Commissioning Services
Barchester South Grange Care Home,02/10/2018,"13,119.00",Commissioning Services
Barchester South Grange Care Home,01/11/2018,"13,644.00",Commissioning Services
Barchester South Grange Care Home,14/11/2018,"13,644.00",Commissioning Services
Barchester South Grange Care Home,01/12/2018,"39,824.00",Commissioning Services
Barchester South Grange Care Home,31/12/2018,"13,644.00",Commissioning Services
Barchester South Grange Care Home,01/01/2019,"13,644.00",Commissioning Services
Barclaycard Commercial,13/03/2018,"32,693.21",Short Term Creditors
Barclaycard Commercial,13/04/2018,"22,315.18",Short Term Creditors
Barclaycard Commercial,13/05/2018,"47,006.09",Short Term Creditors
Barclaycard Commercial,13/06/2018,"51,850.90",Short Term Creditors
Barclaycard Commercial,13/07/2018,"46,271.10",Short Term Creditors
Barclaycard Commercial,13/08/2018,"18,538.05",Short Term Creditors
Barclaycard Commercial,13/09/2018,"40,906.22",Short Term Creditors
Barclay & Mathieson Ltd,26/07/2008,512.20,Inventories
Barclay & Mathieson Ltd,14/05/2018,603.90,Supplies & Services
Barclay & Mathieson Ltd,31/05/2018,"7,231.60",Supplies & Services
Barclay & Mathieson Ltd,18/06/2018,548.00,Inventories
Barclay & Mathieson Ltd,27/06/2018,600.00,Supplies & Services
Barclay & Mathieson Ltd,04/07/2018,580.00,Inventories
Barclay & Mathieson Ltd,16/07/2018,550.90,Supplies & Services
Barclay & Mathieson Ltd,20/08/2018,"5,560.80",Supplies & Services
Barclay & Mathieson Ltd,19/09/2018,507.50,Inventories
Barclay & Mathieson Ltd,15/10/2018,687.20,Inventories
Barclay & Mathieson Ltd,31/10/2018,600.00,Supplies & Services
Barclay & Mathieson Ltd,12/11/2018,570.00,Inventories
Barclay & Mathieson Ltd,13/11/2018,622.00,Inventories
Barclay & Mathieson Ltd,21/12/2018,"1,965.58",Supplies & Services
Barclay & Mathieson Ltd,14/01/2019,580.00,Inventories
Barclays Bank C/O Cbre,16/08/2018,"1,732.45",Transfer Payments
Barclay Telecom,29/06/2018,595.00,Supplies & Services
Barclay Telecom,18/07/2018,795.00,Supplies & Services
Barclay Telecom,25/07/2018,"1,459.00",Supplies & Services
Barclay Telecom,29/08/2018,795.00,Capital Expenditure Total
Barclay Telecom,12/09/2018,"1,550.00",Capital Expenditure Total
Barclay Telecom,17/12/2018,654.00,Supplies & Services
Barnardos,14/02/2018,"22,500.00",Supplies & Services
Barnardos,02/03/2018,"5,683.48",Commissioning Services
Barnardos,21/05/2018,"1,582.00",Commissioning Services
Barnardos,28/05/2018,"45,524.46",Commissioning Services
Barnardos,19/06/2018,"45,524.46",Commissioning Services
Barnardos,29/06/2018,"45,524.46",Commissioning Services
Barnardos,03/07/2018,"6,000.00",Supplies & Services
Barnardos,06/07/2018,"28,667.00",Administration Costs
Barnardos,10/08/2018,"53,500.16",Commissioning Services
Barnardos,07/09/2018,"6,000.00",Supplies & Services
Barnardos,12/09/2018,"6,380.83",Commissioning Services
Barnardos,02/10/2018,"45,524.46",Commissioning Services
Barnardos,25/10/2018,"7,090.07",Commissioning Services
Barnardos,17/01/2019,"11,250.00",Supplies & Services
Barnardos Scotland,23/02/2018,"37,078.00",Commissioning Services
Barnardos Scotland,27/02/2018,"45,524.46",Commissioning Services
Barnardos Scotland,09/03/2018,"6,711.81",Commissioning Services
Barnardos Scotland,12/03/2018,"156,758.46",Commissioning Services
Barnardos Scotland,12/03/2018,"45,750.00",Supplies & Services
Barnardos Scotland,16/03/2018,"6,126.68",Commissioning Services
Barnardos Scotland,26/03/2018,"1,124.00",Commissioning Services
Barnardos Scotland,29/03/2018,"11,250.00",Supplies & Services
Barnardos Scotland,31/03/2018,"6,123.76",Commissioning Services
Barnardos Scotland,06/04/2018,"6,495.30",Commissioning Services
Barnardos Scotland,10/04/2018,"145,719.12",Commissioning Services
Barnardos Scotland,07/05/2018,"6,711.81",Commissioning Services
Barnardos Scotland,08/05/2018,"11,250.00",Supplies & Services
Barnardos Scotland,15/05/2018,"146,964.23",Commissioning Services
Barnardos Scotland,28/05/2018,"91,048.92",Commissioning Services
Barnardos Scotland,29/05/2018,"22,500.00",Supplies & Services
Barnardos Scotland,01/06/2018,"7,418.28",Commissioning Services
Barnardos Scotland,04/06/2018,"138,479.35",Commissioning Services
Barnardos Scotland,18/06/2018,"6,495.30",Commissioning Services
Barnardos Scotland,19/06/2018,"45,524.46",Commissioning Services
Barnardos Scotland,20/06/2018,"11,250.00",Supplies & Services
Barnardos Scotland,29/06/2018,"156,758.46",Commissioning Services
Barnardos Scotland,02/07/2018,"145,664.79",Commissioning Services
Barnardos Scotland,02/07/2018,"22,500.00",Supplies & Services
Barnardos Scotland,06/07/2018,"6,000.00",Supplies & Services
Barnardos Scotland,16/07/2018,"6,711.81",Commissioning Services
Barnardos Scotland,23/07/2018,"1,686.00",Commissioning Services
Barnardos Scotland,23/07/2018,"9,104.40",Short Term Creditors
Barnardos Scotland,31/07/2018,"8,509.53",Commissioning Services
Barnardos Scotland,06/08/2018,"138,212.24",Commissioning Services
Barnardos Scotland,09/08/2018,"6,711.81",Commissioning Services
Barnardos Scotland,21/08/2018,"74,156.00",Commissioning Services
Barnardos Scotland,21/08/2018,"11,250.00",Supplies & Services
Barnardos Scotland,31/08/2018,"7,658.98",Commissioning Services
Barnardos Scotland,05/09/2018,"149,473.22",Commissioning Services
Barnardos Scotland,10/09/2018,"22,500.00",Supplies & Services
Barnardos Scotland,21/09/2018,"6,495.30",Commissioning Services
Barnardos Scotland,21/09/2018,"23,500.00",Supplies & Services
Barnardos Scotland,26/09/2018,"82,602.46",Commissioning Services
Barnardos Scotland,27/09/2018,"3,822.09",Commissioning Services
Barnardos Scotland,28/09/2018,"11,250.00",Supplies & Services
Barnardos Scotland,01/10/2018,"141,835.19",Commissioning Services
Barnardos Scotland,10/10/2018,"6,711.81",Commissioning Services
Barnardos Scotland,15/10/2018,"6,776.87",Commissioning Services
Barnardos Scotland,24/10/2018,"3,949.40",Commissioning Services
Barnardos Scotland,29/10/2018,"37,078.00",Commissioning Services
Barnardos Scotland,06/11/2018,"137,264.70",Commissioning Services
Barnardos Scotland,07/11/2018,"45,524.46",Commissioning Services
Barnardos Scotland,19/11/2018,"3,762.73",Administration Costs
Barnardos Scotland,26/11/2018,"6,170.92",Commissioning Services
Barnardos Scotland,29/11/2018,"40,900.09",Commissioning Services
Barnardos Scotland,03/12/2018,"141,835.19",Commissioning Services
Barnardos Scotland,04/12/2018,"45,524.46",Commissioning Services
Barnardos Scotland,06/12/2018,825.00,Commissioning Services
Barnardos Scotland,10/12/2018,"6,711.81",Commissioning Services
Barnardos Scotland,19/12/2018,"3,949.49",Commissioning Services
Barnardos Scotland,24/12/2018,"5,773.72",Commissioning Services
Barnardos Scotland,10/01/2019,"141,891.29",Commissioning Services
Barnardos Scotland,14/01/2019,"82,602.46",Commissioning Services
Barnardos Scotland,16/01/2019,"11,250.00",Staff Costs
Barnardos Scotland,17/01/2019,"6,711.81",Commissioning Services
Barnardos Scotland,17/01/2019,"22,500.00",Supplies & Services
Barnardos Scotland,23/01/2019,"23,500.00",Supplies & Services
Barnardos Scotland,29/01/2019,"82,602.46",Commissioning Services
Barnardos Scotland,29/01/2019,"11,250.00",Supplies & Services
Barnardos Scotland,31/01/2019,"3,949.49",Commissioning Services
Barnardos Scotland,11/02/2019,"6,060.28",Commissioning Services
Barnardos Scotland,12/02/2019,"128,191.52",Commissioning Services
Barnardos Scotland,13/02/2019,"4,838.00",Commissioning Services
Barnardos Scotland,13/02/2019,"11,250.00",Supplies & Services
Barnardos Scotland,18/02/2019,"6,228.81",Commissioning Services
Barnardos Scotland,26/02/2019,"3,567.28",Commissioning Services
Barnardos Scotland,28/02/2019,"82,602.46",Commissioning Services
Barnardos Scotland,08/03/2019,"45,524.48",Commissioning Services
Barrington Stoke,14/05/2018,640.00,Supplies & Services
Barry Taylor And David Menzies,17/12/2018,"3,000.00",Premises Costs
Bartec Auto Id Limited,22/12/2017,"1,500.00",Capital Expenditure Total
Bartec Auto Id Limited,31/05/2018,"1,900.00",Capital Expenditure Total
Bartec Auto Id Limited,31/05/2018,"59,670.00",Transport Costs
Bartec Auto Id Limited,30/06/2018,"2,500.00",Transport Costs
Barwell Enterprises,14/02/2018,"1,169.64",Supplies & Services
Barwell Enterprises,06/03/2018,777.00,Inventories
Barwell Enterprises,13/03/2018,896.50,Inventories
Barwell Enterprises,14/03/2018,"1,034.52",Inventories
Barwell Enterprises,15/03/2018,"7,827.32",Inventories
Barwell Enterprises,19/03/2018,788.36,Inventories
Barwell Enterprises,20/03/2018,"1,122.85",Inventories
Barwell Enterprises,23/03/2018,"4,675.20",Inventories
Barwell Enterprises,26/03/2018,"3,673.99",Inventories
Barwell Enterprises,27/03/2018,622.19,Supplies & Services
Barwell Enterprises,30/03/2018,"8,245.19",Inventories
Barwell Enterprises,03/04/2018,926.88,Inventories
Barwell Enterprises,04/04/2018,"4,416.45",Inventories
Barwell Enterprises,05/04/2018,"1,680.92",Inventories
Barwell Enterprises,09/04/2018,"1,804.41",Inventories
Barwell Enterprises,10/04/2018,"1,113.36",Inventories
Barwell Enterprises,11/04/2018,"1,118.91",Inventories
Barwell Enterprises,16/04/2018,939.09,Inventories
Barwell Enterprises,17/04/2018,804.20,Inventories
Barwell Enterprises,18/04/2018,"2,585.40",Inventories
Barwell Enterprises,19/04/2018,533.37,Inventories
Barwell Enterprises,19/04/2018,548.15,Supplies & Services
Barwell Enterprises,20/04/2018,"2,844.90",Inventories
Barwell Enterprises,24/04/2018,"1,753.02",Inventories
Barwell Enterprises,25/04/2018,"37,506.00",Inventories
Barwell Enterprises,26/04/2018,"4,378.26",Inventories
Barwell Enterprises,30/04/2018,"1,108.55",Inventories
Barwell Enterprises,01/05/2018,888.78,Supplies & Services
Barwell Enterprises,02/05/2018,"3,295.67",Inventories
Barwell Enterprises,07/05/2018,"3,125.81",Inventories
Barwell Enterprises,09/05/2018,"1,731.99",Inventories
Barwell Enterprises,10/05/2018,"2,162.12",Inventories
Barwell Enterprises,11/05/2018,625.00,Supplies & Services
Barwell Enterprises,14/05/2018,610.32,Inventories
Barwell Enterprises,16/05/2018,"1,976.95",Inventories
Barwell Enterprises,18/05/2018,672.50,Supplies & Services
Barwell Enterprises,22/05/2018,"3,873.72",Inventories
Barwell Enterprises,23/05/2018,624.59,Inventories
Barwell Enterprises,24/05/2018,602.88,Inventories
Barwell Enterprises,25/05/2018,"5,775.18",Inventories
Barwell Enterprises,26/05/2018,"4,014.12",Inventories
Barwell Enterprises,31/05/2018,"3,631.80",Inventories
Barwell Enterprises,31/05/2018,"1,376.04",Supplies & Services
Barwell Enterprises,04/06/2018,740.30,Inventories
Barwell Enterprises,06/06/2018,846.66,Inventories
Barwell Enterprises,07/06/2018,"1,415.05",Inventories
Barwell Enterprises,08/06/2018,693.47,Inventories
Barwell Enterprises,12/06/2018,"1,529.18",Inventories
Barwell Enterprises,15/06/2018,"3,233.27",Inventories
Barwell Enterprises,19/06/2018,570.96,Inventories
Barwell Enterprises,21/06/2018,"2,404.71",Inventories
Barwell Enterprises,22/06/2018,"3,201.60",Inventories
Barwell Enterprises,25/06/2018,"2,195.94",Inventories
Barwell Enterprises,28/06/2018,"2,529.30",Inventories
Barwell Enterprises,29/06/2018,774.80,Inventories
Barwell Enterprises,02/07/2018,982.40,Inventories
Barwell Enterprises,03/07/2018,"1,271.60",Inventories
Barwell Enterprises,03/07/2018,"1,524.47",Supplies & Services
Barwell Enterprises,04/07/2018,"3,251.70",Inventories
Barwell Enterprises,05/07/2018,846.76,Inventories
Barwell Enterprises,11/07/2018,"1,081.49",Supplies & Services
Barwell Enterprises,12/07/2018,880.86,Inventories
Barwell Enterprises,12/07/2018,"1,645.04",Supplies & Services
Barwell Enterprises,13/07/2018,"2,620.80",Supplies & Services
Barwell Enterprises,16/07/2018,"1,553.00",Inventories
Barwell Enterprises,16/07/2018,545.90,Supplies & Services
Barwell Enterprises,19/07/2018,520.35,Inventories
Barwell Enterprises,20/07/2018,"2,657.36",Inventories
Barwell Enterprises,23/07/2018,"1,976.20",Inventories
Barwell Enterprises,24/07/2018,557.45,Inventories
Barwell Enterprises,25/07/2018,"1,790.76",Inventories
Barwell Enterprises,25/07/2018,570.00,Supplies & Services
Barwell Enterprises,30/07/2018,"1,078.36",Inventories
Barwell Enterprises,02/08/2018,"3,859.77",Inventories
Barwell Enterprises,03/08/2018,856.27,Inventories
Barwell Enterprises,04/08/2018,551.25,Supplies & Services
Barwell Enterprises,07/08/2018,984.90,Inventories
Barwell Enterprises,07/08/2018,"1,924.66",Supplies & Services
Barwell Enterprises,09/08/2018,"1,521.94",Inventories
Barwell Enterprises,10/08/2018,510.04,Inventories
Barwell Enterprises,13/08/2018,"1,407.00",Inventories
Barwell Enterprises,14/08/2018,"1,274.67",Inventories
Barwell Enterprises,15/08/2018,"1,338.44",Inventories
Barwell Enterprises,16/08/2018,"1,320.95",Inventories
Barwell Enterprises,20/08/2018,"3,935.58",Inventories
Barwell Enterprises,21/08/2018,801.61,Inventories
Barwell Enterprises,22/08/2018,"1,079.85",Inventories
Barwell Enterprises,23/08/2018,"2,116.73",Inventories
Barwell Enterprises,29/08/2018,"2,939.42",Inventories
Barwell Enterprises,30/08/2018,"1,159.56",Supplies & Services
Barwell Enterprises,05/09/2018,"1,125.14",Inventories
Barwell Enterprises,05/09/2018,836.00,Supplies & Services
Barwell Enterprises,06/09/2018,561.06,Supplies & Services
Barwell Enterprises,07/09/2018,714.14,Inventories
Barwell Enterprises,10/09/2018,"3,414.60",Supplies & Services
Barwell Enterprises,11/09/2018,"3,781.17",Inventories
Barwell Enterprises,14/09/2018,"3,371.69",Inventories
Barwell Enterprises,17/09/2018,"4,359.63",Inventories
Barwell Enterprises,19/09/2018,980.20,Inventories
Barwell Enterprises,20/09/2018,"2,496.91",Inventories
Barwell Enterprises,21/09/2018,"1,142.25",Inventories
Barwell Enterprises,21/09/2018,647.87,Supplies & Services
Barwell Enterprises,22/09/2018,665.00,Supplies & Services
Barwell Enterprises,25/09/2018,"3,890.29",Inventories
Barwell Enterprises,26/09/2018,673.81,Inventories
Barwell Enterprises,27/09/2018,765.41,Inventories
Barwell Enterprises,28/09/2018,"2,814.00",Inventories
Barwell Enterprises,02/10/2018,"2,044.19",Inventories
Barwell Enterprises,03/10/2018,"1,843.18",Inventories
Barwell Enterprises,04/10/2018,"1,084.71",Inventories
Barwell Enterprises,08/10/2018,"2,339.90",Inventories
Barwell Enterprises,08/10/2018,712.25,Supplies & Services
Barwell Enterprises,09/10/2018,"1,894.10",Inventories
Barwell Enterprises,12/10/2018,"2,351.13",Inventories
Barwell Enterprises,12/10/2018,"1,267.74",Supplies & Services
Barwell Enterprises,17/10/2018,"4,369.05",Supplies & Services
Barwell Enterprises,18/10/2018,657.62,Inventories
Barwell Enterprises,19/10/2018,"1,101.46",Inventories
Barwell Enterprises,19/10/2018,"2,110.50",Supplies & Services
Barwell Enterprises,22/10/2018,967.01,Supplies & Services
Barwell Enterprises,23/10/2018,"4,192.65",Inventories
Barwell Enterprises,23/10/2018,561.06,Supplies & Services
Barwell Enterprises,24/10/2018,865.05,Inventories
Barwell Enterprises,29/10/2018,"6,183.53",Inventories
Barwell Enterprises,30/10/2018,"1,077.00",Inventories
Barwell Enterprises,31/10/2018,"2,575.95",Inventories
Barwell Enterprises,31/10/2018,550.98,Supplies & Services
Barwell Enterprises,02/11/2018,"11,758.00",Inventories
Barwell Enterprises,05/11/2018,"1,486.57",Inventories
Barwell Enterprises,06/11/2018,"2,520.42",Inventories
Barwell Enterprises,06/11/2018,"1,929.72",Supplies & Services
Barwell Enterprises,12/11/2018,"2,142.04",Inventories
Barwell Enterprises,14/11/2018,"1,164.08",Inventories
Barwell Enterprises,15/11/2018,"2,179.03",Inventories
Barwell Enterprises,16/11/2018,"1,124.95",Inventories
Barwell Enterprises,20/11/2018,"1,085.60",Inventories
Barwell Enterprises,20/11/2018,660.00,Supplies & Services
Barwell Enterprises,22/11/2018,"3,216.63",Inventories
Barwell Enterprises,23/11/2018,562.80,Inventories
Barwell Enterprises,24/11/2018,665.70,Inventories
Barwell Enterprises,28/11/2018,626.80,Supplies & Services
Barwell Enterprises,29/11/2018,"5,059.52",Inventories
Barwell Enterprises,30/11/2018,"1,780.15",Supplies & Services
Barwell Enterprises,06/12/2018,"1,505.39",Inventories
Barwell Enterprises,07/12/2018,"3,911.07",Inventories
Barwell Enterprises,08/12/2018,512.13,Inventories
Barwell Enterprises,08/12/2018,626.80,Supplies & Services
Barwell Enterprises,11/12/2018,"1,145.10",Supplies & Services
Barwell Enterprises,13/12/2018,"1,549.49",Inventories
Barwell Enterprises,15/12/2018,771.01,Inventories
Barwell Enterprises,17/12/2018,"1,711.78",Supplies & Services
Barwell Enterprises,18/12/2018,669.20,Inventories
Barwell Enterprises,21/12/2018,"4,802.80",Inventories
Barwell Enterprises,21/12/2018,524.00,Supplies & Services
Barwell Enterprises,04/01/2019,"3,110.70",Inventories
Barwell Enterprises,08/01/2019,922.80,Inventories
Barwell Enterprises,08/01/2019,626.80,Supplies & Services
Barwell Enterprises,09/01/2019,"1,893.76",Inventories
Barwell Enterprises,11/01/2019,573.60,Inventories
Barwell Enterprises,13/01/2019,"1,902.61",Inventories
Barwell Enterprises,16/01/2019,"1,235.85",Inventories
Barwell Enterprises,17/01/2019,"4,121.50",Inventories
Barwell Enterprises,21/01/2019,548.10,Inventories
Barwell Enterprises,21/01/2019,567.10,Supplies & Services
Barwell Enterprises,22/01/2019,719.64,Inventories
Barwell Enterprises,23/01/2019,628.00,Inventories
Barwell Enterprises,28/01/2019,"2,143.66",Inventories
Barwell Enterprises,29/01/2019,"2,888.50",Inventories
Barwell Enterprises,30/01/2019,784.70,Inventories
Barwell Enterprises,31/01/2019,"1,514.44",Inventories
Barwell Enterprises,04/02/2019,701.32,Supplies & Services
Barwell Enterprises,05/02/2019,659.30,Supplies & Services
Barwell Enterprises,06/02/2019,541.00,Supplies & Services
Barwell Enterprises,07/02/2019,"1,513.61",Inventories
Barwell Enterprises,07/02/2019,"1,384.20",Supplies & Services
Barwell Enterprises,08/02/2019,904.30,Inventories
Barwell Enterprises,11/02/2019,"3,231.36",Inventories
Barwell Enterprises,11/02/2019,626.80,Supplies & Services
Barwell Enterprises,13/02/2019,"2,648.18",Inventories
Barwell Enterprises,14/02/2019,714.91,Inventories
Barwell Enterprises,15/02/2019,"1,812.40",Inventories
Barwell Enterprises,17/02/2019,"1,275.40",Inventories
Barwell Enterprises,20/02/2019,"1,441.25",Inventories
Barwell Enterprises,21/02/2019,"3,604.86",Inventories
Barwell Enterprises,21/02/2019,"1,253.60",Supplies & Services
Barwell Enterprises,25/02/2019,"1,501.14",Inventories
Barwell Enterprises,25/02/2019,"2,199.96",Supplies & Services
Barwell Enterprises,07/03/2019,"1,252.44",Inventories
Barwell Enterprises,08/03/2019,"1,766.05",Inventories
Barwell Enterprises,11/03/2019,907.60,Inventories
Barwell Enterprises,11/03/2019,626.80,Supplies & Services
Barwell Enterprises,13/03/2019,"2,003.98",Inventories
Basemap Ltd,16/08/2018,975.00,Supplies & Services
Basis (Registration) Ltd,08/11/2018,822.00,Supplies & Services
Basp Uk Ltd,02/02/2018,775.00,Supplies & Services
Basp Uk Ltd,17/05/2018,550.00,Supplies & Services
Batleys Limited,10/07/2018,821.80,Supplies & Services
Batleys Limited,24/08/2018,503.86,Supplies & Services
Bauer Media,31/03/2018,"1,454.80",Government Grants
Bauer Media,22/04/2018,"1,455.20",Government Grants
Bauer Media,20/05/2018,892.00,Supplies & Services
Bauer Media,17/06/2018,"1,218.00",Supplies & Services
Bauer Media,31/07/2018,955.00,Staff Costs
Bauer Media,31/10/2018,"1,617.95",Supplies & Services
Bauer Media,30/11/2018,"1,656.27",Supplies & Services
Bauer Media,09/12/2018,735.78,Supplies & Services
Bauer Media,23/12/2018,"1,002.00",Supplies & Services
Bauer Media,31/12/2018,873.00,Supplies & Services
Bauer Media,20/02/2019,"3,435.00",Administration Costs
Bauer Media,20/02/2019,"5,900.00",Supplies & Services
Bayview Care Ltd,13/08/2018,"2,230.58",Commissioning Services
Bayview Care Ltd,23/10/2018,"9,808.93",Commissioning Services
Bayview Care Ltd,01/11/2018,"2,214.92",Commissioning Services
Bayview Care Ltd,01/12/2018,"2,768.65",Commissioning Services
Bayview Care Ltd,05/12/2018,"3,638.80",Commissioning Services
Bayview Care Ltd,01/01/2019,"4,429.84",Commissioning Services
Bayview Care Ltd,01/02/2019,"4,429.84",Commissioning Services
Bayview Care Ltd,01/03/2019,"5,537.30",Commissioning Services
Baztec.Com,06/04/2018,525.00,Supplies & Services
Baztec.Com,26/05/2018,540.00,Supplies & Services
Baztec.Com,14/11/2018,540.00,Supplies & Services
Bca Insulation Ltd,21/03/2018,"11,093.38",Supplies & Services
Bca Insulation Ltd,16/04/2018,"2,671.27",Supplies & Services
Bca Insulation Ltd,28/06/2018,"64,501.77",Supplies & Services
Bdw North Scotland Ltd,20/09/2018,580.52,Transfer Payments
Beaconsfield Footwear T/A Hotter Shoes,19/07/2018,"32,376.44",Transfer Payments
Be-Active Ltd,06/11/2018,785.40,Supplies & Services
Beannachar Ltd,15/12/2017,"3,086.60",Commissioning Services
Beannachar Ltd,30/03/2018,564.00,Commissioning Services
Beannachar Ltd,01/04/2018,"141,809.67",Commissioning Services
Beannachar Ltd,01/07/2018,"141,843.18",Commissioning Services
Beannachar Ltd,19/07/2018,845.76,Commissioning Services
Beannachar Ltd,14/09/2018,"149,639.22",Commissioning Services
Beannachar Ltd,20/09/2018,704.80,Commissioning Services
Beannachar Ltd,24/10/2018,"2,728.51",Commissioning Services
Beannachar Ltd,13/11/2018,"24,560.24",Commissioning Services
Beannachar Ltd,13/12/2018,"141,733.41",Commissioning Services
Beech House Nursery,23/04/2018,"45,171.04",Commissioning Services
Beech House Nursery,10/07/2018,"8,417.22",Commissioning Services
Beech House Nursery,17/09/2018,"29,114.10",Commissioning Services
Beech House Nursery,18/09/2018,"6,556.00",Commissioning Services
Beech House Nursery,26/09/2018,905.77,Commissioning Services
Beech House Nursery,05/11/2018,924.00,Commissioning Services
Beech House Nursery,16/01/2019,"1,426.51",Commissioning Services
Beech House Nursery,21/01/2019,"31,055.04",Commissioning Services
Beech House Nursery,23/01/2019,"3,681.48",Commissioning Services
Befriend A Child Scheme,17/04/2018,"11,231.00",Commissioning Services
Belgrave Lodge Nursing Home,29/03/2018,996.00,Commissioning Services
Belgrave Lodge Nursing Home,26/04/2018,996.00,Commissioning Services
Belgrave Lodge Nursing Home,28/05/2018,996.00,Commissioning Services
Belgrave Lodge Nursing Home,25/06/2018,996.00,Commissioning Services
Belgrave Lodge Nursing Home,25/07/2018,996.00,Commissioning Services
Belgrave Lodge Nursing Home,20/08/2018,996.00,Commissioning Services
Belgrave Lodge Nursing Home,19/09/2018,996.00,Commissioning Services
Belgrave Lodge Nursing Home,15/10/2018,996.00,Commissioning Services
Belgrave Lodge Nursing Home,06/12/2018,996.00,Commissioning Services
Belgrave Lodge Nursing Home,08/01/2019,996.00,Commissioning Services
Belgrave Lodge Nursing Home,06/02/2019,996.00,Commissioning Services
Belhaven Group,13/03/2019,"9,693.99",Transfer Payments
Bellfield Eventide Home,02/04/2018,"3,833.46",Commissioning Services
Bellfield Eventide Home,30/04/2018,"3,844.60",Commissioning Services
Bellfield Eventide Home,28/05/2018,"3,148.60",Commissioning Services
Bellfield Eventide Home,25/06/2018,"4,072.51",Commissioning Services
Bellfield Eventide Home,23/07/2018,"3,897.28",Commissioning Services
Bellfield Eventide Home,20/08/2018,"3,897.28",Commissioning Services
Bellfield Eventide Home,17/09/2018,"3,489.42",Commissioning Services
Bellfield Eventide Home,15/10/2018,"3,897.28",Commissioning Services
Bellfield Eventide Home,12/11/2018,"3,489.42",Commissioning Services
Bellfield Eventide Home,10/12/2018,"3,897.28",Commissioning Services
Bellfield Eventide Home,07/01/2019,"3,897.28",Commissioning Services
Bellfield Eventide Home,24/01/2019,"2,385.33",Commissioning Services
Bellfield Eventide Home,29/01/2019,"1,975.69",Commissioning Services
Bellfield Eventide Home,04/02/2019,"6,282.84",Commissioning Services
Bell Ingram Ltd,19/07/2018,638.99,Transfer Payments
Belmar Engineering Services Ltd,14/02/2019,"5,016.86",Transfer Payments
Belmont Filmhouse Limited,17/05/2018,"42,500.00",Transfer Payments
Belmont Filmhouse Limited,26/06/2018,"3,475.00",Transfer Payments
Belmont Filmhouse Limited,16/07/2018,"21,250.00",Transfer Payments
Belmont Filmhouse Limited,01/10/2018,"21,250.00",Transfer Payments
Belmont Filmhouse Limited,01/11/2018,"8,976.00",Transfer Payments
Belmont Filmhouse Limited,21/12/2018,"3,475.00",Transfer Payments
Belmont Filmhouse Limited,14/01/2019,"21,250.00",Transfer Payments
Belvidere Gallery Ltd,14/03/2018,"6,896.00",Supplies & Services
Bentley Advancing Infrastructure,23/03/2018,"3,963.00",Supplies & Services
Berendsen (Uk) Ltd,13/03/2019,"1,281.50",Transfer Payments
Bernhard And Company Ltd,18/09/2018,"1,943.74",Supplies & Services
Bertram Library Services,19/03/2018,599.26,Supplies & Services
Bertram Library Services,20/03/2018,549.12,Supplies & Services
Bertram Library Services,21/03/2018,741.67,Supplies & Services
Bertram Library Services,05/04/2018,"1,400.57",Supplies & Services
Bertram Library Services,24/04/2018,521.42,Supplies & Services
Bertram Library Services,25/04/2018,604.44,Supplies & Services
Bertram Library Services,26/04/2018,518.04,Supplies & Services
Bertram Library Services,02/05/2018,540.54,Supplies & Services
Bertram Library Services,03/05/2018,609.56,Supplies & Services
Bertram Library Services,08/05/2018,559.82,Supplies & Services
Bertram Library Services,14/05/2018,724.13,Supplies & Services
Bertram Library Services,15/05/2018,551.70,Supplies & Services
Bertram Library Services,24/05/2018,992.36,Supplies & Services
Bertram Library Services,25/05/2018,"2,754.86",Supplies & Services
Bertram Library Services,29/05/2018,"3,376.48",Supplies & Services
Bertram Library Services,30/05/2018,764.47,Supplies & Services
Bertram Library Services,01/06/2018,675.42,Supplies & Services
Bertram Library Services,04/06/2018,846.07,Supplies & Services
Bertram Library Services,05/06/2018,694.23,Supplies & Services
Bertram Library Services,06/06/2018,"1,345.81",Supplies & Services
Bertram Library Services,13/06/2018,580.99,Supplies & Services
Bertram Library Services,14/06/2018,705.72,Supplies & Services
Bertram Library Services,15/06/2018,746.89,Supplies & Services
Bertram Library Services,19/06/2018,544.08,Supplies & Services
Bertram Library Services,02/07/2018,"1,126.14",Supplies & Services
Bertram Library Services,05/07/2018,"3,016.87",Supplies & Services
Bertram Library Services,06/07/2018,"1,019.67",Supplies & Services
Bertram Library Services,09/07/2018,543.59,Supplies & Services
Bertram Library Services,11/07/2018,"2,409.30",Supplies & Services
Bertram Library Services,12/07/2018,876.89,Supplies & Services
Bertram Library Services,13/07/2018,720.44,Supplies & Services
Bertram Library Services,17/07/2018,712.83,Supplies & Services
Bertram Library Services,20/07/2018,"1,183.91",Supplies & Services
Bertram Library Services,24/07/2018,658.05,Supplies & Services
Bertram Library Services,25/07/2018,942.65,Supplies & Services
Bertram Library Services,27/07/2018,543.43,Supplies & Services
Bertram Library Services,30/07/2018,729.11,Supplies & Services
Bertram Library Services,01/08/2018,558.72,Supplies & Services
Bertram Library Services,03/08/2018,597.09,Supplies & Services
Bertram Library Services,06/08/2018,538.03,Supplies & Services
Bertram Library Services,07/08/2018,699.11,Supplies & Services
Bertram Library Services,08/08/2018,518.00,Supplies & Services
Bertram Library Services,09/08/2018,573.47,Supplies & Services
Bertram Library Services,10/08/2018,573.71,Supplies & Services
Bertram Library Services,16/08/2018,"1,146.49",Supplies & Services
Bertram Library Services,17/08/2018,611.46,Supplies & Services
Bertram Library Services,20/08/2018,752.22,Supplies & Services
Bertram Library Services,30/08/2018,520.90,Supplies & Services
Bertram Library Services,03/09/2018,775.36,Supplies & Services
Bertram Library Services,04/09/2018,"2,039.40",Supplies & Services
Bertram Library Services,10/09/2018,597.09,Supplies & Services
Bertram Library Services,11/09/2018,802.38,Supplies & Services
Bertram Library Services,13/09/2018,784.26,Supplies & Services
Bertram Library Services,17/09/2018,695.34,Supplies & Services
Bertram Library Services,19/09/2018,680.03,Supplies & Services
Bertram Library Services,24/09/2018,666.57,Supplies & Services
Bertram Library Services,25/09/2018,815.12,Supplies & Services
Bertram Library Services,27/09/2018,617.56,Supplies & Services
Bertram Library Services,02/10/2018,"4,067.55",Supplies & Services
Bertram Library Services,03/10/2018,"1,731.81",Supplies & Services
Bertram Library Services,04/10/2018,"2,290.25",Supplies & Services
Bertram Library Services,05/10/2018,"1,487.45",Supplies & Services
Bertram Library Services,08/10/2018,719.40,Supplies & Services
Bertram Library Services,10/10/2018,"1,513.96",Supplies & Services
Bertram Library Services,11/10/2018,703.45,Supplies & Services
Bertram Library Services,15/10/2018,"1,306.70",Supplies & Services
Bertram Library Services,16/10/2018,"1,352.31",Supplies & Services
Bertram Library Services,18/10/2018,704.94,Supplies & Services
Bertram Library Services,19/10/2018,"1,694.13",Supplies & Services
Bertram Library Services,22/10/2018,580.85,Supplies & Services
Bertram Library Services,23/10/2018,"1,450.33",Supplies & Services
Bertram Library Services,26/10/2018,669.49,Supplies & Services
Bertram Library Services,01/11/2018,"1,337.10",Supplies & Services
Bertram Library Services,02/11/2018,908.71,Supplies & Services
Bertram Library Services,05/11/2018,865.36,Supplies & Services
Bertram Library Services,06/11/2018,"2,727.86",Supplies & Services
Bertram Library Services,07/11/2018,585.04,Supplies & Services
Bertram Library Services,09/11/2018,"1,218.01",Supplies & Services
Bertram Library Services,12/11/2018,857.35,Supplies & Services
Bertram Library Services,13/11/2018,858.00,Supplies & Services
Bertram Library Services,14/11/2018,656.74,Supplies & Services
Bertram Library Services,15/11/2018,807.17,Supplies & Services
Bertram Library Services,19/11/2018,636.81,Supplies & Services
Bertram Library Services,29/11/2018,768.62,Supplies & Services
Bertram Library Services,11/12/2018,515.58,Supplies & Services
Bertram Library Services,17/12/2018,931.75,Supplies & Services
Bertram Library Services,19/12/2018,574.86,Supplies & Services
Bertram Library Services,21/12/2018,559.21,Supplies & Services
Bertram Library Services,28/12/2018,771.35,Supplies & Services
Bertram Library Services,03/01/2019,813.23,Supplies & Services
Bertram Library Services,04/01/2019,888.67,Supplies & Services
Bertram Library Services,08/01/2019,"1,523.31",Supplies & Services
Bertram Library Services,09/01/2019,867.81,Supplies & Services
Bertram Library Services,10/01/2019,509.57,Supplies & Services
Bertram Library Services,16/01/2019,690.34,Supplies & Services
Bertram Library Services,17/01/2019,532.08,Supplies & Services
Bertram Library Services,18/01/2019,"1,312.88",Supplies & Services
Bertram Library Services,22/01/2019,670.18,Supplies & Services
Bertram Library Services,23/01/2019,"1,470.03",Supplies & Services
Bertram Library Services,29/01/2019,542.39,Supplies & Services
Bertram Library Services,30/01/2019,585.99,Supplies & Services
Bertram Library Services,05/02/2019,636.97,Supplies & Services
Bertram Library Services,07/02/2019,520.84,Supplies & Services
Bertram Library Services,08/02/2019,910.88,Supplies & Services
Bertram Library Services,11/02/2019,"1,398.37",Supplies & Services
Bertram Library Services,13/02/2019,752.29,Supplies & Services
Bertram Library Services,15/02/2019,736.16,Supplies & Services
Bertram Library Services,19/02/2019,"1,198.95",Supplies & Services
Bertram Library Services,21/02/2019,613.93,Supplies & Services
Bertram Library Services,22/02/2019,881.49,Supplies & Services
Bertram Library Services,25/02/2019,634.56,Supplies & Services
Bertram Library Services,26/02/2019,517.34,Supplies & Services
Bertram Library Services,05/03/2019,"1,164.31",Supplies & Services
Bertram Library Services,07/03/2019,614.86,Supplies & Services
Bertram Library Services,13/03/2019,710.22,Supplies & Services
Bertrams Books,17/01/2019,"1,049.78",Supplies & Services
Beth Smith Consultancy Ltd,01/05/2018,892.65,Administration Costs
Better Equipped Educational Supplies Ltd,06/07/2018,"1,359.12",Supplies & Services
Betterteam,31/05/2018,"1,080.00",Administration Costs
Betterteam,15/11/2018,550.00,Administration Costs
Betterteam,16/11/2018,550.00,Administration Costs
Betterteam,12/02/2019,530.00,Administration Costs
Beverages Direct Limited,18/12/2018,876.88,Supplies & Services
Beyongolia Productions,10/12/2018,"1,971.60",Supplies & Services
Beyongolia Productions,11/01/2019,625.00,Supplies & Services
Bibliographic Data Services Ltd,12/04/2018,"6,148.00",Supplies & Services
Biffa Waste Services Ltd,13/03/2019,"47,832.00",Transfer Payments
Bill Hay Ltd,01/06/2018,"5,962.50",Transfer Payments
Bin Cleaned (Aberdeen) Ltd,01/06/2018,"4,633.50",Supplies & Services
Bin Cleaned (Aberdeen) Ltd,30/06/2018,"5,405.50",Supplies & Services
Bin Cleaned (Aberdeen) Ltd,31/07/2018,"7,956.50",Supplies & Services
Biobags Scotland Ltd,18/01/2018,"11,647.58",Supplies & Services
Biobags Scotland Ltd,19/02/2018,"11,647.58",Supplies & Services
Biobags Scotland Ltd,25/04/2018,762.00,Supplies & Services
Biobags Scotland Ltd,01/05/2018,"11,647.58",Supplies & Services
Biobags Scotland Ltd,08/06/2018,"11,647.58",Supplies & Services
Biobags Scotland Ltd,04/07/2018,"11,647.58",Supplies & Services
Biobags Scotland Ltd,11/07/2018,762.00,Supplies & Services
Biobags Scotland Ltd,06/09/2018,"10,990.81",Supplies & Services
Biobags Scotland Ltd,11/10/2018,762.00,Supplies & Services
Biogas Power Limited,01/06/2018,"8,333.00",Capital Expenditure Total
Biogas Power Limited,01/09/2018,"8,333.00",Capital Expenditure Total
Biogas Power Limited,01/12/2018,"8,333.00",Capital Expenditure Total
Biogas Power Limited,01/03/2019,"8,333.00",Capital Expenditure Total
Bio-Rad Laboratories Ltd,26/06/2018,683.00,Supplies & Services
Bishop Sports & Leisure Ltd,31/07/2018,"4,235.00",Supplies & Services
Bis Salamis M & I  Ltd & Bis Sal,22/06/2018,"7,418.28",Transfer Payments
Bis Salamis M & I  Ltd & Bis Sal,14/02/2019,827.64,Transfer Payments
Blackwell Uk Limited,25/04/2018,"3,500.00",Supplies & Services
Blackwood Homes And Care,26/03/2018,"26,232.07",Commissioning Services
Blackwood Homes And Care,23/04/2018,"23,831.59",Commissioning Services
Blackwood Homes And Care,21/05/2018,"22,667.22",Commissioning Services
Blackwood Homes And Care,28/05/2018,"1,818.04",Commissioning Services
Blackwood Homes And Care,18/06/2018,"27,598.48",Commissioning Services
Blackwood Homes And Care,25/06/2018,"1,818.04",Commissioning Services
Blackwood Homes And Care,16/07/2018,"26,475.80",Commissioning Services
Blackwood Homes And Care,23/07/2018,"1,818.04",Commissioning Services
Blackwood Homes And Care,13/08/2018,"26,701.22",Commissioning Services
Blackwood Homes And Care,10/09/2018,"26,153.14",Commissioning Services
Blackwood Homes And Care,08/10/2018,"22,820.46",Commissioning Services
Blackwood Homes And Care,10/10/2018,"2,926.04",Commissioning Services
Blackwood Homes And Care,06/11/2018,"20,168.46",Commissioning Services
Blackwood Homes And Care,03/12/2018,"20,619.30",Commissioning Services
Blackwood Homes And Care,04/12/2018,609.96,Commissioning Services
Blackwood Homes And Care,09/01/2019,"24,237.65",Commissioning Services
Blackwood Homes And Care,25/01/2019,"1,818.04",Commissioning Services
Blackwood Homes And Care,28/01/2019,"25,908.64",Commissioning Services
Blackwood Homes And Care,25/02/2019,"23,271.30",Commissioning Services
Blackwood Homes And Care-Raeden Court,16/01/2017,"3,477.68",Commissioning Services
Blackwood Homes And Care-Raeden Court,24/07/2017,"3,477.68",Commissioning Services
Blackwood Homes And Care-Raeden Court,21/08/2017,"3,477.68",Commissioning Services
Blackwood Homes And Care-Raeden Court,21/09/2017,"3,477.68",Commissioning Services
Blackwood Homes And Care-Raeden Court,23/10/2017,"3,477.68",Commissioning Services
Blackwood Homes And Care-Raeden Court,23/03/2018,"64,449.14",Commissioning Services
Blackwood Homes And Care-Raeden Court,30/04/2018,"71,038.98",Commissioning Services
Blackwood Homes And Care-Raeden Court,28/05/2018,"58,750.44",Commissioning Services
Blackwood Homes And Care-Raeden Court,25/06/2018,"58,750.44",Commissioning Services
Blackwood Homes And Care-Raeden Court,23/07/2018,"58,750.44",Commissioning Services
